date,department/service,beneficiary,amount,summary of purpose,category,transaction number,SAP vendor number
01.10.2018,ASSET MANAGEMENT,LOCKESLEYS LTD,"23,876.96",ENG CONTRACTS (NORTH),FIRE ALARMS & EMERGENCY LIGHTING,5902321817,1000066272
01.10.2018,CENTRAL FUNCTIONS,NPOWER LTD,"1,424.53",HEATING ACCOUNT,ELECTRICITY,5902321432,1000078994
01.10.2018,CENTRAL FUNCTIONS,NPOWER LTD,"2,120.27",HEATING ACCOUNT,ELECTRICITY,5902321432,1000078994
01.10.2018,CHILDREN'S SERVICES,MONKEY PUZZLE DAY NURSERY STREATHAM,"1,593.75",AGENCY FOSTERING,EXTERNAL AGENCIES AND BODIES,5902321986,1000080140
01.10.2018,ENVIRONMENT AND LEISURE,BELL PHILLIPS ARCHITECTS LTD,"4,402.00",CAPITAL PS (LEISURE),CONSTRUCTION FEES  - EXTERNAL,5902321973,1000069307
01.10.2018,ENVIRONMENT DIRECTORATE,CONWAY AECOM LTD,692.07,FLOOD RISK MANAGEMENT,HIGHWAYS TERM CONTRACT,5902321608,1000071205
01.10.2018,ENVIRONMENT DIRECTORATE,CONWAY AECOM LTD,"2,268.46",FLOOD RISK MANAGEMENT,HIGHWAYS TERM CONTRACT,5902321608,1000071205
01.10.2018,ENVIRONMENT DIRECTORATE,CONWAY AECOM LTD,"6,255.36",FLOOD RISK MANAGEMENT,HIGHWAYS TERM CONTRACT,5902321608,1000071205
01.10.2018,ENVIRONMENT DIRECTORATE,EURO TRAINING SERVICES LTD,"1,400.00",MANAGEMENT TEAM,TRAINING,5902321773,1000072728
01.10.2018,ENVIRONMENT DIRECTORATE,PROJECT CENTRE LTD,"5,840.00",PARKING OVERHEADS,OTHER CONTRACTORS,5902321482,1000072621
01.10.2018,ENVIRONMENT DIRECTORATE,CROWN OIL UK,705,SANDGATE STREET,VEHICLE FUEL,5902321687,1000074865
01.10.2018,EXTERNAL AFFAIRS,GOVDELIVERY EUROPE LTD,"2,185.00",MEDIA,SUBSCRIPTIONS,5902321594,1000076351
01.10.2018,HOUSING HRA,LOCKESLEYS LTD,"58,276.85",LOCKESLEYS,MANUAL CREDITORS,5902321624,1000066272
01.10.2018,HOUSING HRA,NPOWER,"363,859.30",RESIDENT SERVICES BUSINESS SUPPORT,ELECTRICITY,6101852924,DIRECT DEBIT PAYMENT
01.10.2018,LEISURE DIRECTORATE,CONWAY AECOM LTD,"13,200.00",SDM BUDGET,PROFESSIONAL FEES,5902321544,1000071205
01.10.2018,MODERNISATION HGF,NPOWER LTD,761.86,CURLEW HOUSE,ELECTRICITY,5902321799,1000078994
01.10.2018,PECKHAM AND NUNHEAD COMMUNITY COUNCIL,JEAN TE LE,"2,000.00",GRANT,GRANT,CHEQUE PAYMENT,CHEQUE PAYMENT
01.10.2018,REGENERATION,FONTAIN LTD,"4,255.00",OKR MASTER PLANNING,MARKETING & PUBLICITY SERVICES,5902321541,1000058307
02.10.2018,ADULT SOCIAL CARE,SOUTHWARK CITIZENS ADVICE,"65,558.93",BREAK FOR CARERS,EXTERNAL AGENCIES AND BODIES,5902322094,1874379
02.10.2018,ADULT SOCIAL CARE,OXFORD BROOKES ENTERPRISES LTD,"10,286.20",DIR OF ASC,PROFESSIONAL FEES,5902322275,1000076102
02.10.2018,ADULT SOCIAL CARE,AGE UK LEWISHAM & SOUTHWARK,"53,000.00",LOCAL COMMUNITY OFFER,EXTERNAL AGENCIES AND BODIES,5902322186,1507154
02.10.2018,ADULT SOCIAL CARE,BLACKFRIARS SETTLEMENT,"7,075.00",LOCAL COMMUNITY OFFER,EXTERNAL AGENCIES AND BODIES,5902322217,1000071456
02.10.2018,ADULT SOCIAL CARE,BLACKFRIARS SETTLEMENT,"7,562.50",LOCAL COMMUNITY OFFER,EXTERNAL AGENCIES AND BODIES,5902322218,1000071456
02.10.2018,ADULT SOCIAL CARE,LAMBETH & SOUTHWARK MENCAP,"10,250.00",LOCAL COMMUNITY OFFER,EXTERNAL AGENCIES AND BODIES,5902322200,1000005477
02.10.2018,ADULT SOCIAL CARE,LEONARD CHESHIRE DISABILITY,"22,500.00",LOCAL COMMUNITY OFFER,EXTERNAL AGENCIES AND BODIES,5902322212,1000065128
02.10.2018,ADULT SOCIAL CARE,LIFELONG FAMILY LINIKS,"11,250.00",LOCAL COMMUNITY OFFER,EXTERNAL AGENCIES AND BODIES,5902322215,1000069342
02.10.2018,ADULT SOCIAL CARE,LINK AGE SOUTHWARK,"30,812.50",LOCAL COMMUNITY OFFER,EXTERNAL AGENCIES AND BODIES,5902322204,1000034150
02.10.2018,ADULT SOCIAL CARE,SOUTHWARK PENSIONERS CENTRE,"19,575.00",LOCAL COMMUNITY OFFER,EXTERNAL AGENCIES AND BODIES,5902322095,1000027831
02.10.2018,ADULT SOCIAL CARE,SWK DISABLEMENT ASSN,"8,125.00",LOCAL COMMUNITY OFFER,EXTERNAL AGENCIES AND BODIES,5902322202,1000011698
02.10.2018,ADULT SOCIAL CARE,SWK DISABLEMENT ASSN,"11,875.00",LOCAL COMMUNITY OFFER,EXTERNAL AGENCIES AND BODIES,5902322201,1000011698
02.10.2018,ADULT SOCIAL CARE,TIME & TALENTS ASSOCIATION,"14,562.50",LOCAL COMMUNITY OFFER,EXTERNAL AGENCIES AND BODIES,5902322188,1757632
02.10.2018,ADULT SOCIAL CARE,SAGECARE LTD,"1,357.79",MH LTS 18-64,HOMECARE - C&V,2102872211,1000080924
02.10.2018,ADULT SOCIAL CARE,SAGECARE LTD,832.64,MH LTS 65+,HOMECARE - C&V,2102872210,1000080924
02.10.2018,ADULT SOCIAL CARE,PHS GROUP PLC,388.59,MH PREMISES COSTS,WASTE DISPOSAL CONTRACT,5902322255,1851993
02.10.2018,ADULT SOCIAL CARE,MIHOMECARE LTD,408.48,PHY LTS 18-64,HOMECARE - C&V,2102872385,1000042594
02.10.2018,ADULT SOCIAL CARE,MIHOMECARE LTD,714.84,PHY LTS 18-64,HOMECARE - C&V,2102872382,1000042594
02.10.2018,ADULT SOCIAL CARE,MIHOMECARE LTD,714.84,PHY LTS 18-64,HOMECARE - C&V,2102872383,1000042594
02.10.2018,ADULT SOCIAL CARE,MIHOMECARE LTD,714.84,PHY LTS 18-64,HOMECARE - C&V,2102872393,1000042594
02.10.2018,ADULT SOCIAL CARE,SAGECARE LTD,632.89,PHY LTS 18-64,HOMECARE - C&V,2102872201,1000080924
02.10.2018,ADULT SOCIAL CARE,SAGECARE LTD,"1,092.94",PHY LTS 18-64,HOMECARE - C&V,2102872199,1000080924
02.10.2018,ADULT SOCIAL CARE,SAGECARE LTD,"1,307.43",PHY LTS 18-64,HOMECARE - C&V,2102872204,1000080924
02.10.2018,ADULT SOCIAL CARE,SAGECARE LTD,"2,589.75",PHY LTS 18-64,HOMECARE - C&V,2102872207,1000080924
02.10.2018,ADULT SOCIAL CARE,MIHOMECARE LTD,291.77,PHY LTS 65+,HOMECARE - C&V,2102872388,1000042594
02.10.2018,ADULT SOCIAL CARE,MIHOMECARE LTD,350.13,PHY LTS 65+,HOMECARE - C&V,2102872387,1000042594
02.10.2018,ADULT SOCIAL CARE,MIHOMECARE LTD,401.19,PHY LTS 65+,HOMECARE - C&V,2102872392,1000042594
02.10.2018,ADULT SOCIAL CARE,MIHOMECARE LTD,595.72,PHY LTS 65+,HOMECARE - C&V,2102872389,1000042594
02.10.2018,ADULT SOCIAL CARE,MIHOMECARE LTD,"1,123.32",PHY LTS 65+,HOMECARE - C&V,2102872395,1000042594
02.10.2018,ADULT SOCIAL CARE,MIHOMECARE LTD,"1,123.32",PHY LTS 65+,HOMECARE - C&V,2102872396,1000042594
02.10.2018,ADULT SOCIAL CARE,MIHOMECARE LTD,"1,327.56",PHY LTS 65+,HOMECARE - C&V,2102872384,1000042594
02.10.2018,ADULT SOCIAL CARE,SAGECARE LTD,466.48,PHY LTS 65+,HOMECARE - C&V,2102872209,1000080924
02.10.2018,ADULT SOCIAL CARE,SAGECARE LTD,633,PHY LTS 65+,HOMECARE - C&V,2102872213,1000080924
02.10.2018,ADULT SOCIAL CARE,SAGECARE LTD,682.88,PHY LTS 65+,HOMECARE - C&V,2102872214,1000080924
02.10.2018,ADULT SOCIAL CARE,SAGECARE LTD,807.84,PHY LTS 65+,HOMECARE - C&V,2102872205,1000080924
02.10.2018,ADULT SOCIAL CARE,SAGECARE LTD,"2,331.84",PHY LTS 65+,HOMECARE - C&V,2102872206,1000080924
02.10.2018,ADULT SOCIAL CARE,SAGECARE LTD,"2,731.32",PHY LTS 65+,HOMECARE - C&V,2102872208,1000080924
02.10.2018,ADULT SOCIAL CARE,MIHOMECARE LTD,389.03,SOCIAL ISOLATION,HOMECARE - C&V,2102872390,1000042594
02.10.2018,ADULT SOCIAL CARE,MIHOMECARE LTD,851,SOCIAL ISOLATION,HOMECARE - C&V,2102872386,1000042594
02.10.2018,ADULT SOCIAL CARE,CONTACT PROFESSIONALS,266,SPECIALIST CARE,SECTION 17 PAYMENTS TO AGENCIES/CARERS,2102872260,1000057263
02.10.2018,ADULT SOCIAL CARE,CONTACT PROFESSIONALS,266,SPECIALIST CARE,SECTION 17 PAYMENTS TO AGENCIES/CARERS,2102872333,1000057263
02.10.2018,ADULT SOCIAL CARE,CONTACT PROFESSIONALS,285,SPECIALIST CARE,SECTION 17 PAYMENTS TO AGENCIES/CARERS,2102872291,1000057263
02.10.2018,ADULT SOCIAL CARE,CONTACT PROFESSIONALS,285,SPECIALIST CARE,SECTION 17 PAYMENTS TO AGENCIES/CARERS,2102872293,1000057263
02.10.2018,ADULT SOCIAL CARE,CONTACT PROFESSIONALS,304,SPECIALIST CARE,SECTION 17 PAYMENTS TO AGENCIES/CARERS,2102872301,1000057263
02.10.2018,ADULT SOCIAL CARE,CONTACT PROFESSIONALS,304,SPECIALIST CARE,SECTION 17 PAYMENTS TO AGENCIES/CARERS,2102872303,1000057263
02.10.2018,ADULT SOCIAL CARE,CONTACT PROFESSIONALS,304,SPECIALIST CARE,SECTION 17 PAYMENTS TO AGENCIES/CARERS,2102872307,1000057263
02.10.2018,ADULT SOCIAL CARE,CONTACT PROFESSIONALS,304,SPECIALIST CARE,SECTION 17 PAYMENTS TO AGENCIES/CARERS,2102872311,1000057263
02.10.2018,ADULT SOCIAL CARE,CONTACT PROFESSIONALS,304,SPECIALIST CARE,SECTION 17 PAYMENTS TO AGENCIES/CARERS,2102872313,1000057263
02.10.2018,ADULT SOCIAL CARE,CONTACT PROFESSIONALS,304,SPECIALIST CARE,SECTION 17 PAYMENTS TO AGENCIES/CARERS,2102872316,1000057263
02.10.2018,ADULT SOCIAL CARE,CONTACT PROFESSIONALS,304,SPECIALIST CARE,SECTION 17 PAYMENTS TO AGENCIES/CARERS,2102872335,1000057263
02.10.2018,ADULT SOCIAL CARE,CONTACT PROFESSIONALS,304,SPECIALIST CARE,SECTION 17 PAYMENTS TO AGENCIES/CARERS,2102872350,1000057263
02.10.2018,ADULT SOCIAL CARE,CONTACT PROFESSIONALS,323,SPECIALIST CARE,SECTION 17 PAYMENTS TO AGENCIES/CARERS,2102872326,1000057263
02.10.2018,ADULT SOCIAL CARE,CONTACT PROFESSIONALS,342,SPECIALIST CARE,SECTION 17 PAYMENTS TO AGENCIES/CARERS,2102872347,1000057263
02.10.2018,ADULT SOCIAL CARE,CONTACT PROFESSIONALS,380,SPECIALIST CARE,SECTION 17 PAYMENTS TO AGENCIES/CARERS,2102872272,1000057263
02.10.2018,ADULT SOCIAL CARE,CONTACT PROFESSIONALS,380,SPECIALIST CARE,SECTION 17 PAYMENTS TO AGENCIES/CARERS,2102872300,1000057263
02.10.2018,ADULT SOCIAL CARE,CONTACT PROFESSIONALS,380,SPECIALIST CARE,SECTION 17 PAYMENTS TO AGENCIES/CARERS,2102872315,1000057263
02.10.2018,ADULT SOCIAL CARE,CONTACT PROFESSIONALS,475,SPECIALIST CARE,SECTION 17 PAYMENTS TO AGENCIES/CARERS,2102872358,1000057263
02.10.2018,ADULT SOCIAL CARE,INTERSERVE HEALTHCARE,463.15,SPECIALIST CARE,SECTION 17 PAYMENTS TO AGENCIES/CARERS,2102872379,1000049612
02.10.2018,ADULT SOCIAL CARE,CONTACT PROFESSIONALS,912,TRANSITIONS 14-18YRS,SECTION 17 PAYMENTS TO AGENCIES/CARERS,2102872288,1000057263
02.10.2018,ADULT SOCIAL CARE,CONTACT PROFESSIONALS,912,TRANSITIONS 14-18YRS,SECTION 17 PAYMENTS TO AGENCIES/CARERS,2102872292,1000057263
02.10.2018,ADULT SOCIAL CARE,CONTACT PROFESSIONALS,"1,007.00",TRANSITIONS 14-18YRS,SECTION 17 PAYMENTS TO AGENCIES/CARERS,2102872270,1000057263
02.10.2018,ADULT SOCIAL CARE,CONTACT PROFESSIONALS,"1,007.00",TRANSITIONS 14-18YRS,SECTION 17 PAYMENTS TO AGENCIES/CARERS,2102872287,1000057263
02.10.2018,ADULT SOCIAL CARE,CONTACT PROFESSIONALS,"1,489.00",TRANSITIONS 14-18YRS,SECTION 17 PAYMENTS TO AGENCIES/CARERS,2102872318,1000057263
02.10.2018,ADULT SOCIAL CARE,CONTACT PROFESSIONALS,"4,095.00",TRANSITIONS 14-18YRS,SECTION 17 PAYMENTS TO AGENCIES/CARERS,2102872341,1000057263
02.10.2018,ADULT SOCIAL CARE,INTERSERVE HEALTHCARE,254.14,TRANSITIONS 14-18YRS,SECTION 17 PAYMENTS TO AGENCIES/CARERS,2102872375,1000049612
02.10.2018,ASSET MANAGEMENT,BRIDGEWATER ROOFING CONTRACTORS LTD,"6,700.00",R&M CONTRACTS (NORTH),BUILDING R&M,2102872419,3000001482
02.10.2018,ASSET MANAGEMENT,PROPERTY FACILITIES GROUP PLC,"15,652.74",R&M CONTRACTS (SOUTH),BUILDING R&M,2102872406,3000001420
02.10.2018,ASSET MANAGEMENT,SANDERSONS BUILDING SERVICES LTD,"2,152.44",R&M CONTRACTS (SOUTH),BUILDING R&M,2102872414,3000002065
02.10.2018,ASSET MANAGEMENT,SANDERSONS BUILDING SERVICES LTD,"5,954.39",R&M CONTRACTS (SOUTH),BUILDING R&M,2102872417,3000002065
02.10.2018,ASSET MANAGEMENT,SOUTH EAST TIES LTD,490,R&M CONTRACTS (SOUTH),BUILDING R&M,2102872408,3000001481
02.10.2018,ASSET MANAGEMENT,SOUTH EAST TIES LTD,"1,040.00",R&M CONTRACTS (SOUTH),BUILDING R&M,2102872407,3000001481
02.10.2018,ASSET MANAGEMENT,GAS & ENVIRONMENTAL SERVICES LTD,301.15,REPAIRS OPERATIONS,EQUIPMENT PURCHASE & REPAIR,5902322083,1000066947
02.10.2018,ASSET MANAGEMENT,GAS & ENVIRONMENTAL SERVICES LTD,786.6,REPAIRS OPERATIONS,EQUIPMENT PURCHASE & REPAIR,5902322084,1000066947
02.10.2018,CENTRAL FUNCTIONS,OCO LIMITED,"1,830.30",AYLESBURY,OTHER R&M,5902322167,1006066
02.10.2018,CENTRAL FUNCTIONS,STANDAGE & CO LTD,"28,633.00",AYLESBURY,SECURITY SERVICES,2102872410,4002817
02.10.2018,CENTRAL FUNCTIONS,STANDAGE & CO LTD,"38,951.00",AYLESBURY,SECURITY SERVICES,2102872412,4002817
02.10.2018,CENTRAL FUNCTIONS,BRESLIN CONSTRUCTION LTD,850,COMMERCIAL PROPERTIES,BUILDING R&M,2102872181,3000001948
02.10.2018,CENTRAL FUNCTIONS,STANBURY BUILDING SERVICES LTD,295,COMMERCIAL PROPERTIES,BUILDING R&M,2102872409,3000001967
02.10.2018,CENTRAL FUNCTIONS,STANBURY BUILDING SERVICES LTD,395,COMMERCIAL PROPERTIES,BUILDING R&M,2102872430,3000001967
02.10.2018,CHIEF EXECUTIVE,CYCLE CONFIDENT LTD,538,CAPITAL PS (REGEN),CONSTRUCTION FEES  - EXTERNAL,5902322164,1000070228
02.10.2018,CHIEF EXECUTIVE,SURREY DOCKS FARM PROVIDENT SOCIETY,"21,745.00",CAPITAL PS (REGEN),CONSTRUCTION MAIN CONTRACT,5902322079,1000000958
02.10.2018,CHIEF EXECUTIVE,STANDAGE & CO LTD,"34,914.11",CAPITAL PS (REGEN),CONSTRUCTION MAIN CONTRACT -CERTIFICATED,5902322080,11223389
02.10.2018,CHILDREN AND ADULT,JPD TECHNICAL SERVICES,"1,750.00",CAPITAL PS (EDUCATION),CONSTRUCTION FEES,5902322075,1000045143
02.10.2018,CHILDREN AND ADULT,MLM CONSULTING ENGINEERS LTD,"5,500.00",CAPITAL PS (EDUCATION),CONSTRUCTION FEES,5902322085,1000059806
02.10.2018,CHILDREN AND ADULT,DANZER LTD,456.6,CAPITAL PS (EDUCATION),CONSTRUCTION FEES  - EXTERNAL,2102872183,3000001645
02.10.2018,CHILDREN AND ADULT,BLAKEDOWN LANDSCAPES,"6,903.08",CAPITAL PS (EDUCATION),CONSTRUCTION MAIN CONTRACT,2102872186,4005399
02.10.2018,CHILDREN AND ADULT,CBS MAINTENANCE SERVICES LTD,"26,105.34",CAPITAL PS (EDUCATION),CONSTRUCTION MAIN CONTRACT -CERTIFICATED,2102872400,3000001518
02.10.2018,CHILDREN AND ADULT,CBS MAINTENANCE SERVICES LTD,"65,069.11",CAPITAL PS (EDUCATION),CONSTRUCTION MAIN CONTRACT -CERTIFICATED,2102872401,3000001518
02.10.2018,CHILDREN AND ADULT,INVICTA BUILDING SERVICES LTD,"5,402.87",CAPITAL PS (EDUCATION),CONSTRUCTION MAIN CONTRACT -CERTIFICATED,2102872187,3000001295
02.10.2018,CHILDREN AND ADULT,STANDAGE & CO LTD,"13,172.53",CAPITAL PS (EDUCATION),CONSTRUCTION MAIN CONTRACT -CERTIFICATED,2102872184,4002817
02.10.2018,CHILDREN AND ADULT,STANDAGE & CO LTD,"119,165.14",CAPITAL PS (EDUCATION),CONSTRUCTION MAIN CONTRACT -CERTIFICATED,2102872173,4002817
02.10.2018,CHILDREN AND ADULT,PROFILE CONSTRUCTION CONSULTANTS LTD,690,CAPITAL PS (EDUCATION),CONSTRUCTION SITE COSTS,5902322227,1000062440
02.10.2018,CHILDREN'S SERVICES,ALL4U FOSTERING LTD,"6,235.20",AGENCY FOSTERING,EXTERNAL AGENCIES AND BODIES,2102872367,1000080663
02.10.2018,CHILDREN'S SERVICES,FOLLOWING WHISPERS FAMILY SERVICE LTD,"6,315.00",AGENCY FOSTERING,EXTERNAL AGENCIES AND BODIES,2102872371,1000065611
02.10.2018,CHILDREN'S SERVICES,FOLLOWING WHISPERS FAMILY SERVICE LTD,"6,642.90",AGENCY FOSTERING,EXTERNAL AGENCIES AND BODIES,2102872369,1000065611
02.10.2018,CHILDREN'S SERVICES,LIGHTHOUSE FOSTERING LTD,"5,580.86",AGENCY FOSTERING,EXTERNAL AGENCIES AND BODIES,2102872368,1000080372
02.10.2018,CHILDREN'S SERVICES,ORANGE GROVE FOSTERCARE LTD,"3,480.00",AGENCY FOSTERING,EXTERNAL AGENCIES AND BODIES,2102872218,1000078716
02.10.2018,CHILDREN'S SERVICES,ORANGE GROVE FOSTERCARE LTD,"3,480.00",AGENCY FOSTERING,EXTERNAL AGENCIES AND BODIES,2102872219,1000078716
02.10.2018,CHILDREN'S SERVICES,SHINING STARS FOSTERING AGENCY LTD,"3,214.20",AGENCY FOSTERING,EXTERNAL AGENCIES AND BODIES,2102872366,1000079431
02.10.2018,CHILDREN'S SERVICES,SHINING STARS FOSTERING AGENCY LTD,"3,428.40",AGENCY FOSTERING,EXTERNAL AGENCIES AND BODIES,2102872370,1000079431
02.10.2018,CHILDREN'S SERVICES,ANNA TKACZYNSKA,780,CENTRAL COSTS - SEN,LEGAL FEES & COURT COSTS,5902322091,1000069252
02.10.2018,CHILDREN'S SERVICES,GOVERNMENT EVENTS,322.15,CHILD PROTECTION TEAM SAFEGUARDING,EXTERNAL AGENCIES AND BODIES,5902322060,1000081438
02.10.2018,CHILDREN'S SERVICES,AIDHOUR LIMITED,451.5,CLA TEAM SAFEGUARDING,PROFESSIONAL FEES,5902322086,1000057345
02.10.2018,CHILDREN'S SERVICES,AIDHOUR LIMITED,500,CLA TEAM SAFEGUARDING,PROFESSIONAL FEES,5902322070,1000057345
02.10.2018,CHILDREN'S SERVICES,SOFTWARE SOLUTIONS (WARWICK) LTD,875,DIRECT DELIVERY,SOFTWARE,5902322179,11013313
02.10.2018,CHILDREN'S SERVICES,REDACTED PERSONAL DATA,378,DISABILITY & HIV,ADDITIONAL PAYMENTS TO AGENCIES/CARERS,REDACTED,REDACTED
02.10.2018,CHILDREN'S SERVICES,REDACTED PERSONAL DATA,621.43,DISABILITY & HIV,PAYMENTS TO CARERS,REDACTED,REDACTED
02.10.2018,CHILDREN'S SERVICES,REDACTED PERSONAL DATA,665.34,DISABILITY & HIV,PAYMENTS TO CARERS,REDACTED,REDACTED
02.10.2018,CHILDREN'S SERVICES,REDACTED PERSONAL DATA,685.71,DISABILITY & HIV,PAYMENTS TO CARERS,REDACTED,REDACTED
02.10.2018,CHILDREN'S SERVICES,313Y LTD,300,FAMILY GROUP CONFERENCES,MARKETING & PUBLICITY SERVICES,5902322065,1000078584
02.10.2018,CHILDREN'S SERVICES,TFL TELESALES / OYSTER FULFILMENT,280,MANAGEMENT,PUBLIC TRANSPORT,5902322081,1000059727
02.10.2018,CHILDREN'S SERVICES,LEADERSHIPWISE LTD,"1,500.00",PRIMARY ACHIEVEMENT,CONSULTANTS SERVICES,5902322306,1000081634
02.10.2018,CHILDREN'S SERVICES,ALBION PRIMARY SCHOOL,"46,775.00",PUPIL PREMIUM,"SCHOOLS CAPITATION, STANDARDS FUND",5902322096,5001000000
02.10.2018,CHILDREN'S SERVICES,ALFRED SALTER PRIMARY SCHOOL,"50,970.00",PUPIL PREMIUM,"SCHOOLS CAPITATION, STANDARDS FUND",5902322097,5001000005
02.10.2018,CHILDREN'S SERVICES,BELLENDEN PRIMARY SCHOOL,"21,940.00",PUPIL PREMIUM,"SCHOOLS CAPITATION, STANDARDS FUND",5902322098,5001000007
02.10.2018,CHILDREN'S SERVICES,BEORMUND PRIMARY SCHOOL,"9,240.00",PUPIL PREMIUM,"SCHOOLS CAPITATION, STANDARDS FUND",5902322099,5001000008
02.10.2018,CHILDREN'S SERVICES,BESSEMER GRANGE PRIMARY SCHOOL,"37,950.00",PUPIL PREMIUM,"SCHOOLS CAPITATION, STANDARDS FUND",5902322100,5001000009
02.10.2018,CHILDREN'S SERVICES,BETHLEM & MAUDSLEY HOSPITAL SCHOOL,"2,338.00",PUPIL PREMIUM,"SCHOOLS CAPITATION, STANDARDS FUND",5902322101,5001000010
02.10.2018,CHILDREN'S SERVICES,BOUCHER C OF E PRIMARY SCHOOL,"19,800.00",PUPIL PREMIUM,"SCHOOLS CAPITATION, STANDARDS FUND",5902322102,5001000011
02.10.2018,CHILDREN'S SERVICES,BRUNSWICK PARK PRIMARY SCHOOL,"71,770.00",PUPIL PREMIUM,"SCHOOLS CAPITATION, STANDARDS FUND",5902322103,5001000013
02.10.2018,CHILDREN'S SERVICES,CAMELOT PRIMARY SCHOOL,"53,790.00",PUPIL PREMIUM,"SCHOOLS CAPITATION, STANDARDS FUND",5902322104,5001000014
02.10.2018,CHILDREN'S SERVICES,CATHEDRAL SCHOOL OF ST SAVIOUR & MARY,"10,230.00",PUPIL PREMIUM,"SCHOOLS CAPITATION, STANDARDS FUND",5902322159,5001000088
02.10.2018,CHILDREN'S SERVICES,CHARLES DICKENS PRIMARY SCHOOL,"53,525.00",PUPIL PREMIUM,"SCHOOLS CAPITATION, STANDARDS FUND",5902322105,5001000015
02.10.2018,CHILDREN'S SERVICES,CHARLOTTE  SHARMAN PRIMARY SCHOOL,"46,605.00",PUPIL PREMIUM,"SCHOOLS CAPITATION, STANDARDS FUND",5902322106,5001000016
02.10.2018,CHILDREN'S SERVICES,CHERRY GARDEN SCHOOL,"9,240.00",PUPIL PREMIUM,"SCHOOLS CAPITATION, STANDARDS FUND",5902322110,5001000020
02.10.2018,CHILDREN'S SERVICES,COBOURG PRIMARY SCHOOL,"48,510.00",PUPIL PREMIUM,"SCHOOLS CAPITATION, STANDARDS FUND",5902322111,5001000021
02.10.2018,CHILDREN'S SERVICES,COMBER GROVE PRIMARY SCHOOL,"27,060.00",PUPIL PREMIUM,"SCHOOLS CAPITATION, STANDARDS FUND",5902322112,5001000022
02.10.2018,CHILDREN'S SERVICES,CRAMPTON PRIMARY SCHOOL,"19,140.00",PUPIL PREMIUM,"SCHOOLS CAPITATION, STANDARDS FUND",5902322113,5001000023
02.10.2018,CHILDREN'S SERVICES,CRAWFORD PRIMARY SCHOOL,"65,320.00",PUPIL PREMIUM,"SCHOOLS CAPITATION, STANDARDS FUND",5902322114,5001000024
02.10.2018,CHILDREN'S SERVICES,DOG KENNEL HILL PRIMARY SCHOOL,"35,640.00",PUPIL PREMIUM,"SCHOOLS CAPITATION, STANDARDS FUND",5902322115,5001000025
02.10.2018,CHILDREN'S SERVICES,DULWICH VILLAGE CE INFANTS SCHOOL,"10,125.00",PUPIL PREMIUM,"SCHOOLS CAPITATION, STANDARDS FUND",5902322116,5001000027
02.10.2018,CHILDREN'S SERVICES,DULWICH WOOD PRIMARY SCHOOL,"34,320.00",PUPIL PREMIUM,"SCHOOLS CAPITATION, STANDARDS FUND",5902322129,5001000042
02.10.2018,CHILDREN'S SERVICES,ENGLISH MARTYRS RC PRIMARY SCHOOL,"37,365.00",PUPIL PREMIUM,"SCHOOLS CAPITATION, STANDARDS FUND",5902322119,5001000030
02.10.2018,CHILDREN'S SERVICES,EVELINA HOSPITAL SCHOOL,"2,104.00",PUPIL PREMIUM,"SCHOOLS CAPITATION, STANDARDS FUND",5902322120,5001000031
02.10.2018,CHILDREN'S SERVICES,FRIARS PRIMARY SCHOOL,"25,740.00",PUPIL PREMIUM,"SCHOOLS CAPITATION, STANDARDS FUND",5902322122,5001000033
02.10.2018,CHILDREN'S SERVICES,GOODRICH PRIMARY SCHOOL,"49,630.00",PUPIL PREMIUM,"SCHOOLS CAPITATION, STANDARDS FUND",5902322117,5001000028
02.10.2018,CHILDREN'S SERVICES,GRANGE PRIMARY SCHOOL,"57,090.00",PUPIL PREMIUM,"SCHOOLS CAPITATION, STANDARDS FUND",5902322118,5001000029
02.10.2018,CHILDREN'S SERVICES,HAYMERLE SCHOOL,"20,460.00",PUPIL PREMIUM,"SCHOOLS CAPITATION, STANDARDS FUND",5902322131,5001000045
02.10.2018,CHILDREN'S SERVICES,HEBER PRIMARY SCHOOL,"21,450.00",PUPIL PREMIUM,"SCHOOLS CAPITATION, STANDARDS FUND",5902322123,5001000035
02.10.2018,CHILDREN'S SERVICES,HIGHSHORE SCHOOL,"14,726.00",PUPIL PREMIUM,"SCHOOLS CAPITATION, STANDARDS FUND",5902322132,5001000046
02.10.2018,CHILDREN'S SERVICES,HOLLYDALE PRIMARY SCHOOL,"34,065.00",PUPIL PREMIUM,"SCHOOLS CAPITATION, STANDARDS FUND",5902322124,5001000036
02.10.2018,CHILDREN'S SERVICES,ILDERTON PRIMARY SCHOOL,"55,270.00",PUPIL PREMIUM,"SCHOOLS CAPITATION, STANDARDS FUND",5902322125,5001000037
02.10.2018,CHILDREN'S SERVICES,IVYDALE PRIMARY SCHOOL,"40,985.00",PUPIL PREMIUM,"SCHOOLS CAPITATION, STANDARDS FUND",5902322126,5001000038
02.10.2018,CHILDREN'S SERVICES,JOHN RUSKIN PRIMARY SCHOOL,"64,914.00",PUPIL PREMIUM,"SCHOOLS CAPITATION, STANDARDS FUND",5902322127,5001000040
02.10.2018,CHILDREN'S SERVICES,KEYWORTH PRIMARY SCHOOL,"52,800.00",PUPIL PREMIUM,"SCHOOLS CAPITATION, STANDARDS FUND",5902322128,5001000041
02.10.2018,CHILDREN'S SERVICES,LYNDHURST PRIMARY SCHOOL,"35,970.00",PUPIL PREMIUM,"SCHOOLS CAPITATION, STANDARDS FUND",5902322130,5001000043
02.10.2018,CHILDREN'S SERVICES,MICHAEL FARADAY PRIMARY SCHOOL,"60,465.00",PUPIL PREMIUM,"SCHOOLS CAPITATION, STANDARDS FUND",5902322133,5001000048
02.10.2018,CHILDREN'S SERVICES,NOTRE DAME RC GIRLS SCHOOL,"75,216.00",PUPIL PREMIUM,"SCHOOLS CAPITATION, STANDARDS FUND",5902322134,5001000050
02.10.2018,CHILDREN'S SERVICES,OLIVER GOLDSMITH PRIMARY SCHOOL,"64,680.00",PUPIL PREMIUM,"SCHOOLS CAPITATION, STANDARDS FUND",5902322135,5001000051
02.10.2018,CHILDREN'S SERVICES,PETER HILLS CE SCHOOL,"21,120.00",PUPIL PREMIUM,"SCHOOLS CAPITATION, STANDARDS FUND",5902322136,5001000053
02.10.2018,CHILDREN'S SERVICES,PHOENIX PRIMARY SCHOOL,"61,125.00",PUPIL PREMIUM,"SCHOOLS CAPITATION, STANDARDS FUND",5902322121,5001000032
02.10.2018,CHILDREN'S SERVICES,PILGRIM'S WAY PRIMARY SCHOOL,"35,310.00",PUPIL PREMIUM,"SCHOOLS CAPITATION, STANDARDS FUND",5902322137,5001000054
02.10.2018,CHILDREN'S SERVICES,RIVERSIDE PRIMARY SCHOOL,"52,800.00",PUPIL PREMIUM,"SCHOOLS CAPITATION, STANDARDS FUND",5902322138,5001000056
02.10.2018,CHILDREN'S SERVICES,ROBERT BROWNING PRIMARY SCHOOL,"49,170.00",PUPIL PREMIUM,"SCHOOLS CAPITATION, STANDARDS FUND",5902322139,5001000057
02.10.2018,CHILDREN'S SERVICES,RYE OAK PRIMARY SCHOOL,"53,375.00",PUPIL PREMIUM,"SCHOOLS CAPITATION, STANDARDS FUND",5902322140,5001000059
02.10.2018,CHILDREN'S SERVICES,SNOWSFIELDS PRIMARY SCHOOL,"25,080.00",PUPIL PREMIUM,"SCHOOLS CAPITATION, STANDARDS FUND",5902322141,5001000061
02.10.2018,CHILDREN'S SERVICES,SOUTHWARK INCLUSIVE LEARNING SERVICE,"15,194.00",PUPIL PREMIUM,"SCHOOLS CAPITATION, STANDARDS FUND",5902322163,5001000105
02.10.2018,CHILDREN'S SERVICES,SOUTHWARK PARK PRIMARY SCHOOL,"39,100.00",PUPIL PREMIUM,"SCHOOLS CAPITATION, STANDARDS FUND",5902322142,5001000062
02.10.2018,CHILDREN'S SERVICES,ST ANTHONYS RC SCHOOL,"18,310.00",PUPIL PREMIUM,"SCHOOLS CAPITATION, STANDARDS FUND",5902322143,5001000064
02.10.2018,CHILDREN'S SERVICES,ST FRANCESCA CABRINI PRIMARY SCHOOL,"42,485.00",PUPIL PREMIUM,"SCHOOLS CAPITATION, STANDARDS FUND",5902322144,5001000065
02.10.2018,CHILDREN'S SERVICES,ST FRANCIS'S RC PRIMARY SCHOOL,"32,670.00",PUPIL PREMIUM,"SCHOOLS CAPITATION, STANDARDS FUND",5902322145,5001000067
02.10.2018,CHILDREN'S SERVICES,ST GEORGES CE SCHOOL,"18,725.00",PUPIL PREMIUM,"SCHOOLS CAPITATION, STANDARDS FUND",5902322147,5001000069
02.10.2018,CHILDREN'S SERVICES,ST GEORGES RC SCHOOL,"18,065.00",PUPIL PREMIUM,"SCHOOLS CAPITATION, STANDARDS FUND",5902322146,5001000068
02.10.2018,CHILDREN'S SERVICES,ST JAMES CE SCHOOL,"85,960.00",PUPIL PREMIUM,"SCHOOLS CAPITATION, STANDARDS FUND",5902322148,5001000070
02.10.2018,CHILDREN'S SERVICES,ST JAMES THE GREAT RC SCHOOL,"23,760.00",PUPIL PREMIUM,"SCHOOLS CAPITATION, STANDARDS FUND",5902322149,5001000071
02.10.2018,CHILDREN'S SERVICES,ST JOHNS & ST CLEMENTS CE SCHOOL,"26,455.00",PUPIL PREMIUM,"SCHOOLS CAPITATION, STANDARDS FUND",5902322150,5001000073
02.10.2018,CHILDREN'S SERVICES,ST JOHNS RC PRIMARY SCHOOL,"28,050.00",PUPIL PREMIUM,"SCHOOLS CAPITATION, STANDARDS FUND",5902322152,5001000075
02.10.2018,CHILDREN'S SERVICES,ST JOSEPHS CATHOLIC INFANTS SCHOOL,"11,465.00",PUPIL PREMIUM,"SCHOOLS CAPITATION, STANDARDS FUND",5902322108,5001000018
02.10.2018,CHILDREN'S SERVICES,ST JOSEPHS CATHOLIC PRIMARY SCHOOL,"18,640.00",PUPIL PREMIUM,"SCHOOLS CAPITATION, STANDARDS FUND",5902322155,5001000078
02.10.2018,CHILDREN'S SERVICES,ST JOSEPHS CATHOLIC SCHOOL,"23,100.00",PUPIL PREMIUM,"SCHOOLS CAPITATION, STANDARDS FUND",5902322153,5001000076
02.10.2018,CHILDREN'S SERVICES,ST JOSEPHS RC JUNIOR  SCHOOL,"27,635.00",PUPIL PREMIUM,"SCHOOLS CAPITATION, STANDARDS FUND",5902322107,5001000017
02.10.2018,CHILDREN'S SERVICES,ST JOSEPHS RC PRIMARY SCHOOL,"25,740.00",PUPIL PREMIUM,"SCHOOLS CAPITATION, STANDARDS FUND",5902322154,5001000077
02.10.2018,CHILDREN'S SERVICES,ST JUDES CHURCH OF ENGLAND PRIMARY,"16,830.00",PUPIL PREMIUM,"SCHOOLS CAPITATION, STANDARDS FUND",5902322109,5001000019
02.10.2018,CHILDREN'S SERVICES,ST PAULS CE SCHOOL,"44,880.00",PUPIL PREMIUM,"SCHOOLS CAPITATION, STANDARDS FUND",5902322156,5001000082
02.10.2018,CHILDREN'S SERVICES,ST PETERS CE SCHOOL,"23,345.00",PUPIL PREMIUM,"SCHOOLS CAPITATION, STANDARDS FUND",5902322157,5001000083
02.10.2018,CHILDREN'S SERVICES,ST SAVIOURS & ST OLAVES SCHOOL,"67,788.00",PUPIL PREMIUM,"SCHOOLS CAPITATION, STANDARDS FUND",5902322158,5001000084
02.10.2018,CHILDREN'S SERVICES,THE ST THOMAS THE APOSTLE COLLEGE,"70,826.00",PUPIL PREMIUM,"SCHOOLS CAPITATION, STANDARDS FUND",5902322151,5001000074
02.10.2018,CHILDREN'S SERVICES,TOWER BRIDGE PRIMARY SCHOOL,"32,010.00",PUPIL PREMIUM,"SCHOOLS CAPITATION, STANDARDS FUND",5902322160,5001000095
02.10.2018,CHILDREN'S SERVICES,TOWNSEND PRIMARY SCHOOL,"5,940.00",PUPIL PREMIUM,"SCHOOLS CAPITATION, STANDARDS FUND",5902322161,5001000096
02.10.2018,CHILDREN'S SERVICES,VICTORY SCHOOL,"22,110.00",PUPIL PREMIUM,"SCHOOLS CAPITATION, STANDARDS FUND",5902322162,5001000098
02.10.2018,CHILDREN'S SERVICES,PEARSON PUBLISHING LTD,"6,745.00",PUPIL PREMIUM CURRENT YEAR,SOFTWARE,5902322076,1000048910
02.10.2018,CHILDREN'S SERVICES,KEYS SPECIALIST RESIDENTIAL CHILDREN'S SERVICES,"21,214.20",RESIDENTIAL,RESIDENTIAL CARE,2102872217,1000081606
02.10.2018,CHILDREN'S SERVICES,THE DRIVE CARE HOMES LTD,"12,751.20",RESIDENTIAL,RESIDENTIAL CARE,2102872372,1000003889
02.10.2018,CHILDREN'S SERVICES,ADULLAM SUPPORT LTD,"4,227.60",S24 CLA,EXTERNAL AGENCIES AND BODIES,2102872238,1000081148
02.10.2018,CHILDREN'S SERVICES,ADULLAM SUPPORT LTD,"4,227.60",S24 CLA,EXTERNAL AGENCIES AND BODIES,2102872239,1000081148
02.10.2018,CHILDREN'S SERVICES,BRIDGING THE GAP,"1,925.72",S24 CLA,EXTERNAL AGENCIES AND BODIES,2102872241,1000073662
02.10.2018,CHILDREN'S SERVICES,FUTURE FOUNDATIONS LTD,"3,848.57",S24 CLA,EXTERNAL AGENCIES AND BODIES,2102872236,1000063272
02.10.2018,CHILDREN'S SERVICES,FUTURE FOUNDATIONS LTD,"3,848.57",S24 CLA,EXTERNAL AGENCIES AND BODIES,2102872242,1000063272
02.10.2018,CHILDREN'S SERVICES,FUTURE FOUNDATIONS LTD,"4,277.14",S24 CLA,EXTERNAL AGENCIES AND BODIES,2102872237,1000063272
02.10.2018,CHILDREN'S SERVICES,ACHIEVING FOR CHILDREN,"1,447.95",SCH TRANS - CONTRACT COST,RECOUPMENT,5902322062,1000077253
02.10.2018,CHILDREN'S SERVICES,ACHIEVING FOR CHILDREN,"9,122.09",SCH TRANS - CONTRACT COST,RECOUPMENT,5902322062,1000077253
02.10.2018,CHILDREN'S SERVICES,THE LUCY FAITHFULL FOUNDATION,833.34,SCHOOLS-HR TRADED SERVICE,TRAINING,5902322322,1000005641
02.10.2018,CHILDREN'S SERVICES,FUTURE FOUNDATIONS LTD,"4,277.14",SEMI INDEPENDENT,EXTERNAL AGENCIES AND BODIES,2102872225,1000063272
02.10.2018,CHILDREN'S SERVICES,FUTURE FOUNDATIONS LTD,"4,277.14",SEMI INDEPENDENT,EXTERNAL AGENCIES AND BODIES,2102872226,1000063272
02.10.2018,CHILDREN'S SERVICES,FUTURE FOUNDATIONS LTD,"4,277.14",SEMI INDEPENDENT,EXTERNAL AGENCIES AND BODIES,2102872229,1000063272
02.10.2018,CHILDREN'S SERVICES,SPORTFIT SHORT BREAK CARE LTD,"9,900.00",SEMI INDEPENDENT,EXTERNAL AGENCIES AND BODIES,2102872232,1000078113
02.10.2018,CHILDREN'S SERVICES,FUTURE FOUNDATIONS LTD,257.14,SEMI INDEPENDENT,OTHER PAYMENTS FOR CLIENTS,2102872230,1000063272
02.10.2018,CHILDREN'S SERVICES,FUTURE FOUNDATIONS LTD,257.14,SEMI INDEPENDENT,OTHER PAYMENTS FOR CLIENTS,2102872233,1000063272
02.10.2018,CHILDREN'S SERVICES,FUTURE FOUNDATIONS LTD,257.14,SEMI INDEPENDENT,OTHER PAYMENTS FOR CLIENTS,2102872235,1000063272
02.10.2018,CHILDREN'S SERVICES,AFFINITY FOSTERING SERVICES LTD,"1,692.90",STAYING PUT,EXTERNAL AGENCIES AND BODIES,2102872373,1000073184
02.10.2018,CHILDREN'S SERVICES,AFFINITY FOSTERING SERVICES LTD,"1,692.90",STAYING PUT,EXTERNAL AGENCIES AND BODIES,2102872374,1000073184
02.10.2018,CHILDREN'S SERVICES,FUTURE FOUNDATIONS LTD,"1,667.14",UNACCOMPANIED ASYLUM CHILDREN 16-17,EXTERNAL AGENCIES AND BODIES,2102872228,1000063272
02.10.2018,CHILDREN'S SERVICES,FUTURE FOUNDATIONS LTD,"4,277.14",UNACCOMPANIED ASYLUM CHILDREN 16-17,EXTERNAL AGENCIES AND BODIES,2102872227,1000063272
02.10.2018,CHILDREN'S SERVICES,FUTURE FOUNDATIONS LTD,"4,277.14",UNACCOMPANIED ASYLUM CHILDREN 16-17,EXTERNAL AGENCIES AND BODIES,2102872234,1000063272
02.10.2018,CHILDREN'S SERVICES,FUTURE FOUNDATIONS LTD,257.14,UNACCOMPANIED ASYLUM CHILDREN 16-17,OTHER PAYMENTS FOR CLIENTS,2102872221,1000063272
02.10.2018,CHILDREN'S SERVICES,FUTURE FOUNDATIONS LTD,257.14,UNACCOMPANIED ASYLUM CHILDREN 16-17,OTHER PAYMENTS FOR CLIENTS,2102872224,1000063272
02.10.2018,CHILDREN'S SERVICES,FUTURE FOUNDATIONS LTD,257.14,UNACCOMPANIED ASYLUM CHILDREN 16-17,OTHER PAYMENTS FOR CLIENTS,2102872231,1000063272
02.10.2018,COMMUNITIES,SOUTHWARK GROUP OF TENANTS ORGANISATION,"58,187.00",TENANTS FUND,EXTERNAL AGENCIES AND BODIES,5902322185,1479419
02.10.2018,CUSTOMER EXPERIENCE HGF,DIGNITY FUNERALS LTD,"14,700.00",CORONER'S,OTHER CONTRACTORS,5902322292,1000041373
02.10.2018,CUSTOMER EXPERIENCE HGF,IMPERIAL COLLEGE PROJECTS LTD,339,CORONER'S,PROFESSIONAL FEES,5902322290,1000080106
02.10.2018,CUSTOMER EXPERIENCE HGF,TLK PROPERTY & INVESTMENT LTD,"3,077.00",NIGHTLY TA (NSC),EXTERNAL AGENCIES AND BODIES,5902322231,1000065661
02.10.2018,CUSTOMER EXPERIENCE HGF,SOUTHSIDE REHABILITATION ASSN,630,REGISTRARS,CATERING MATERIALS & SUPPLIES,5902322092,1000017031
02.10.2018,ENVIRONMENT AND LEISURE,INTO SERVICES LONDON LTD,500,CAPITAL PS (LEISURE),CONST'N MAIN CONTRACT - NON CERTIFICATED,5902321539,1000059328
02.10.2018,ENVIRONMENT AND LEISURE,HARRISON DESIGN DEVELOPMENT LTD,"5,370.00",CAPITAL PS (LEISURE),CONSTRUCTION FEES  - EXTERNAL,5902322241,1000066896
02.10.2018,ENVIRONMENT AND LEISURE,STONEGROVE LIMITED,"39,703.66",CAPITAL PS (LEISURE),CONSTRUCTION FEES  - EXTERNAL,2102872418,3000001525
02.10.2018,ENVIRONMENT AND LEISURE,INTO SERVICES LONDON LTD,800,CAPITAL PS (LEISURE),CONSTRUCTION MAIN CONTRACT -CERTIFICATED,5902321538,1000059328
02.10.2018,ENVIRONMENT AND LEISURE,INTO SERVICES LONDON LTD,"2,720.00",CAPITAL PS (LEISURE),CONSTRUCTION MAIN CONTRACT -CERTIFICATED,5902321538,1000059328
02.10.2018,ENVIRONMENT DIRECTORATE,CONWAY AECOM LTD,569.53,HIGHWAY MAINTENANCE OVERHEADS,HIGHWAYS TERM CONTRACT,5902322171,1000071205
02.10.2018,ENVIRONMENT DIRECTORATE,RH ENVIRONMENTAL LTD,"2,080.00",NOISE& AIR QUALITY,EQUIPMENT PURCHASE & REPAIR,5902322300,1000079023
02.10.2018,F & C S EXCLUDING CORPORATE BUDGETS,LEXISNEXIS UK,"9,000.00",LEGAL SVCES MANAGEMENT,PROFESSIONAL FEES,5902322229,11328752
02.10.2018,F & C S EXCLUDING CORPORATE BUDGETS,WE ARE WATERLOO,"1,946.31",WATERLOO QUARTER,EXTERNAL AGENCIES AND BODIES,5902322072,1000057618
02.10.2018,HOUSING & MODERNISATION,COMMUNITY SOUTHWARK,"30,000.00",CVS & VOLUNTEERING,GRANTS,5902322066,1000018147
02.10.2018,HOUSING & MODERNISATION,ADVISING COMMUNITIES,"18,000.00",LEGAL GRANTS,EXTERNAL AGENCIES AND BODIES,5902322305,11292649
02.10.2018,HOUSING & MODERNISATION,ADVISING COMMUNITIES,"78,345.00",LEGAL GRANTS,EXTERNAL AGENCIES AND BODIES,5902322304,11292649
02.10.2018,HOUSING & MODERNISATION,SOUTHWARK CITIZENS ADVICE,"96,550.00",LEGAL GRANTS,EXTERNAL AGENCIES AND BODIES,5902322309,1874379
02.10.2018,HOUSING & MODERNISATION,SOUTHWARK LAW CENTRE,"92,400.00",LEGAL GRANTS,EXTERNAL AGENCIES AND BODIES,5902322283,1981325
02.10.2018,HOUSING & MODERNISATION,AAINA WOMEN GROUP,"8,018.25",VCS GRANTS,GRANTS,5902322199,1000002442
02.10.2018,HOUSING & MODERNISATION,AYLESBURY EVERY WOMAN'S CENTRE,"3,600.00",VCS GRANTS,GRANTS,5902322206,1000042216
02.10.2018,HOUSING & MODERNISATION,BEDE HSE,"3,475.50",VCS GRANTS,GRANTS,5902322194,11248731
02.10.2018,HOUSING & MODERNISATION,BEORMUND COMMUNITY CENTRE,"17,437.25",VCS GRANTS,GRANTS,5902322193,11048982
02.10.2018,HOUSING & MODERNISATION,BERMONDSEY COMMUNITY KITCHEN,"3,500.00",VCS GRANTS,GRANTS,5902322220,1000075477
02.10.2018,HOUSING & MODERNISATION,BLACKFRIARS SETTLEMENT,"5,574.75",VCS GRANTS,GRANTS,5902322219,1000071456
02.10.2018,HOUSING & MODERNISATION,CAMBRIDGE HOUSE & TALBOT,"3,475.50",VCS GRANTS,GRANTS,5902322195,11248874
02.10.2018,HOUSING & MODERNISATION,CRYSTAL PALACE COMM DEV TRUST,"2,264.75",VCS GRANTS,GRANTS,5902322210,1000054200
02.10.2018,HOUSING & MODERNISATION,EAST DULWICH COMMUNITY CENTRE,"1,740.00",VCS GRANTS,GRANTS,5902322191,1968633
02.10.2018,HOUSING & MODERNISATION,LATIN AMERICAN DISABLED PEOPLE PROJECT,"4,000.00",VCS GRANTS,GRANTS,5902322211,1000058588
02.10.2018,HOUSING & MODERNISATION,LATIN AMERICAN WOMEN'S RIGHTS SERVICES,"3,400.00",VCS GRANTS,GRANTS,5902322213,1000068356
02.10.2018,HOUSING & MODERNISATION,LONDON WILDLIFE TRUST,"7,968.75",VCS GRANTS,GRANTS,5902322189,1832374
02.10.2018,HOUSING & MODERNISATION,MENTAL FIGHT CLUB,"1,870.00",VCS GRANTS,GRANTS,5902322209,1000051170
02.10.2018,HOUSING & MODERNISATION,ORGANISATION OF BLIND AFRICANS & CARIBBEANS,"4,084.25",VCS GRANTS,GRANTS,5902322198,1000002281
02.10.2018,HOUSING & MODERNISATION,PAXTON GREEN TIME BANK,"3,600.00",VCS GRANTS,GRANTS,5902322216,1000070648
02.10.2018,HOUSING & MODERNISATION,PECAN LTD,"13,292.00",VCS GRANTS,GRANTS,5902322196,11263114
02.10.2018,HOUSING & MODERNISATION,SOMALI INTEGRATION & DEVELOPMENT ASSOCIATION,"13,222.50",VCS GRANTS,GRANTS,5902322192,11048946
02.10.2018,HOUSING & MODERNISATION,SOUTHWARK CITIZENS ADVICE,"5,600.00",VCS GRANTS,GRANTS,5902322190,1874379
02.10.2018,HOUSING & MODERNISATION,SOUTHWARK PENSIONERS CENTRE,"28,355.25",VCS GRANTS,GRANTS,5902322203,1000027831
02.10.2018,HOUSING & MODERNISATION,SOUTHWARK TRAVELLERS' ACTION,"5,750.00",VCS GRANTS,GRANTS,5902322222,1000077795
02.10.2018,HOUSING & MODERNISATION,ST FAITHS COMMUNITY CENTRE,"5,115.25",VCS GRANTS,GRANTS,5902322184,1039446
02.10.2018,HOUSING & MODERNISATION,SURREY DOCKS FARM PROVIDENT SOCIETY,"10,678.25",VCS GRANTS,GRANTS,5902322197,1000000958
02.10.2018,HOUSING & MODERNISATION,SWK DAY CTR FOR ASYLUM SEEKERS,"11,330.25",VCS GRANTS,GRANTS,5902322205,1000040491
02.10.2018,HOUSING & MODERNISATION,THE BIKE PROJECT,"3,750.00",VCS GRANTS,GRANTS,5902322221,1000077217
02.10.2018,HOUSING & MODERNISATION,THE MANNA CENTRE,"13,750.00",VCS GRANTS,GRANTS,5902322208,1000048508
02.10.2018,HOUSING & MODERNISATION,TIME & TALENTS ASSOCIATION,"4,543.25",VCS GRANTS,GRANTS,5902322187,1757632
02.10.2018,HOUSING & MODERNISATION,WORKING WITH MEN,"3,600.00",VCS GRANTS,GRANTS,5902322207,1000046010
02.10.2018,HOUSING GENERAL FUND,INTERSERVE (FACILITIES MANAGEMENT),"15,342.10",CAPITAL PS (REGEN),CONSTRUCTION,2102872405,3000000166
02.10.2018,HOUSING HRA,AJMADAPTIONS LTD,650,CAPITAL PS (HRA),CONST'N MAIN CONTRACT - NON CERTIFICATED,2102872398,3000002056
02.10.2018,HOUSING HRA,AJMADAPTIONS LTD,"2,150.00",CAPITAL PS (HRA),CONST'N MAIN CONTRACT - NON CERTIFICATED,2102872399,3000002056
02.10.2018,HOUSING HRA,C&C BUILDERS LTD,"5,870.00",CAPITAL PS (HRA),CONST'N MAIN CONTRACT - NON CERTIFICATED,2102872403,3000001986
02.10.2018,HOUSING HRA,C&C BUILDERS LTD,"7,105.00",CAPITAL PS (HRA),CONST'N MAIN CONTRACT - NON CERTIFICATED,2102872402,3000001986
02.10.2018,HOUSING HRA,HIGHER ELEVATION LTD,"2,794.38",CAPITAL PS (HRA),CONST'N MAIN CONTRACT - NON CERTIFICATED,2102872188,3000001900
02.10.2018,HOUSING HRA,POTTER RAPER AND PARTNERS,"1,850.21",CAPITAL PS (HRA),CONSTRUCTION FEES  - EXTERNAL,5902322069,1009369
02.10.2018,HOUSING HRA,POTTER RAPER AND PARTNERS,"3,098.69",CAPITAL PS (HRA),CONSTRUCTION FEES  - EXTERNAL,5902322068,1009369
02.10.2018,HOUSING HRA,A & E ELKINS LTD,"11,126.39",CAPITAL PS (HRA),CONSTRUCTION MAIN CONTRACT -CERTIFICATED,2102872180,4012501
02.10.2018,HOUSING HRA,A & E ELKINS LTD,"64,533.70",CAPITAL PS (HRA),CONSTRUCTION MAIN CONTRACT -CERTIFICATED,2102872178,4012501
02.10.2018,HOUSING HRA,A & E ELKINS LTD,"248,409.36",CAPITAL PS (HRA),CONSTRUCTION MAIN CONTRACT -CERTIFICATED,2102872179,4012501
02.10.2018,HOUSING HRA,ENGIE REGENERATION (APOLLO) LTD,"67,377.82",CAPITAL PS (HRA),CONSTRUCTION MAIN CONTRACT -CERTIFICATED,2102872404,4000449
02.10.2018,HOUSING HRA,NIBLOCK (BUILDERS) LTD,"24,957.79",CAPITAL PS (HRA),CONSTRUCTION MAIN CONTRACT -CERTIFICATED,2102872429,3000000235
02.10.2018,HOUSING HRA,SALTASH ENTERPRISES LTD,"109,539.00",CAPITAL PS (HRA),CONSTRUCTION MAIN CONTRACT -CERTIFICATED,2102872176,4013605
02.10.2018,HOUSING HRA,SALTASH ENTERPRISES LTD,"184,504.83",CAPITAL PS (HRA),CONSTRUCTION MAIN CONTRACT -CERTIFICATED,2102872174,4013605
02.10.2018,HOUSING HRA,STANDAGE & CO LTD,"19,619.64",CAPITAL PS (HRA),CONSTRUCTION MAIN CONTRACT -CERTIFICATED,2102872413,4002817
02.10.2018,HOUSING HRA,STANDAGE & CO LTD,"33,685.99",CAPITAL PS (HRA),CONSTRUCTION MAIN CONTRACT -CERTIFICATED,2102872411,4002817
02.10.2018,HOUSING HRA,DUCTCLEAN (UK) LTD,"76,474.73",DUCTCLEAN,MANUAL CREDITORS,2102872185,3000001635
02.10.2018,LEISURE DIRECTORATE,OCO LIMITED,605.08,ACCOMODATION,PLANNED MAINTENANCE,5902322176,1006066
02.10.2018,LEISURE DIRECTORATE,BRESLIN CONSTRUCTION LTD,"8,960.00",ARTS GRANTS,BUILDING R&M,2102872182,3000001948
02.10.2018,LEISURE DIRECTORATE,ASKEWS & HOLTS LIBRARY SERVICES LTD,963.26,STOCK SERVICES,BOOKS & PUBLICATIONS,5902322087,1494168
02.10.2018,LEISURE DIRECTORATE,COMPLETE TREE CARE LTD,731.25,TREES O'HEADS,CONSULTANTS SERVICES,5902322088,1000041410
02.10.2018,LEISURE DIRECTORATE,COMPLETE TREE CARE LTD,731.25,TREES O'HEADS,CONSULTANTS SERVICES,5902322089,1000041410
02.10.2018,MODERNISATION HGF,BOLD MEDIA LTD,750,SUPPORT SERVICES,RECRUITMENT ADVERTISING,5902322082,1000081585
02.10.2018,MODERNISATION HGF,VOICE AT THE TABLE LTD,"2,500.00",WOMEN�S NETWORK,TRAINING,5902322170,1000080018
02.10.2018,PLANNING AND TRANSPORT,BERMONDSEY COMMUNITY NURSERY,"11,000.00",MUSICIANS INC LTD,PROFESSIONAL FEES,5902322279,1151885
02.10.2018,PLANNING AND TRANSPORT,BUTLER HEGARTY ARCHITECTS LTD,700,PECKHAM TOWNSCAPE HERITAGE INITIATIVE,MISCELLANEOUS EXPENSES,5902322168,1000077437
02.10.2018,REGENERATION,FIELD FISHER WATERHOUSE,"1,690.00",22 SHAND STREET,PROFESSIONAL FEES,5902322077,1000047449
02.10.2018,REGENERATION,JAN KATTEIN ARCHITECTS LTD,"3,553.33",MASTER PLAN-H/WAY & TRANS INTERCHANGE,PROFESSIONAL FEES,5902322166,1000070627
02.10.2018,RESIDENT SERVICES,TRIANGLE FIRE SYSTEMS LTD,390,EXTRA CARE,SECURITY EQUIPMENT F&F,5902322178,1000081443
02.10.2018,SCRUTINY,THE CAMDEN SOCIETY (CATERING),284.7,SCRUTINY,REFRESHMENTS FOR MEETINGS,5902322073,1000075365
02.10.2018,SOUTHWARK BUILDING SERVICES,A & E ELKINS LTD,"16,791.82",BUSINESS SUPPORT,OTHER CONTRACTORS,2102872427,4012501
02.10.2018,SOUTHWARK BUILDING SERVICES,A & E ELKINS LTD,"17,331.54",BUSINESS SUPPORT,OTHER CONTRACTORS,2102872428,4012501
02.10.2018,SOUTHWARK BUILDING SERVICES,BUDMAX CONSTRUCTION LTD,"16,965.39",BUSINESS SUPPORT,OTHER CONTRACTORS,2102872422,3000001936
02.10.2018,SOUTHWARK BUILDING SERVICES,DIAMOND SCAFFOLDING (SOUTH EAST),"7,449.25",BUSINESS SUPPORT,OTHER CONTRACTORS,2102872420,3000001625
02.10.2018,SOUTHWARK BUILDING SERVICES,FRANKLYN SHAW ASSOCIATES LTD,"7,992.64",BUSINESS SUPPORT,OTHER CONTRACTORS,2102872425,3000001465
02.10.2018,SOUTHWARK BUILDING SERVICES,LOCKESLEYS LTD,"1,568.99",BUSINESS SUPPORT,OTHER CONTRACTORS,2102872424,3000001480
02.10.2018,SOUTHWARK BUILDING SERVICES,MASHER BROTHERS LTD,"12,971.81",BUSINESS SUPPORT,OTHER CONTRACTORS,2102872421,3000001100
02.10.2018,SOUTHWARK BUILDING SERVICES,SMITHY DECORATING,"5,927.06",BUSINESS SUPPORT,OTHER CONTRACTORS,2102872423,3000002050
02.10.2018,SOUTHWARK BUILDING SERVICES,TMG TRADING LTD,"13,012.52",BUSINESS SUPPORT,OTHER CONTRACTORS,2102872426,3000002073
02.10.2018,SOUTHWARK BUILDING SERVICES,LONDON TOOLS LIMITED,576,STORES/LOGISTICS,CREDITORS -GR/IR CLEARING ACCOUNT,5902322248,1000003017
02.10.2018,SOUTHWARK BUILDING SERVICES,LONDON TOOLS LIMITED,775,STORES/LOGISTICS,CREDITORS -GR/IR CLEARING ACCOUNT,5902322244,1000003017
02.10.2018,SOUTHWARK BUILDING SERVICES,LONDON TOOLS LIMITED,787.5,STORES/LOGISTICS,CREDITORS -GR/IR CLEARING ACCOUNT,5902322244,1000003017
02.10.2018,SOUTHWARK BUILDING SERVICES,LONDON TOOLS LIMITED,"1,200.00",STORES/LOGISTICS,CREDITORS -GR/IR CLEARING ACCOUNT,5902322244,1000003017
02.10.2018,SOUTHWARK BUILDING SERVICES,LONDON TOOLS LIMITED,"1,200.00",STORES/LOGISTICS,CREDITORS -GR/IR CLEARING ACCOUNT,5902322248,1000003017
02.10.2018,SOUTHWARK BUILDING SERVICES,LONDON TOOLS LIMITED,"1,440.00",STORES/LOGISTICS,CREDITORS -GR/IR CLEARING ACCOUNT,5902322244,1000003017
03.10.2018,ASSET MANAGEMENT,T BROWN & SONS (HEATING) LTD,"4,160.00",ENG CONTRACTS (NORTH),PLANNED MAINTENANCE,5902322447,1000040191
03.10.2018,ASSET MANAGEMENT,T BROWN & SONS (HEATING) LTD,"4,160.00",ENG CONTRACTS (NORTH),PLANNED MAINTENANCE,5902322457,1000040191
03.10.2018,BERMONDSEY AND ROTHERHITHE COMMUNITY COUNCIL,MIRROR MIRROR EDUCATION,"3,025.00",MAKE AND TAKE @ BERMONDSEY SQUARE,GRANT,CHEQUE PAYMENT,CHEQUE PAYMENT
03.10.2018,CENTRAL FUNCTIONS,PARIS SMITH AND RANDALL SOLICITORS,312.44,HOME OWNERSHIP,LEGAL FEES & COURT COSTS,5902322456,1000008059
03.10.2018,CENTRAL FUNCTIONS,TFL TELESALES / OYSTER FULFILMENT,415,OPERATIONAL TEAM,PUBLIC TRANSPORT,5902322347,1000059727
03.10.2018,CHILDREN AND ADULT,SWECO,"2,167.50",CAPITAL PS (EDUCATION),CONSTRUCTION MAIN CONTRACT -CERTIFICATED,5902322387,1000080378
03.10.2018,CHILDREN'S SERVICES,ACTION FOR CHILDREN,825,ADOPTION PLACEMENTS & INTER AGENCY,EXTERNAL AGENCIES AND BODIES,5902322486,1000049964
03.10.2018,CHILDREN'S SERVICES,ACTION FOR CHILDREN,825,ADOPTION PLACEMENTS & INTER AGENCY,EXTERNAL AGENCIES AND BODIES,5902322487,1000049964
03.10.2018,CHILDREN'S SERVICES,CARAVELLO CATERING,268.5,ADOPTION REFORM GRANT (PART B),EXTERNAL AGENCIES AND BODIES,5902322460,1000014797
03.10.2018,CHILDREN'S SERVICES,INTEGRATED SERVICES PROGRAMME,"5,396.10",AGENCY FOSTERING,EXTERNAL AGENCIES AND BODIES,5902322512,1642068
03.10.2018,CHILDREN'S SERVICES,CIRCLES TRAINING & CONSULTANCY LTD,"3,154.00",ASSISSTANT DIRECTOR (CHILDREN),EXTERNAL AGENCIES AND BODIES,5902322473,1000080950
03.10.2018,CHILDREN'S SERVICES,LONDON COUNCILS,"15,000.00",ASSISSTANT DIRECTOR (CHILDREN),SUBSCRIPTIONS,5902322479,11237079
03.10.2018,CHILDREN'S SERVICES,CAMBRIDGE HOUSE & TALBOT,"4,586.75",CAMBRIDGE HOUSE,EXTERNAL AGENCIES AND BODIES,5902322463,1139414
03.10.2018,CHILDREN'S SERVICES,CONTACT PROFESSIONALS,475,CARE GRPS  4 TO 6,OTHER PAYMENTS FOR CLIENTS,5902322442,1000057263
03.10.2018,CHILDREN'S SERVICES,CONTACT PROFESSIONALS,475,CARE GRPS  4 TO 6,OTHER PAYMENTS FOR CLIENTS,5902322444,1000057263
03.10.2018,CHILDREN'S SERVICES,CONTACT PROFESSIONALS,475,CARE GRPS  4 TO 6,OTHER PAYMENTS FOR CLIENTS,5902322449,1000057263
03.10.2018,CHILDREN'S SERVICES,CONTACT PROFESSIONALS,475,CARE GRPS  4 TO 6,OTHER PAYMENTS FOR CLIENTS,5902322451,1000057263
03.10.2018,CHILDREN'S SERVICES,CONTACT PROFESSIONALS,271.7,CARE PRACTICE GROUP SET C,OTHER PAYMENTS FOR CLIENTS,5902322435,1000057263
03.10.2018,CHILDREN'S SERVICES,CONTACT PROFESSIONALS,441.04,CARE PRACTICE GROUP SET C,OTHER PAYMENTS FOR CLIENTS,5902322433,1000057263
03.10.2018,CHILDREN'S SERVICES,CONTACT PROFESSIONALS,"1,326.00",CARE PRACTICE GROUP SET C,OTHER PAYMENTS FOR CLIENTS,5902322436,1000057263
03.10.2018,CHILDREN'S SERVICES,CONTRACTOR UMBRELLA LTD,360,CARE PRACTICE GROUP SET C,PROFESSIONAL FEES,5902322492,1000081637
03.10.2018,CHILDREN'S SERVICES,REDACTED PERSONAL DATA,500,DISABILITY & HIV,ADDITIONAL PAYMENTS TO AGENCIES/CARERS,REDACTED,REDACTED
03.10.2018,CHILDREN'S SERVICES,REDACTED PERSONAL DATA,353.57,DISABILITY & HIV,PAYMENTS TO CARERS,REDACTED,REDACTED
03.10.2018,CHILDREN'S SERVICES,REDACTED PERSONAL DATA,910.39,DISABILITY & HIV,PAYMENTS TO CARERS,REDACTED,REDACTED
03.10.2018,CHILDREN'S SERVICES,OPTIMUM FOCUS COMPANY LTD,343.01,FAMILY GROUP CONFERENCES,EXTERNAL AGENCIES AND BODIES,5902322427,1000081322
03.10.2018,CHILDREN'S SERVICES,OPTIMUM FOCUS COMPANY LTD,591.5,FAMILY GROUP CONFERENCES,EXTERNAL AGENCIES AND BODIES,5902322425,1000081322
03.10.2018,CHILDREN'S SERVICES,OPTIMUM FOCUS COMPANY LTD,"1,009.67",FAMILY GROUP CONFERENCES,EXTERNAL AGENCIES AND BODIES,5902322427,1000081322
03.10.2018,CHILDREN'S SERVICES,REDACTED PERSONAL DATA,300,FURTHER EDUCATION SUPPORT,CLIENT TRANSPORT,REDACTED,REDACTED
03.10.2018,CHILDREN'S SERVICES,REDACTED PERSONAL DATA,300,FURTHER EDUCATION SUPPORT,CLIENT TRANSPORT,REDACTED,REDACTED
03.10.2018,CHILDREN'S SERVICES,REDACTED PERSONAL DATA,300,FURTHER EDUCATION SUPPORT,CLIENT TRANSPORT,REDACTED,REDACTED
03.10.2018,CHILDREN'S SERVICES,REDACTED PERSONAL DATA,300,FURTHER EDUCATION SUPPORT,CLIENT TRANSPORT,REDACTED,REDACTED
03.10.2018,CHILDREN'S SERVICES,REDACTED PERSONAL DATA,300,FURTHER EDUCATION SUPPORT,CLIENT TRANSPORT,REDACTED,REDACTED
03.10.2018,CHILDREN'S SERVICES,REDACTED PERSONAL DATA,263.96,RESIDENCE ORDERS,PAYMENTS TO CARERS,REDACTED,REDACTED
03.10.2018,CHILDREN'S SERVICES,REDACTED PERSONAL DATA,264.16,RESIDENCE ORDERS,PAYMENTS TO CARERS,REDACTED,REDACTED
03.10.2018,CHILDREN'S SERVICES,REDACTED PERSONAL DATA,269.08,RESIDENCE ORDERS,PAYMENTS TO CARERS,REDACTED,REDACTED
03.10.2018,CHILDREN'S SERVICES,REDACTED PERSONAL DATA,269.08,RESIDENCE ORDERS,PAYMENTS TO CARERS,REDACTED,REDACTED
03.10.2018,CHILDREN'S SERVICES,REDACTED PERSONAL DATA,276.1,RESIDENCE ORDERS,PAYMENTS TO CARERS,REDACTED,REDACTED
03.10.2018,CHILDREN'S SERVICES,CONTACT PROFESSIONALS,665,S & FAM SUPP - PRAC GRP B SET 17-19,OTHER PAYMENTS FOR CLIENTS,5902322453,1000057263
03.10.2018,CHILDREN'S SERVICES,FAMILY FOSTERING LTD,"3,011.43",S24 CLA,EXTERNAL AGENCIES AND BODIES,5902322477,1000075179
03.10.2018,CHILDREN'S SERVICES,JORDAN XAVIER LTD,771.43,S24 CLA,EXTERNAL AGENCIES AND BODIES,5902322466,1000081470
03.10.2018,CHILDREN'S SERVICES,SAFEHOUSES LTD,"3,103.20",S24 CLA,EXTERNAL AGENCIES AND BODIES,5902322428,1000053994
03.10.2018,CHILDREN'S SERVICES,SP HOMES LTD,"1,490.10",S24 CLA,EXTERNAL AGENCIES AND BODIES,5902322429,1000080326
03.10.2018,CHILDREN'S SERVICES,REDACTED PERSONAL DATA,383.5,SCH TRANS - CONTRACT COST,OTHER PAYMENTS FOR CLIENTS,REDACTED,REDACTED
03.10.2018,CHILDREN'S SERVICES,REDACTED PERSONAL DATA,394.2,SCH TRANS - CONTRACT COST,OTHER PAYMENTS FOR CLIENTS,REDACTED,REDACTED
03.10.2018,CHILDREN'S SERVICES,REDACTED PERSONAL DATA,416,SCH TRANS - CONTRACT COST,OTHER PAYMENTS FOR CLIENTS,REDACTED,REDACTED
03.10.2018,CHILDREN'S SERVICES,REDACTED PERSONAL DATA,416,SCH TRANS - CONTRACT COST,OTHER PAYMENTS FOR CLIENTS,REDACTED,REDACTED
03.10.2018,CHILDREN'S SERVICES,REDACTED PERSONAL DATA,468,SCH TRANS - CONTRACT COST,OTHER PAYMENTS FOR CLIENTS,REDACTED,REDACTED
03.10.2018,CHILDREN'S SERVICES,REDACTED PERSONAL DATA,624,SCH TRANS - CONTRACT COST,OTHER PAYMENTS FOR CLIENTS,REDACTED,REDACTED
03.10.2018,CHILDREN'S SERVICES,REDACTED PERSONAL DATA,994.5,SCH TRANS - CONTRACT COST,OTHER PAYMENTS FOR CLIENTS,REDACTED,REDACTED
03.10.2018,CHILDREN'S SERVICES,REDACTED PERSONAL DATA,"1,049.54",SCH TRANS - CONTRACT COST,OTHER PAYMENTS FOR CLIENTS,REDACTED,REDACTED
03.10.2018,CHILDREN'S SERVICES,REDACTED PERSONAL DATA,"1,961.51",SCH TRANS - CONTRACT COST,OTHER PAYMENTS FOR CLIENTS,REDACTED,REDACTED
03.10.2018,CHILDREN'S SERVICES,JORDAN XAVIER LTD,578.57,SEMI INDEPENDENT,EXTERNAL AGENCIES AND BODIES,5902322468,1000081470
03.10.2018,CHILDREN'S SERVICES,JORDAN XAVIER LTD,775,SEMI INDEPENDENT,EXTERNAL AGENCIES AND BODIES,5902322471,1000081470
03.10.2018,CHILDREN'S SERVICES,JORDAN XAVIER LTD,"1,992.86",SEMI INDEPENDENT,EXTERNAL AGENCIES AND BODIES,5902322471,1000081470
03.10.2018,CHILDREN'S SERVICES,THE WIN PROJECT LTD,895,SEMI INDEPENDENT,OTHER PAYMENTS FOR CLIENTS,5902322518,1000080710
03.10.2018,CHILDREN'S SERVICES,ARC COMMUNITY TRUSTEES,650,SPECIAL GUARDIANSHIP,EXTERNAL AGENCIES AND BODIES,5902322467,1000046206
03.10.2018,CHILDREN'S SERVICES,REDACTED PERSONAL DATA,919.63,SPECIAL GUARDIANSHIP,EXTERNAL AGENCIES AND BODIES,REDACTED,REDACTED
03.10.2018,CHILDREN'S SERVICES,REDACTED PERSONAL DATA,"2,027.71",SPECIAL GUARDIANSHIP,EXTERNAL AGENCIES AND BODIES,REDACTED,REDACTED
03.10.2018,CHILDREN'S SERVICES,REDACTED PERSONAL DATA,269.08,SPECIAL GUARDIANSHIP,PAYMENTS TO CARERS,REDACTED,REDACTED
03.10.2018,CHILDREN'S SERVICES,REDACTED PERSONAL DATA,269.08,SPECIAL GUARDIANSHIP,PAYMENTS TO CARERS,REDACTED,REDACTED
03.10.2018,CHILDREN'S SERVICES,REDACTED PERSONAL DATA,276.1,SPECIAL GUARDIANSHIP,PAYMENTS TO CARERS,REDACTED,REDACTED
03.10.2018,CHILDREN'S SERVICES,REDACTED PERSONAL DATA,303.97,SPECIAL GUARDIANSHIP,PAYMENTS TO CARERS,REDACTED,REDACTED
03.10.2018,CHILDREN'S SERVICES,REDACTED PERSONAL DATA,342.45,SPECIAL GUARDIANSHIP,PAYMENTS TO CARERS,REDACTED,REDACTED
03.10.2018,CHILDREN'S SERVICES,REDACTED PERSONAL DATA,343.05,SPECIAL GUARDIANSHIP,PAYMENTS TO CARERS,REDACTED,REDACTED
03.10.2018,CHILDREN'S SERVICES,REDACTED PERSONAL DATA,356.15,SPECIAL GUARDIANSHIP,PAYMENTS TO CARERS,REDACTED,REDACTED
03.10.2018,CHILDREN'S SERVICES,REDACTED PERSONAL DATA,389.34,SPECIAL GUARDIANSHIP,PAYMENTS TO CARERS,REDACTED,REDACTED
03.10.2018,CHILDREN'S SERVICES,REDACTED PERSONAL DATA,403.04,SPECIAL GUARDIANSHIP,PAYMENTS TO CARERS,REDACTED,REDACTED
03.10.2018,CHILDREN'S SERVICES,REDACTED PERSONAL DATA,525,SPECIAL GUARDIANSHIP,PAYMENTS TO CARERS,REDACTED,REDACTED
03.10.2018,CHILDREN'S SERVICES,REDACTED PERSONAL DATA,525,SPECIAL GUARDIANSHIP,PAYMENTS TO CARERS,REDACTED,REDACTED
03.10.2018,CHILDREN'S SERVICES,REDACTED PERSONAL DATA,525,SPECIAL GUARDIANSHIP,PAYMENTS TO CARERS,REDACTED,REDACTED
03.10.2018,CHILDREN'S SERVICES,REDACTED PERSONAL DATA,854.55,SPECIAL GUARDIANSHIP,PAYMENTS TO CARERS,REDACTED,REDACTED
03.10.2018,CHILDREN'S SERVICES,INTEGRATED SERVICES PROGRAMME,"2,334.00",STAYING PUT,EXTERNAL AGENCIES AND BODIES,5902322506,1642068
03.10.2018,CHILDREN'S SERVICES,LIVING ACCOMODATION LTD,"3,702.00",TEMPORARY ACCOMMODATION,EXTERNAL AGENCIES AND BODIES,5902322516,1000063985
03.10.2018,CHILDREN'S SERVICES,NORBURY PROPERTY SERVICES (LONDON) LTD,"1,440.00",TEMPORARY ACCOMMODATION,EXTERNAL AGENCIES AND BODIES,5902322423,1000075566
03.10.2018,CHILDREN'S SERVICES,REDACTED PERSONAL DATA,300,UASC FURTHER EDUCATION SUPPORT,CLIENT TRANSPORT,REDACTED,REDACTED
03.10.2018,CHILDREN'S SERVICES,REDACTED PERSONAL DATA,300,UASC FURTHER EDUCATION SUPPORT,CLIENT TRANSPORT,REDACTED,REDACTED
03.10.2018,CHILDREN'S SERVICES,REDACTED PERSONAL DATA,300,UASC FURTHER EDUCATION SUPPORT,CLIENT TRANSPORT,REDACTED,REDACTED
03.10.2018,CHILDREN'S SERVICES,REDACTED PERSONAL DATA,300,UASC FURTHER EDUCATION SUPPORT,CLIENT TRANSPORT,REDACTED,REDACTED
03.10.2018,CHILDREN'S SERVICES,REDACTED PERSONAL DATA,300,UASC FURTHER EDUCATION SUPPORT,CLIENT TRANSPORT,REDACTED,REDACTED
03.10.2018,CHILDREN'S SERVICES,FUTURE FOUNDATIONS LTD,"1,667.14",UASC SECTION 24,EXTERNAL AGENCIES AND BODIES,5902322504,1000063272
03.10.2018,CHILDREN'S SERVICES,REDACTED PERSONAL DATA,300,UNIVERSITY SUPPORT,CLIENT TRANSPORT,REDACTED,REDACTED
03.10.2018,CHILDREN'S SERVICES,REDACTED PERSONAL DATA,300,UNIVERSITY SUPPORT,CLIENT TRANSPORT,REDACTED,REDACTED
03.10.2018,CHILDREN'S SERVICES,REDACTED PERSONAL DATA,300,UNIVERSITY SUPPORT,CLIENT TRANSPORT,REDACTED,REDACTED
03.10.2018,CHILDREN'S SERVICES,REDACTED PERSONAL DATA,300,UNIVERSITY SUPPORT,CLIENT TRANSPORT,REDACTED,REDACTED
03.10.2018,CHILDREN'S SERVICES,REDACTED PERSONAL DATA,350,UNIVERSITY SUPPORT,OTHER PAYMENTS FOR CLIENTS,REDACTED,REDACTED
03.10.2018,CHILDREN'S SERVICES,REDACTED PERSONAL DATA,"2,450.00",UNIVERSITY SUPPORT,OTHER PAYMENTS FOR CLIENTS,REDACTED,REDACTED
03.10.2018,CHILDREN'S SERVICES,REDACTED PERSONAL DATA,"2,450.00",UNIVERSITY SUPPORT,OTHER PAYMENTS FOR CLIENTS,REDACTED,REDACTED
03.10.2018,CHILDREN'S SERVICES,REDACTED PERSONAL DATA,"2,950.00",UNIVERSITY SUPPORT,OTHER PAYMENTS FOR CLIENTS,REDACTED,REDACTED
03.10.2018,CHILDREN'S SERVICES,REDACTED PERSONAL DATA,"2,950.00",UNIVERSITY SUPPORT,OTHER PAYMENTS FOR CLIENTS,REDACTED,REDACTED
03.10.2018,CUSTOMER EXPERIENCE HGF,GALAXY LETTINGS LTD,"78,180.00",NIGHTLY TA (NSC),EXTERNAL AGENCIES AND BODIES,5902322525,1000055897
03.10.2018,CUSTOMER EXPERIENCE HGF,KINDLY PROPERTIES,"27,144.05",NIGHTLY TA (NSC),EXTERNAL AGENCIES AND BODIES,5902322330,1000060734
03.10.2018,CUSTOMER EXPERIENCE HGF,ANTHONIA TAMUNO-OMI,431.57,PRIVATE SECTOR LEASING,EXTERNAL AGENCIES AND BODIES,2102872846,1000076327
03.10.2018,CUSTOMER EXPERIENCE HGF,ANTHONIA TAMUNO-OMI,"1,200.00",PRIVATE SECTOR LEASING,EXTERNAL AGENCIES AND BODIES,2102872847,1000076327
03.10.2018,CUSTOMER EXPERIENCE HGF,JACQUELINE CHARLES,"1,838.57",PSL (SOCIAL LETTINGS),EXTERNAL AGENCIES AND BODIES,2102872848,1000081414
03.10.2018,CUSTOMER EXPERIENCE HGF,JACQUELINE CHARLES,"3,000.00",PSL (SOCIAL LETTINGS),EXTERNAL AGENCIES AND BODIES,2102872849,1000081414
03.10.2018,CUSTOMER EXPERIENCE HGF,DENHAN INTERNATIONAL LTD,"20,240.00",PSL PLACEMENTS,EXTERNAL AGENCIES AND BODIES,5902322341,1000075567
03.10.2018,CUSTOMER EXPERIENCE HGF,DENHAN INTERNATIONAL LTD,"180,464.85",PSL PLACEMENTS,EXTERNAL AGENCIES AND BODIES,5902322339,1000075567
03.10.2018,ENVIRONMENT AND LEISURE,COMMUNITY LINKS TRADING LTD,375,CAPITAL PS (LEISURE),CONSTRUCTION FEES,5902322454,1000049897
03.10.2018,ENVIRONMENT AND LEISURE,BELL PHILLIPS ARCHITECTS LTD,"10,957.25",CAPITAL PS (LEISURE),CONSTRUCTION FEES  - EXTERNAL,5902322377,1000069307
03.10.2018,ENVIRONMENT DIRECTORATE,ARNOLD CLARK VEHICLE MANAGEMENT,251.34,CAR LEASING CTRL A/C,VEHICLE LEASING CHARGES,5902322503,1000079116
03.10.2018,ENVIRONMENT DIRECTORATE,ARNOLD CLARK VEHICLE MANAGEMENT,268.25,CAR LEASING CTRL A/C,VEHICLE LEASING CHARGES,5902322503,1000079116
03.10.2018,ENVIRONMENT DIRECTORATE,LONDON TOOLS LIMITED,280,ENGINEERING CRAFTS,MATERIALS,5902322363,1000003017
03.10.2018,ENVIRONMENT DIRECTORATE,LONDON TOOLS LIMITED,"1,700.00",ENGINEERING CRAFTS,MATERIALS,5902322362,1000003017
03.10.2018,ENVIRONMENT DIRECTORATE,GREENHAM TRADING LTD,968.89,ESTATE CLEANING-GENERAL,MATERIALS,5902322480,1000006610
03.10.2018,ENVIRONMENT DIRECTORATE,WALWORTH GARDEN SERVICES,"6,608.92",MANAGEMENT TEAM,GROUNDS MAINTENANCE,5902322388,1000047083
03.10.2018,ENVIRONMENT DIRECTORATE,OFFICE DEPOT UK LTD,486.52,MANAGEMENT TEAM,STATIONERY,5902322399,1109426
03.10.2018,ENVIRONMENT DIRECTORATE,LONDON TOOLS LIMITED,270,PARKS TECH UNIT (PREMISES),MATERIALS,5902322368,1000003017
03.10.2018,ENVIRONMENT DIRECTORATE,SOUTHWARK NEWSPAPER LTD,300,STREET WORKS OVERHEADS,MARKETING & PUBLICITY SERVICES,5902322501,1556957
03.10.2018,HOUSING & MODERNISATION,POHWER,"5,600.40",NHS COMPLAINTS ADVOCACY,EXTERNAL AGENCIES AND BODIES,5902322472,1000070508
03.10.2018,HOUSING STRATEGY AND OPTIONS,SOS OFFICE SUPPLIES LTD,359,HOMELESS & HOUSING OPTIONS MGT,STATIONERY,5902322421,1000027032
03.10.2018,HOUSING STRATEGY AND OPTIONS,SOS OFFICE SUPPLIES LTD,"1,130.48",HOMELESS & HOUSING OPTIONS MGT,STATIONERY,5902322495,1000027032
03.10.2018,HOUSING STRATEGY AND OPTIONS,SOS OFFICE SUPPLIES LTD,565.11,HOMELESSNESS TRAINING ACADEMY,STATIONERY,5902322396,1000027032
03.10.2018,LEISURE DIRECTORATE,KENT COUNTY COUNCIL - LASER,"2,193.90",PECKHAM LIBRARY,ELECTRICITY,5902322403,1000012926
03.10.2018,LEISURE DIRECTORATE,INCENTIVE QAS LTD,"1,330.17",TEMPORARY NEWINGTON,PREMISES CLEANING,5902322511,1000074675
03.10.2018,MODERNISATION HGF,LEGIONELLA CONTROL INTERNATIONAL LTD,"5,465.00",CFM OPERATIONAL BUDGET,TRAINING,5902322343,1000081505
03.10.2018,MODERNISATION HGF,INTERSERVE (FACILITIES MANAGEMENT),"23,818.04",FM SERVICES BY INTERSERVE,BUILDING R&M,5902322394,1000070792
03.10.2018,MODERNISATION HGF,SHARPE PRITCHARD LLP,"4,649.00",IT MANAGEMENT,CONSULTANTS SERVICES,5902322524,1790085
03.10.2018,MODERNISATION HGF,KIER FACILITIES SERVICES LTD,"4,428.27",PLANNED FM SERVICES BY KIER,BUILDING R&M,5902322383,1000040603
03.10.2018,MODERNISATION HGF,COMENSURA LTD,"-443,270.56",WEEKLY PAYMENTS,AGENCY STAFF,5902322652,1000051261
03.10.2018,MODERNISATION HGF,COMENSURA LTD,"443,270.56",WEEKLY PAYMENTS,AGENCY STAFF,5902322643,1000051261
03.10.2018,PLANNING AND TRANSPORT,SOUTHWARK NEWSPAPER LTD,840,DEVELOPMENT CONTROL ADMINSTRATION,MARKETING & PUBLICITY SERVICES,5902322488,1556957
03.10.2018,PUBLIC HEALTH,ROYAL BOROUGH OF GREENWICH,"10,000.00",PH DIRECTOR'S TEAM,OTHER EXTERNAL BODIES GRANTS & CONTRIBUTIONS,5902322443,1000030426
03.10.2018,REGENERATION,THE MILO WLADEK CO LTD,"3,000.00",BLACKFRIARS ROAD PROJECT,MARKETING & PUBLICITY SERVICES,5902322482,1000080082
03.10.2018,RESIDENT SERVICES,RUSKIN PARK HOUSE LTD,413.83,CAMBERWELL,RENTS,5902322412,1000038111
03.10.2018,RESIDENT SERVICES,RUSKIN PARK HOUSE LTD,429.56,CAMBERWELL,RENTS,5902322412,1000038111
03.10.2018,RESIDENT SERVICES,RUSKIN PARK HOUSE LTD,843.39,CAMBERWELL,RENTS,5902322416,1000038111
03.10.2018,RESIDENT SERVICES,RUSKIN PARK HOUSE LTD,843.39,CAMBERWELL,RENTS,5902322419,1000038111
03.10.2018,RESIDENT SERVICES,BRITISH GAS TRADING LTD,255.02,TA HOSTELS,ELECTRICITY,5902322422,1000055977
03.10.2018,RESIDENT SERVICES,THAMES WATER UTILITIES LTD,"6,697.12",TA HOSTELS,WATER,5902322404,1630755
03.10.2018,REVENUES AND BENEFITS,ZALARIS CONSULTING UK LTD,292.5,SAP PAYROLL,CONSULTANTS SERVICES,5902322445,1000062505
03.10.2018,REVENUES AND BENEFITS,ZALARIS CONSULTING UK LTD,425,SAP PAYROLL,CONSULTANTS SERVICES,5902322445,1000062505
03.10.2018,SOUTHWARK BUILDING SERVICES,LONDON TOOLS LIMITED,285,R & M OVERHEADS,MATERIALS,5902322366,1000003017
03.10.2018,SOUTHWARK BUILDING SERVICES,LONDON TOOLS LIMITED,516,R & M OVERHEADS,MATERIALS,5902322366,1000003017
03.10.2018,SOUTHWARK BUILDING SERVICES,LONDON TOOLS LIMITED,315,STORES/LOGISTICS,BSU STORES AUTO POSTINGS,5902322372,1000003017
03.10.2018,SOUTHWARK BUILDING SERVICES,LONDON TOOLS LIMITED,350,STORES/LOGISTICS,CREDITORS -GR/IR CLEARING ACCOUNT,5902322371,1000003017
03.10.2018,SOUTHWARK BUILDING SERVICES,LONDON TOOLS LIMITED,350,STORES/LOGISTICS,CREDITORS -GR/IR CLEARING ACCOUNT,5902322371,1000003017
03.10.2018,SOUTHWARK BUILDING SERVICES,LONDON TOOLS LIMITED,"1,050.00",STORES/LOGISTICS,CREDITORS -GR/IR CLEARING ACCOUNT,5902322364,1000003017
03.10.2018,SOUTHWARK BUILDING SERVICES,LONDON TOOLS LIMITED,"1,850.00",STORES/LOGISTICS,CREDITORS -GR/IR CLEARING ACCOUNT,5902322365,1000003017
03.10.2018,SOUTHWARK BUILDING SERVICES,LONDON TOOLS LIMITED,"2,520.00",STORES/LOGISTICS,CREDITORS -GR/IR CLEARING ACCOUNT,5902322367,1000003017
03.10.2018,SOUTHWARK BUILDING SERVICES,LONDON TOOLS LIMITED,"2,520.00",STORES/LOGISTICS,CREDITORS -GR/IR CLEARING ACCOUNT,5902322372,1000003017
03.10.2018,SOUTHWARK BUILDING SERVICES,LONDON TOOLS LIMITED,"2,995.00",STORES/LOGISTICS,CREDITORS -GR/IR CLEARING ACCOUNT,5902322365,1000003017
03.10.2018,SOUTHWARK BUILDING SERVICES,LONDON TOOLS LIMITED,"3,780.00",STORES/LOGISTICS,CREDITORS -GR/IR CLEARING ACCOUNT,5902322367,1000003017
03.10.2018,SOUTHWARK BUILDING SERVICES,LONDON TOOLS LIMITED,"3,780.00",STORES/LOGISTICS,CREDITORS -GR/IR CLEARING ACCOUNT,5902322372,1000003017
03.10.2018,SOUTHWARK BUILDING SERVICES,LONDON TOOLS LIMITED,"4,329.00",STORES/LOGISTICS,CREDITORS -GR/IR CLEARING ACCOUNT,5902322370,1000003017
03.10.2018,SOUTHWARK BUILDING SERVICES,PILKINGTON UK LTD,261,STORES/LOGISTICS,CREDITORS -GR/IR CLEARING ACCOUNT,5902322373,11224519
03.10.2018,SOUTHWARK BUILDING SERVICES,PILKINGTON UK LTD,485.4,STORES/LOGISTICS,CREDITORS -GR/IR CLEARING ACCOUNT,5902322373,11224519
03.10.2018,SOUTHWARK BUILDING SERVICES,PILKINGTON UK LTD,"1,561.14",STORES/LOGISTICS,CREDITORS -GR/IR CLEARING ACCOUNT,5902322375,11224519
03.10.2018,SOUTHWARK BUILDING SERVICES,PILKINGTON UK LTD,"1,996.26",STORES/LOGISTICS,CREDITORS -GR/IR CLEARING ACCOUNT,5902322375,11224519
04.10.2018,ADULT SOCIAL CARE,REDACTED PERSONAL DATA,332.4,APPOINTEESHIPS,OTHER PAYMENTS FOR CLIENTS,REDACTED,REDACTED
04.10.2018,ADULT SOCIAL CARE,REDACTED PERSONAL DATA,400,APPOINTEESHIPS,OTHER PAYMENTS FOR CLIENTS,REDACTED,REDACTED
04.10.2018,ADULT SOCIAL CARE,HORNCASTLE CARE CENTRE,-402.6,LD LTS 18-64,"MAND STATUTORY CHARGES, NURSING",2102872025,1000060228
04.10.2018,ADULT SOCIAL CARE,HORNCASTLE CARE CENTRE,"7,777.68",PHY LTS 18-64,NURSING PLACEMENTS FEES,2102872026,1000060228
04.10.2018,ADULT SOCIAL CARE,ORCHARD LODGE NURSING  HOME,"8,071.36",PHY LTS 18-64,NURSING PLACEMENTS FEES,2102872106,1000033380
04.10.2018,ADULT SOCIAL CARE,HOPELIT UK LTD,"3,500.00",PHY LTS 65+,NURSING PLACEMENTS FEES,2102872105,1000003678
04.10.2018,ADULT SOCIAL CARE,CONTACT PROFESSIONALS,418,SPECIALIST CARE,SECTION 17 PAYMENTS TO AGENCIES/CARERS,5902322569,1000057263
04.10.2018,ADULT SOCIAL CARE,CONTACT PROFESSIONALS,418,SPECIALIST CARE,SECTION 17 PAYMENTS TO AGENCIES/CARERS,5902322575,1000057263
04.10.2018,ADULT SOCIAL CARE,CONTACT PROFESSIONALS,418,SPECIALIST CARE,SECTION 17 PAYMENTS TO AGENCIES/CARERS,5902322576,1000057263
04.10.2018,ADULT SOCIAL CARE,CONTACT PROFESSIONALS,418,SPECIALIST CARE,SECTION 17 PAYMENTS TO AGENCIES/CARERS,5902322577,1000057263
04.10.2018,ADULT SOCIAL CARE,CONTACT PROFESSIONALS,418,SPECIALIST CARE,SECTION 17 PAYMENTS TO AGENCIES/CARERS,5902322579,1000057263
04.10.2018,ADULT SOCIAL CARE,CONTACT PROFESSIONALS,437,SPECIALIST CARE,SECTION 17 PAYMENTS TO AGENCIES/CARERS,5902322574,1000057263
04.10.2018,ASSET MANAGEMENT,UNIVERSA LAW LTD,780,DISREPAIR,BUILDING R&M,5902322242,1000081466
04.10.2018,ASSET MANAGEMENT,UNIVERSA LAW LTD,"3,100.00",DISREPAIR,BUILDING R&M,5902322242,1000081466
04.10.2018,ASSET MANAGEMENT,SANDERSONS BUILDING SERVICES LTD,452.86,R&M CONTRACTS (SOUTH),BUILDING R&M,2102872857,3000002065
04.10.2018,ASSET MANAGEMENT,SANDERSONS BUILDING SERVICES LTD,693.52,R&M CONTRACTS (SOUTH),BUILDING R&M,2102872859,3000002065
04.10.2018,ASSET MANAGEMENT,SANDERSONS BUILDING SERVICES LTD,941.88,R&M CONTRACTS (SOUTH),BUILDING R&M,2102872854,3000002065
04.10.2018,ASSET MANAGEMENT,SANDERSONS BUILDING SERVICES LTD,"1,640.58",R&M CONTRACTS (SOUTH),BUILDING R&M,2102872860,3000002065
04.10.2018,ASSET MANAGEMENT,SANDERSONS BUILDING SERVICES LTD,"3,181.12",R&M CONTRACTS (SOUTH),BUILDING R&M,2102872856,3000002065
04.10.2018,ASSET MANAGEMENT,SANDERSONS BUILDING SERVICES LTD,"3,452.53",R&M CONTRACTS (SOUTH),BUILDING R&M,2102872858,3000002065
04.10.2018,ASSET MANAGEMENT,SANDERSONS BUILDING SERVICES LTD,"4,064.02",R&M CONTRACTS (SOUTH),BUILDING R&M,2102872851,3000002065
04.10.2018,ASSET MANAGEMENT,SANDERSONS BUILDING SERVICES LTD,"4,157.00",R&M CONTRACTS (SOUTH),BUILDING R&M,2102872853,3000002065
04.10.2018,ASSET MANAGEMENT,SANDERSONS BUILDING SERVICES LTD,"4,672.31",R&M CONTRACTS (SOUTH),BUILDING R&M,2102872855,3000002065
04.10.2018,ASSET MANAGEMENT,SANDERSONS BUILDING SERVICES LTD,"7,110.20",R&M CONTRACTS (SOUTH),BUILDING R&M,2102872852,3000002065
04.10.2018,CENTRAL FUNCTIONS,HISTORIC ENGLAND,"1,541.00",COMMERCIAL PROPERTIES,COSTS RECOVERED,5902322676,1000081621
04.10.2018,CENTRAL FUNCTIONS,KENT COUNTY COUNCIL - LASER,"12,695.93",HEATING ACCOUNT,ELECTRICITY,5902321721,1000012926
04.10.2018,CENTRAL FUNCTIONS,KENT COUNTY COUNCIL - LASER,"36,652.71",HEATING ACCOUNT,ELECTRICITY,5902321721,1000012926
04.10.2018,CENTRAL FUNCTIONS,KENT COUNTY COUNCIL - LASER,"7,846.06",HEATING ACCOUNT,GAS,5902321723,1000012926
04.10.2018,CENTRAL FUNCTIONS,KENT COUNTY COUNCIL - LASER,"240,198.20",HEATING ACCOUNT,GAS,5902321723,1000012926
04.10.2018,CHIEF EXECUTIVE,PROJECT CENTRE LTD,850,CAPITAL PS (REGEN),CONSTRUCTION MAIN CONTRACT,5902321833,1000072621
04.10.2018,CHIEF EXECUTIVE'S OFFICE,J C CONSULTANT SERVICES LTD,"8,000.00",CHIEF EXEC'S OFFICE,GRANTS,5902322681,1000042476
04.10.2018,CHILDREN AND ADULT,LONDON SOUTH BANK UNIVERSITY,"128,552.50",CAPITAL PS (EDUCATION),CAPITAL GRANTS,5902322638,1000051012
04.10.2018,CHILDREN AND ADULT,LONDON SOUTH BANK UNIVERSITY,"1,223,806.34",CAPITAL PS (EDUCATION),CAPITAL GRANTS,5902322641,1000051012
04.10.2018,CHILDREN AND ADULT,FAITHFUL & GOULD,-701.46,CAPITAL PS (EDUCATION),CONSTRUCTION FEES,5902322843,1000061390
04.10.2018,CHILDREN AND ADULT,FAITHFUL & GOULD,701.46,CAPITAL PS (EDUCATION),CONSTRUCTION FEES,5902320599,1000061390
04.10.2018,CHILDREN'S SERVICES,REDACTED PERSONAL DATA,750,ADOPTION PLACEMENTS & INTER AGENCY,PAYMENTS TO CARERS,REDACTED,REDACTED
04.10.2018,CHILDREN'S SERVICES,COMPASS FOSTERING LONDON LTD,"2,964.25",AGENCY FOSTERING,EXTERNAL AGENCIES AND BODIES,2102872887,1000057908
04.10.2018,CHILDREN'S SERVICES,DIVERSITY FOSTER CARE LTD,"3,976.16",AGENCY FOSTERING,EXTERNAL AGENCIES AND BODIES,2102872873,1000081399
04.10.2018,CHILDREN'S SERVICES,DIVERSITY FOSTER CARE LTD,"3,976.16",AGENCY FOSTERING,EXTERNAL AGENCIES AND BODIES,2102872879,1000081399
04.10.2018,CHILDREN'S SERVICES,FOSTERING FOR YOU LTD,"3,165.69",AGENCY FOSTERING,EXTERNAL AGENCIES AND BODIES,2102872874,1000080380
04.10.2018,CHILDREN'S SERVICES,FOSTERING FOR YOU LTD,"3,165.69",AGENCY FOSTERING,EXTERNAL AGENCIES AND BODIES,2102872878,1000080380
04.10.2018,CHILDREN'S SERVICES,FOSTERING FOR YOU LTD,"3,332.31",AGENCY FOSTERING,EXTERNAL AGENCIES AND BODIES,2102872877,1000080380
04.10.2018,CHILDREN'S SERVICES,FOSTERING FOR YOU LTD,"3,332.31",AGENCY FOSTERING,EXTERNAL AGENCIES AND BODIES,2102872880,1000080380
04.10.2018,CHILDREN'S SERVICES,FOSTERING FOR YOU LTD,"3,332.31",AGENCY FOSTERING,EXTERNAL AGENCIES AND BODIES,2102872882,1000080380
04.10.2018,CHILDREN'S SERVICES,GREATER LONDON FOSTERING,"3,116.40",AGENCY FOSTERING,EXTERNAL AGENCIES AND BODIES,2102872883,1000029184
04.10.2018,CHILDREN'S SERVICES,GREATER LONDON FOSTERING,"3,180.00",AGENCY FOSTERING,EXTERNAL AGENCIES AND BODIES,2102872889,1000029184
04.10.2018,CHILDREN'S SERVICES,GREATER LONDON FOSTERING,"3,180.00",AGENCY FOSTERING,EXTERNAL AGENCIES AND BODIES,2102872891,1000029184
04.10.2018,CHILDREN'S SERVICES,GREATER LONDON FOSTERING,"3,515.61",AGENCY FOSTERING,EXTERNAL AGENCIES AND BODIES,2102872871,1000029184
04.10.2018,CHILDREN'S SERVICES,GREATER LONDON FOSTERING,"3,531.15",AGENCY FOSTERING,EXTERNAL AGENCIES AND BODIES,2102872870,1000029184
04.10.2018,CHILDREN'S SERVICES,GREATER LONDON FOSTERING,"4,281.30",AGENCY FOSTERING,EXTERNAL AGENCIES AND BODIES,2102872885,1000029184
04.10.2018,CHILDREN'S SERVICES,GREATER LONDON FOSTERING,"4,495.50",AGENCY FOSTERING,EXTERNAL AGENCIES AND BODIES,2102872881,1000029184
04.10.2018,CHILDREN'S SERVICES,SWIIS FOSTER CARE LTD,697.97,AGENCY FOSTERING,EXTERNAL AGENCIES AND BODIES,2102872876,1000069633
04.10.2018,CHILDREN'S SERVICES,LOREN KRISH,364.5,CARE GRPS  4 TO 6,EXTERNAL AGENCIES AND BODIES,5902322462,1000081708
04.10.2018,CHILDREN'S SERVICES,LOREN KRISH,484.5,CARE GRPS  4 TO 6,EXTERNAL AGENCIES AND BODIES,5902322458,1000081708
04.10.2018,CHILDREN'S SERVICES,REDACTED PERSONAL DATA,624,CARE GRPS  4 TO 6,OTHER PAYMENTS FOR CLIENTS,REDACTED,REDACTED
04.10.2018,CHILDREN'S SERVICES,CONTACT PROFESSIONALS,663,CARE PRACTICE GROUP SET C,OTHER PAYMENTS FOR CLIENTS,5902322568,1000057263
04.10.2018,CHILDREN'S SERVICES,ACTIVE RECRUITMENT SEN LTD,950,CENTRAL COSTS - SEN,CONTRIBUTION TO PROVISIONS (TP PAYMENTS),5902322549,1000078380
04.10.2018,CHILDREN'S SERVICES,ACTIVE RECRUITMENT SEN LTD,950,CENTRAL COSTS - SEN,CONTRIBUTION TO PROVISIONS (TP PAYMENTS),5902322551,1000078380
04.10.2018,CHILDREN'S SERVICES,LONDON EARLY YEARS FOUNDATION,720,CHILDRENS CENTRE,OTHER SUBSISTENCE & CONFERENCE EXPENSES,5902322710,1000077919
04.10.2018,CHILDREN'S SERVICES,INTERPRETING DIRECT CO (UK) LTD,"7,913.00",FINANCE,INTERPRETING SERVICES,5902322567,1000070133
04.10.2018,CHILDREN'S SERVICES,RYE OAK PRIMARY SCHOOL,"17,808.00",MATERNITY COVER,SCHOOLS CAPITATION,2102873039,5001000059
04.10.2018,CHILDREN'S SERVICES,SNOWSFIELDS PRIMARY SCHOOL,"16,154.00",MATERNITY COVER,SCHOOLS CAPITATION,2102873046,5001000061
04.10.2018,CHILDREN'S SERVICES,ST JOHNS & ST CLEMENTS CE SCHOOL,"3,167.00",MATERNITY COVER,SCHOOLS CAPITATION,2102873045,5001000073
04.10.2018,CHILDREN'S SERVICES,TOWER BRIDGE PRIMARY SCHOOL,"5,056.00",MATERNITY COVER,SCHOOLS CAPITATION,2102873047,5001000095
04.10.2018,CHILDREN'S SERVICES,TOWER BRIDGE PRIMARY SCHOOL,"15,479.00",MATERNITY COVER,SCHOOLS CAPITATION,2102873048,5001000095
04.10.2018,CHILDREN'S SERVICES,MEDIA SERVICES FOR EDUCATION,"1,497.50",PRIMARY ACHIEVEMENT,PRINTING,5902322550,11005338
04.10.2018,CHILDREN'S SERVICES,AMBITIOUS ABOUT AUTISM,311.67,PUPIL PREMIUM,"SCHOOLS CAPITATION, STANDARDS FUND",2102873042,1000035784
04.10.2018,CHILDREN'S SERVICES,AMBITIOUS ABOUT AUTISM,311.67,PUPIL PREMIUM,"SCHOOLS CAPITATION, STANDARDS FUND",2102873044,1000035784
04.10.2018,CHILDREN'S SERVICES,AMBITIOUS ABOUT AUTISM,440,PUPIL PREMIUM,"SCHOOLS CAPITATION, STANDARDS FUND",2102873043,1000035784
04.10.2018,CHILDREN'S SERVICES,CREATING CARE CHOICES LTD,"15,000.00",RESIDENTIAL,RESIDENTIAL CARE,2102872866,1000076738
04.10.2018,CHILDREN'S SERVICES,PRESTIGE ADOLESCENT CARE & EDUCATION LTD,"16,040.33",RESIDENTIAL,RESIDENTIAL CARE,2102872864,1000077596
04.10.2018,CHILDREN'S SERVICES,STONELAKE LONDON LTD,"23,760.00",RESIDENTIAL,RESIDENTIAL CARE,2102872868,1000080075
04.10.2018,CHILDREN'S SERVICES,ROTHERHITHE PRIMARY SCHOOL,"170,000.00",ROTHERHITHE PRIMARY SCHOOL,EARLY YEARS - 3 AND 4 YEAR OLDS,2102873038,5001000058
04.10.2018,CHILDREN'S SERVICES,CARE R US LTD,"2,541.42",S24 CLA,EXTERNAL AGENCIES AND BODIES,2102872897,1000053515
04.10.2018,CHILDREN'S SERVICES,FAMILY FOSTERING LTD,"2,914.20",S24 CLA,EXTERNAL AGENCIES AND BODIES,5902322566,1000075179
04.10.2018,CHILDREN'S SERVICES,FINEFAIR LTD,"1,632.90",S24 CLA,EXTERNAL AGENCIES AND BODIES,2102872895,1000075570
04.10.2018,CHILDREN'S SERVICES,FINEFAIR LTD,"1,632.90",S24 CLA,EXTERNAL AGENCIES AND BODIES,2102872903,1000075570
04.10.2018,CHILDREN'S SERVICES,IDEAL CARE SOLUTIONS LTD,"1,885.71",S24 CLA,EXTERNAL AGENCIES AND BODIES,2102872899,1000080804
04.10.2018,CHILDREN'S SERVICES,PLUS ONE LTD,"1,375.09",S24 CLA,EXTERNAL AGENCIES AND BODIES,5902322562,1000013874
04.10.2018,CHILDREN'S SERVICES,TLK PROPERTY & INVESTMENT LTD,"1,080.00",S24 CLA,EXTERNAL AGENCIES AND BODIES,2102872893,1000065661
04.10.2018,CHILDREN'S SERVICES,REDACTED PERSONAL DATA,322,SCH TRANS - CONTRACT COST,OTHER PAYMENTS FOR CLIENTS,REDACTED,REDACTED
04.10.2018,CHILDREN'S SERVICES,REDACTED PERSONAL DATA,513,SCH TRANS - CONTRACT COST,OTHER PAYMENTS FOR CLIENTS,REDACTED,REDACTED
04.10.2018,CHILDREN'S SERVICES,PULSE HEALTHCARE LTD,299,SCH TRANS - CONTRACT COST,RECOUPMENT,5902321643,1000035063
04.10.2018,CHILDREN'S SERVICES,HOLIBROOK HOUSE LTD,"4,385.71",SEMI INDEPENDENT,EXTERNAL AGENCIES AND BODIES,2102872907,1000067873
04.10.2018,CHILDREN'S SERVICES,HOLIBROOK HOUSE LTD,"7,471.43",SEMI INDEPENDENT,EXTERNAL AGENCIES AND BODIES,2102872909,1000067873
04.10.2018,CHILDREN'S SERVICES,HOLIBROOK HOUSE LTD,"7,950.00",SEMI INDEPENDENT,EXTERNAL AGENCIES AND BODIES,2102872911,1000067873
04.10.2018,CHILDREN'S SERVICES,SYDNEY CARE LTD,"12,835.71",SEMI INDEPENDENT,EXTERNAL AGENCIES AND BODIES,2102872913,1000081598
04.10.2018,CHILDREN'S SERVICES,GLS EDUCATIONAL SUPPLIES LTD,"2,077.47",SUMMERHOUSE - EX416 - 5015232,STATIONERY,5902322699,1318282
04.10.2018,CHILDREN'S SERVICES,GOOSE GREEN PRIMARY AND NURSERY SCHOOL,"7,081.80",TRADE UNIONS,SCHOOLS CAPITATION,2102873040,1000070613
04.10.2018,CHILDREN'S SERVICES,KINGSDALE FOUNDATION SCHOOL,"5,646.30",TRADE UNIONS,SCHOOLS CAPITATION,2102873041,1000065405
04.10.2018,CHILDREN'S SERVICES,REDACTED PERSONAL DATA,300,UNIVERSITY SUPPORT,CLIENT TRANSPORT,REDACTED,REDACTED
04.10.2018,CHILDREN'S SERVICES,REDACTED PERSONAL DATA,300,UNIVERSITY SUPPORT,CLIENT TRANSPORT,REDACTED,REDACTED
04.10.2018,CHILDREN'S SERVICES,REDACTED PERSONAL DATA,300,UNIVERSITY SUPPORT,CLIENT TRANSPORT,REDACTED,REDACTED
04.10.2018,CHILDREN'S SERVICES,REDACTED PERSONAL DATA,300,UNIVERSITY SUPPORT,CLIENT TRANSPORT,REDACTED,REDACTED
04.10.2018,CHILDREN'S SERVICES,REDACTED PERSONAL DATA,300,UNIVERSITY SUPPORT,CLIENT TRANSPORT,REDACTED,REDACTED
04.10.2018,CHILDREN'S SERVICES,CAMBRIDGE BRUNSWICK PARTNERSHIP LTD,"1,750.00",UNIVERSITY SUPPORT,OTHER PAYMENTS FOR CLIENTS,5902322583,1000081679
04.10.2018,CHILDREN'S SERVICES,REDACTED PERSONAL DATA,366.66,UNIVERSITY SUPPORT,OTHER PAYMENTS FOR CLIENTS,REDACTED,REDACTED
04.10.2018,CHILDREN'S SERVICES,REDACTED PERSONAL DATA,700,UNIVERSITY SUPPORT,OTHER PAYMENTS FOR CLIENTS,REDACTED,REDACTED
04.10.2018,CHILDREN'S SERVICES,REDACTED PERSONAL DATA,700,UNIVERSITY SUPPORT,OTHER PAYMENTS FOR CLIENTS,REDACTED,REDACTED
04.10.2018,CHILDREN'S SERVICES,REDACTED PERSONAL DATA,800,UNIVERSITY SUPPORT,OTHER PAYMENTS FOR CLIENTS,REDACTED,REDACTED
04.10.2018,CHILDREN'S SERVICES,REDACTED PERSONAL DATA,"1,200.00",UNIVERSITY SUPPORT,OTHER PAYMENTS FOR CLIENTS,REDACTED,REDACTED
04.10.2018,CHILDREN'S SERVICES,REDACTED PERSONAL DATA,"2,550.00",UNIVERSITY SUPPORT,OTHER PAYMENTS FOR CLIENTS,REDACTED,REDACTED
04.10.2018,COMMUNITIES,APPLEGARTH HOUSE COOPERATIVE LTD,927.48,APPLEGARTH HOUSE CO-OP,M&M ALLOWANCE CO-OPS,5902322732,1296074
04.10.2018,COMMUNITIES,APPLEGARTH HOUSE COOPERATIVE LTD,"19,552.00",APPLEGARTH HOUSE CO-OP,M&M ALLOWANCE CO-OPS,5902322729,1296074
04.10.2018,CUSTOMER EXPERIENCE,TEAMSPORT INDOOR KARTING,652.5,COMPLAINTS,MISCELLANEOUS EXPENSES,5902322613,1000075438
04.10.2018,CUSTOMER EXPERIENCE HGF,IMPERIAL COLLEGE PROJECTS LTD,312,CORONER'S,PROFESSIONAL FEES,5902322609,1000080106
04.10.2018,CUSTOMER EXPERIENCE HGF,IMPERIAL COLLEGE PROJECTS LTD,312,CORONER'S,PROFESSIONAL FEES,5902322610,1000080106
04.10.2018,CUSTOMER EXPERIENCE HGF,IMPERIAL COLLEGE PROJECTS LTD,316,CORONER'S,PROFESSIONAL FEES,5902322615,1000080106
04.10.2018,CUSTOMER EXPERIENCE HGF,IMPERIAL COLLEGE PROJECTS LTD,324,CORONER'S,PROFESSIONAL FEES,5902322617,1000080106
04.10.2018,CUSTOMER EXPERIENCE HGF,IMPERIAL COLLEGE PROJECTS LTD,352,CORONER'S,PROFESSIONAL FEES,5902322624,1000080106
04.10.2018,CUSTOMER EXPERIENCE HGF,IMPERIAL COLLEGE PROJECTS LTD,368,CORONER'S,PROFESSIONAL FEES,5902322611,1000080106
04.10.2018,CUSTOMER EXPERIENCE HGF,IMPERIAL COLLEGE PROJECTS LTD,384,CORONER'S,PROFESSIONAL FEES,5902322620,1000080106
04.10.2018,CUSTOMER EXPERIENCE HGF,IMPERIAL COLLEGE PROJECTS LTD,508,CORONER'S,PROFESSIONAL FEES,5902322616,1000080106
04.10.2018,CUSTOMER EXPERIENCE HGF,IMPERIAL COLLEGE PROJECTS LTD,524,CORONER'S,PROFESSIONAL FEES,5902322622,1000080106
04.10.2018,CUSTOMER EXPERIENCE HGF,IMPERIAL COLLEGE PROJECTS LTD,560,CORONER'S,PROFESSIONAL FEES,5902322625,1000080106
04.10.2018,CUSTOMER EXPERIENCE HGF,SG PATH LTD,595.9,CORONER'S,PROFESSIONAL FEES,5902322724,1000077883
04.10.2018,CUSTOMER EXPERIENCE HGF,EDEN ESTATES LONDON LTD,"34,736.00",NIGHTLY TA (NSC),EXTERNAL AGENCIES AND BODIES,5902322582,1000061217
04.10.2018,CUSTOMER EXPERIENCE HGF,FINEFAIR LTD,"49,157.99",NIGHTLY TA (NSC),EXTERNAL AGENCIES AND BODIES,5902322573,1000075570
04.10.2018,CUSTOMER EXPERIENCE HGF,K3 PROPERTY MANAGEMENT LTD,"19,533.00",NIGHTLY TA (NSC),EXTERNAL AGENCIES AND BODIES,5902322555,1000068219
04.10.2018,CUSTOMER EXPERIENCE HGF,LIVING ACCOMODATION LTD,"5,715.00",NIGHTLY TA (NSC),EXTERNAL AGENCIES AND BODIES,5902322537,1000063985
04.10.2018,CUSTOMER EXPERIENCE HGF,SHUTTLEWORTH (UK) LTD,"50,949.00",NIGHTLY TA (NSC),EXTERNAL AGENCIES AND BODIES,5902322672,1000056468
04.10.2018,ENVIRONMENT AND LEISURE,BRITISH GEOLOGICAL SURVEY,370.8,CAPITAL PS (LEISURE),CONSTR'N SUB CONTRACT - NON CERTIFICATED,5902322650,1000076940
04.10.2018,ENVIRONMENT AND LEISURE,CONWAY AECOM LTD,"7,643.21",CAPITAL PS (LEISURE),CONSTR'N SUB CONTRACT - NON CERTIFICATED,2102873021,3000001595
04.10.2018,ENVIRONMENT AND LEISURE,CONWAY AECOM LTD,"13,884.09",CAPITAL PS (LEISURE),CONSTR'N SUB CONTRACT - NON CERTIFICATED,2102873022,3000001595
04.10.2018,ENVIRONMENT AND LEISURE,MERCURY POWER LTD,"19,832.11",CAPITAL PS (LEISURE),"PLANT, MACHINERY & EQUIPMENT ACQUISITION",2102873020,3000002076
04.10.2018,ENVIRONMENT DIRECTORATE,ARNOLD CLARK VEHICLE MANAGEMENT,278.72,CAR LEASING CTRL A/C,VEHICLE LEASING CHARGES,5902322561,1000079116
04.10.2018,ENVIRONMENT DIRECTORATE,ARNOLD CLARK VEHICLE MANAGEMENT,297.4,CAR LEASING CTRL A/C,VEHICLE LEASING CHARGES,5902322561,1000079116
04.10.2018,ENVIRONMENT DIRECTORATE,ARNOLD CLARK VEHICLE MANAGEMENT,327.27,CAR LEASING CTRL A/C,VEHICLE LEASING CHARGES,5902322528,1000079116
04.10.2018,ENVIRONMENT DIRECTORATE,ARNOLD CLARK VEHICLE MANAGEMENT,327.35,CAR LEASING CTRL A/C,VEHICLE LEASING CHARGES,5902322528,1000079116
04.10.2018,ENVIRONMENT DIRECTORATE,AUTOMOTIVE LEASING,734.86,CAR LEASING CTRL A/C,VEHICLE LEASING CHARGES,5902322639,11014756
04.10.2018,ENVIRONMENT DIRECTORATE,AUTOMOTIVE LEASING,"1,147.10",CAR LEASING CTRL A/C,VEHICLE LEASING CHARGES,5902322640,11014756
04.10.2018,ENVIRONMENT DIRECTORATE,AUTOMOTIVE LEASING,"1,220.76",CAR LEASING CTRL A/C,VEHICLE LEASING CHARGES,5902322640,11014756
04.10.2018,ENVIRONMENT DIRECTORATE,TRANSPORT FOR LONDON,"2,190.50",COMMERCIAL VEH CTRL A/C,CONGESTION CHARGE,5902322653,1000023986
04.10.2018,ENVIRONMENT DIRECTORATE,AUTOMOTIVE LEASING,595,COMMERCIAL VEH CTRL A/C,HIRED VEHICLES,5902322687,11014756
04.10.2018,ENVIRONMENT DIRECTORATE,AUTOMOTIVE LEASING,932.75,COMMERCIAL VEH CTRL A/C,HIRED VEHICLES,5902322685,11014756
04.10.2018,ENVIRONMENT DIRECTORATE,AUTOMOTIVE LEASING,"1,074.40",COMMERCIAL VEH CTRL A/C,HIRED VEHICLES,5902322727,11014756
04.10.2018,ENVIRONMENT DIRECTORATE,AUTOMOTIVE LEASING,"1,500.72",COMMERCIAL VEH CTRL A/C,HIRED VEHICLES,5902322723,11014756
04.10.2018,ENVIRONMENT DIRECTORATE,AUTOMOTIVE LEASING,"1,960.85",COMMERCIAL VEH CTRL A/C,HIRED VEHICLES,5902322703,11014756
04.10.2018,ENVIRONMENT DIRECTORATE,AUTOMOTIVE LEASING,"2,009.95",COMMERCIAL VEH CTRL A/C,HIRED VEHICLES,5902322704,11014756
04.10.2018,ENVIRONMENT DIRECTORATE,AUTOMOTIVE LEASING,"2,058.90",COMMERCIAL VEH CTRL A/C,HIRED VEHICLES,5902322682,11014756
04.10.2018,ENVIRONMENT DIRECTORATE,AUTOMOTIVE LEASING,"2,107.90",COMMERCIAL VEH CTRL A/C,HIRED VEHICLES,5902322688,11014756
04.10.2018,ENVIRONMENT DIRECTORATE,AUTOMOTIVE LEASING,"2,157.00",COMMERCIAL VEH CTRL A/C,HIRED VEHICLES,5902322721,11014756
04.10.2018,ENVIRONMENT DIRECTORATE,CLOSE BROTHERS VEHICLE HIRE LTD,276,COMMERCIAL VEH CTRL A/C,HIRED VEHICLES,5902322647,1000074394
04.10.2018,ENVIRONMENT DIRECTORATE,CLOSE BROTHERS VEHICLE HIRE LTD,288,COMMERCIAL VEH CTRL A/C,HIRED VEHICLES,5902322648,1000074394
04.10.2018,ENVIRONMENT DIRECTORATE,CLOSE BROTHERS VEHICLE HIRE LTD,288,COMMERCIAL VEH CTRL A/C,HIRED VEHICLES,5902322649,1000074394
04.10.2018,ENVIRONMENT DIRECTORATE,CLOSE BROTHERS VEHICLE HIRE LTD,288,COMMERCIAL VEH CTRL A/C,HIRED VEHICLES,5902322654,1000074394
04.10.2018,ENVIRONMENT DIRECTORATE,CLOSE BROTHERS VEHICLE HIRE LTD,288,COMMERCIAL VEH CTRL A/C,HIRED VEHICLES,5902322655,1000074394
04.10.2018,ENVIRONMENT DIRECTORATE,CLOSE BROTHERS VEHICLE HIRE LTD,288,COMMERCIAL VEH CTRL A/C,HIRED VEHICLES,5902322656,1000074394
04.10.2018,ENVIRONMENT DIRECTORATE,CLOSE BROTHERS VEHICLE HIRE LTD,392.4,COMMERCIAL VEH CTRL A/C,HIRED VEHICLES,5902322658,1000074394
04.10.2018,ENVIRONMENT DIRECTORATE,CLOSE BROTHERS VEHICLE HIRE LTD,449.6,COMMERCIAL VEH CTRL A/C,HIRED VEHICLES,5902322659,1000074394
04.10.2018,ENVIRONMENT DIRECTORATE,DAWSON RENTALS BUS & COACH LTD,335,COMMERCIAL VEH CTRL A/C,HIRED VEHICLES,5902322664,1000042174
04.10.2018,ENVIRONMENT DIRECTORATE,DAWSON RENTALS BUS & COACH LTD,335,COMMERCIAL VEH CTRL A/C,HIRED VEHICLES,5902322668,1000042174
04.10.2018,ENVIRONMENT DIRECTORATE,DAWSON RENTALS BUS & COACH LTD,335,COMMERCIAL VEH CTRL A/C,HIRED VEHICLES,5902322680,1000042174
04.10.2018,ENVIRONMENT DIRECTORATE,DAWSON RENTALS BUS & COACH LTD,461.43,COMMERCIAL VEH CTRL A/C,HIRED VEHICLES,5902322674,1000042174
04.10.2018,ENVIRONMENT DIRECTORATE,DAWSON RENTALS BUS & COACH LTD,631.43,COMMERCIAL VEH CTRL A/C,HIRED VEHICLES,5902322678,1000042174
04.10.2018,ENVIRONMENT DIRECTORATE,DAWSON RENTALS SWEEPERS,"2,000.00",COMMERCIAL VEH CTRL A/C,HIRED VEHICLES,5902322690,1000068168
04.10.2018,ENVIRONMENT DIRECTORATE,DAWSON RENTALS SWEEPERS,"2,000.00",COMMERCIAL VEH CTRL A/C,HIRED VEHICLES,5902322693,1000068168
04.10.2018,ENVIRONMENT DIRECTORATE,DAWSON RENTALS SWEEPERS,"2,000.00",COMMERCIAL VEH CTRL A/C,HIRED VEHICLES,5902322695,1000068168
04.10.2018,ENVIRONMENT DIRECTORATE,DAWSON RENTALS SWEEPERS,"2,000.00",COMMERCIAL VEH CTRL A/C,HIRED VEHICLES,5902322698,1000068168
04.10.2018,ENVIRONMENT DIRECTORATE,FIVEWAYS MUNICIPAL VEHICLE HIRE LTD,725,COMMERCIAL VEH CTRL A/C,HIRED VEHICLES,5902322705,1000023985
04.10.2018,ENVIRONMENT DIRECTORATE,FIVEWAYS MUNICIPAL VEHICLE HIRE LTD,725,COMMERCIAL VEH CTRL A/C,HIRED VEHICLES,5902322708,1000023985
04.10.2018,ENVIRONMENT DIRECTORATE,FIVEWAYS MUNICIPAL VEHICLE HIRE LTD,725,COMMERCIAL VEH CTRL A/C,HIRED VEHICLES,5902322711,1000023985
04.10.2018,ENVIRONMENT DIRECTORATE,FIVEWAYS MUNICIPAL VEHICLE HIRE LTD,725,COMMERCIAL VEH CTRL A/C,HIRED VEHICLES,5902322713,1000023985
04.10.2018,ENVIRONMENT DIRECTORATE,FIVEWAYS MUNICIPAL VEHICLE HIRE LTD,725,COMMERCIAL VEH CTRL A/C,HIRED VEHICLES,5902322716,1000023985
04.10.2018,ENVIRONMENT DIRECTORATE,FIVEWAYS MUNICIPAL VEHICLE HIRE LTD,725,COMMERCIAL VEH CTRL A/C,HIRED VEHICLES,5902322718,1000023985
04.10.2018,ENVIRONMENT DIRECTORATE,FIVEWAYS MUNICIPAL VEHICLE HIRE LTD,725,COMMERCIAL VEH CTRL A/C,HIRED VEHICLES,5902322722,1000023985
04.10.2018,ENVIRONMENT DIRECTORATE,FIVEWAYS MUNICIPAL VEHICLE HIRE LTD,725,COMMERCIAL VEH CTRL A/C,HIRED VEHICLES,5902322728,1000023985
04.10.2018,ENVIRONMENT DIRECTORATE,FIVEWAYS MUNICIPAL VEHICLE HIRE LTD,725,COMMERCIAL VEH CTRL A/C,HIRED VEHICLES,5902322733,1000023985
04.10.2018,ENVIRONMENT DIRECTORATE,GULLIVERS TRUCK HIRE LTD,788,COMMERCIAL VEH CTRL A/C,HIRED VEHICLES,5902322667,1000052656
04.10.2018,ENVIRONMENT DIRECTORATE,GULLIVERS TRUCK HIRE LTD,788,COMMERCIAL VEH CTRL A/C,HIRED VEHICLES,5902322671,1000052656
04.10.2018,ENVIRONMENT DIRECTORATE,GULLIVERS TRUCK HIRE LTD,915,COMMERCIAL VEH CTRL A/C,HIRED VEHICLES,5902322666,1000052656
04.10.2018,ENVIRONMENT DIRECTORATE,GULLIVERS TRUCK HIRE LTD,915,COMMERCIAL VEH CTRL A/C,HIRED VEHICLES,5902322669,1000052656
04.10.2018,ENVIRONMENT DIRECTORATE,PACE ACCIDENT REPAIRS CENTRE LTD,360,COMMERCIAL VEH CTRL A/C,HIRED VEHICLES,5902322635,1000069899
04.10.2018,ENVIRONMENT DIRECTORATE,PACE ACCIDENT REPAIRS CENTRE LTD,360,COMMERCIAL VEH CTRL A/C,HIRED VEHICLES,5902322636,1000069899
04.10.2018,ENVIRONMENT DIRECTORATE,PACE ACCIDENT REPAIRS CENTRE LTD,360,COMMERCIAL VEH CTRL A/C,HIRED VEHICLES,5902322637,1000069899
04.10.2018,ENVIRONMENT DIRECTORATE,NESCOT FINANCIAL SERVICES,"2,100.00",FOOD SAFETY,PROFESSIONAL FEES,5902322265,1957284
04.10.2018,ENVIRONMENT DIRECTORATE,ENVIRO TECHNOLOGY SERVICES PLC,"1,171.75",POLLUTION CONTROL,EQUIPMENT PURCHASE & REPAIR,5902322556,1000005024
04.10.2018,ENVIRONMENT DIRECTORATE,SOUTHWARK NEWSPAPER LTD,288,STREET WORKS OVERHEADS,MARKETING & PUBLICITY SERVICES,5902322663,1556957
04.10.2018,F & C S EXCLUDING CORPORATE BUDGETS,DX NETWORK SERVICES LTD,"10,500.00",LEGAL SVCES MANAGEMENT,SUBSCRIPTIONS,5902322642,1000002937
04.10.2018,HOUSING GENERAL FUND,SAFESTORE LTD,961.67,CAPITAL PS (HOUSING GF),CONSTRUCTION,5902322223,1000057677
04.10.2018,HOUSING STRATEGY AND OPTIONS,REDACTED PERSONAL DATA,"1,000.00",HOMELESS PROJECTS,EXTERNAL AGENCIES AND BODIES,REDACTED,REDACTED
04.10.2018,LEISURE DIRECTORATE,QUINCEY MASON PRACTICES LTD,750,ACCOMODATION,BUILDING R&M,5902322626,1000079912
04.10.2018,LEISURE DIRECTORATE,KENT COUNTY COUNCIL - LASER,"6,766.79",CANADA WATER LIBRARY,ELECTRICITY,5902322543,1000012926
04.10.2018,LEISURE DIRECTORATE,KENT COUNTY COUNCIL - LASER,921.51,CANADA WATER LIBRARY,GAS,5902322545,1000012926
04.10.2018,LEISURE DIRECTORATE,INSTITUTE OF CEMETERY & CREMATORIUM MANAGEMENT,430,CREMATORIUM,PROFESSIONAL FEES,5902322165,11183486
04.10.2018,LEISURE DIRECTORATE,KENT COUNTY COUNCIL - LASER,"1,782.04",DULWICH LIBRARY,ELECTRICITY,5902322584,1000012926
04.10.2018,LEISURE DIRECTORATE,CASTLE WATER LTD,453.32,HOMERSTALL ROAD SPORTS GROUND,WATER,5902321847,1000078867
04.10.2018,LEISURE DIRECTORATE,CLASSIC NEWS,446.14,JOHN HARVARD LIBRARY,BOOKS & PUBLICATIONS,5902322629,1000042369
04.10.2018,LEISURE DIRECTORATE,KENT COUNTY COUNCIL - LASER,361.35,PECKHAM LIBRARY,GAS,5902322686,1000012926
04.10.2018,LEISURE DIRECTORATE,A B KEY LLP,380,SDM BUDGET,EQUIPMENT PURCHASE & REPAIR,5902322043,1000036348
04.10.2018,LEISURE DIRECTORATE,A B KEY LLP,522.5,SDM BUDGET,EQUIPMENT PURCHASE & REPAIR,5902322044,1000036348
04.10.2018,MODERNISATION HGF,ROYAL MAIL GROUP LTD,"2,940.00",160 TOOLEY ST.,POSTAGES,5902322007,1000008168
04.10.2018,MODERNISATION HGF,ROSEMARY POTTS,"2,560.00",OCCUPATIONAL ASSESSMENT,CONSULTANTS SERVICES,5902322526,1738708
04.10.2018,MODERNISATION HGF,PENNA PLC,"12,543.36",ORG TRANSFORMATION,OTHER EMPLOYEE EXPENSES,5902322380,1000050664
04.10.2018,MODERNISATION HGF,COMENSURA LTD,"2,726.29",WEEKLY PAYMENTS,AGENCY STAFF,5902322631,1000051261
04.10.2018,MODERNISATION HGF,COMENSURA LTD,"443,264.45",WEEKLY PAYMENTS,AGENCY STAFF,5902322657,1000051261
04.10.2018,REGENERATION,EMERGENCY EXIT ARTS (LTD),"11,250.00",BLACKFRIARS ROAD PROJECT,MARKETING & PUBLICITY SERVICES,5902322644,1000015187
04.10.2018,RESIDENT SERVICES,KONE PLC,457.3,TA HOSTELS,BUILDING R&M,5902322628,1000028876
04.10.2018,REVENUES AND BENEFITS,HEYWOOD LIMITED,"55,000.00",PENSIONS,CONSULTANTS SERVICES,5902322677,1000038304
04.10.2018,SOUTHWARK BUILDING SERVICES,1st ACTIVE PROPERTY SERVICES LTD,"45,688.92",BUSINESS SUPPORT,OTHER CONTRACTORS,2102873050,3000001655
04.10.2018,SOUTHWARK BUILDING SERVICES,EMPIRE BUILDERS,"14,228.39",BUSINESS SUPPORT,OTHER CONTRACTORS,2102873049,3000001466
05.10.2018,ADULT SOCIAL CARE,GROVE HOTEL LTD,"1,260.00",APPOINTEESHIPS,OTHER PAYMENTS FOR CLIENTS,5902322761,1000043663
05.10.2018,ADULT SOCIAL CARE,PEABODY TRUST,378.86,APPOINTEESHIPS,OTHER PAYMENTS FOR CLIENTS,2102873255,11275862
05.10.2018,ADULT SOCIAL CARE,REDACTED PERSONAL DATA,400,APPOINTEESHIPS,OTHER PAYMENTS FOR CLIENTS,REDACTED,REDACTED
05.10.2018,ADULT SOCIAL CARE,REDACTED PERSONAL DATA,850,APPOINTEESHIPS,OTHER PAYMENTS FOR CLIENTS,REDACTED,REDACTED
05.10.2018,ADULT SOCIAL CARE,LONDON CARE LTD,"4,221.00",EXTRA CARE CONTRACT,HOMECARE - C&V,5902322861,1000003398
05.10.2018,ADULT SOCIAL CARE,LONDON CARE LTD,"4,221.00",EXTRA CARE CONTRACT,HOMECARE - C&V,5902322862,1000003398
05.10.2018,ADULT SOCIAL CARE,LONDON CARE LTD,"40,602.00",EXTRA CARE CONTRACT,HOMECARE - C&V,5902322876,1000003398
05.10.2018,ADULT SOCIAL CARE,LONDON CARE LTD,"40,602.00",EXTRA CARE CONTRACT,HOMECARE - C&V,5902322878,1000003398
05.10.2018,ADULT SOCIAL CARE,LONDON CARE LTD,"53,466.00",EXTRA CARE CONTRACT,HOMECARE - C&V,5902322858,1000003398
05.10.2018,ADULT SOCIAL CARE,LONDON CARE LTD,"53,466.00",EXTRA CARE CONTRACT,HOMECARE - C&V,5902322865,1000003398
05.10.2018,ADULT SOCIAL CARE,LONDON CARE LTD,"60,300.00",EXTRA CARE CONTRACT,HOMECARE - C&V,5902322879,1000003398
05.10.2018,ADULT SOCIAL CARE,LONDON CARE LTD,"60,300.00",EXTRA CARE CONTRACT,HOMECARE - C&V,5902322882,1000003398
05.10.2018,ADULT SOCIAL CARE,CHARLIE CHAPLIN ADVENTURE PLAYGROUND,268.22,LD LTS 18-64,DAYCARE,2102873065,1000058003
05.10.2018,ADULT SOCIAL CARE,CONTACT PROFESSIONALS,465,LD LTS 18-64,SUPPORTED LIVING,2102873064,1000057263
05.10.2018,ADULT SOCIAL CARE,DARETHEALTHCARE UK LTD,496.44,LD LTS 18-64,SUPPORTED LIVING,2102873079,1000059149
05.10.2018,ADULT SOCIAL CARE,REDACTED PERSONAL DATA,"3,682.28",LD LTS 18-64,SUPPORTED LIVING,REDACTED,REDACTED
05.10.2018,ADULT SOCIAL CARE,WESTMINSTER HOMECARE LTD,318.13,MEM LTS 65+,HOMECARE - SPOT,2102873166,1000075287
05.10.2018,ADULT SOCIAL CARE,WESTMINSTER HOMECARE LTD,377.52,MH LTS 65+,HOMECARE - SPOT,2102873130,1000075287
05.10.2018,ADULT SOCIAL CARE,WESTMINSTER HOMECARE LTD,531.24,MH LTS 65+,HOMECARE - SPOT,2102873100,1000075287
05.10.2018,ADULT SOCIAL CARE,GREENWRITE HEALTHCARE LTD,686.05,PHY LTS 18-64,HOMECARE - C&V,2102873088,1000080718
05.10.2018,ADULT SOCIAL CARE,GREENWRITE HEALTHCARE LTD,710.18,PHY LTS 18-64,HOMECARE - C&V,2102873085,1000080718
05.10.2018,ADULT SOCIAL CARE,WESTMINSTER HOMECARE LTD,293.72,PHY LTS 18-64,HOMECARE - C&V,2102873160,1000075287
05.10.2018,ADULT SOCIAL CARE,WESTMINSTER HOMECARE LTD,279.6,PHY LTS 18-64,HOMECARE - SPOT,2102873105,1000075287
05.10.2018,ADULT SOCIAL CARE,WESTMINSTER HOMECARE LTD,307.56,PHY LTS 18-64,HOMECARE - SPOT,2102873132,1000075287
05.10.2018,ADULT SOCIAL CARE,WESTMINSTER HOMECARE LTD,489.3,PHY LTS 18-64,HOMECARE - SPOT,2102873096,1000075287
05.10.2018,ADULT SOCIAL CARE,WESTMINSTER HOMECARE LTD,496.34,PHY LTS 18-64,HOMECARE - SPOT,2102873115,1000075287
05.10.2018,ADULT SOCIAL CARE,WESTMINSTER HOMECARE LTD,503.28,PHY LTS 18-64,HOMECARE - SPOT,2102873142,1000075287
05.10.2018,ADULT SOCIAL CARE,WESTMINSTER HOMECARE LTD,517.4,PHY LTS 18-64,HOMECARE - SPOT,2102873164,1000075287
05.10.2018,ADULT SOCIAL CARE,WESTMINSTER HOMECARE LTD,538.34,PHY LTS 18-64,HOMECARE - SPOT,2102873091,1000075287
05.10.2018,ADULT SOCIAL CARE,WESTMINSTER HOMECARE LTD,734.09,PHY LTS 18-64,HOMECARE - SPOT,2102873098,1000075287
05.10.2018,ADULT SOCIAL CARE,WESTMINSTER HOMECARE LTD,741.08,PHY LTS 18-64,HOMECARE - SPOT,2102873150,1000075287
05.10.2018,ADULT SOCIAL CARE,WESTMINSTER HOMECARE LTD,"2,404.56",PHY LTS 18-64,HOMECARE - SPOT,2102873113,1000075287
05.10.2018,ADULT SOCIAL CARE,LONDON CARE LTD,605.16,PHY LTS 65+,HOMECARE - C&V,2102873073,1000003398
05.10.2018,ADULT SOCIAL CARE,LONDON CARE LTD,605.16,PHY LTS 65+,HOMECARE - C&V,2102873074,1000003398
05.10.2018,ADULT SOCIAL CARE,LONDON CARE LTD,605.16,PHY LTS 65+,HOMECARE - C&V,2102873075,1000003398
05.10.2018,ADULT SOCIAL CARE,LONDON CARE LTD,605.16,PHY LTS 65+,HOMECARE - C&V,2102873076,1000003398
05.10.2018,ADULT SOCIAL CARE,LONDON CARE LTD,605.16,PHY LTS 65+,HOMECARE - C&V,2102873077,1000003398
05.10.2018,ADULT SOCIAL CARE,LONDON CARE LTD,605.16,PHY LTS 65+,HOMECARE - C&V,2102873078,1000003398
05.10.2018,ADULT SOCIAL CARE,SUPREME CARE SERVICES LTD,818.3,PHY LTS 65+,HOMECARE - C&V,2102873063,1000059416
05.10.2018,ADULT SOCIAL CARE,WESTMINSTER HOMECARE LTD,395.07,PHY LTS 65+,HOMECARE - C&V,2102873102,1000075287
05.10.2018,ADULT SOCIAL CARE,WESTMINSTER HOMECARE LTD,"1,786.21",PHY LTS 65+,HOMECARE - C&V,2102873094,1000075287
05.10.2018,ADULT SOCIAL CARE,WESTMINSTER HOMECARE LTD,"2,153.20",PHY LTS 65+,HOMECARE - C&V,2102873103,1000075287
05.10.2018,ADULT SOCIAL CARE,GREENWRITE HEALTHCARE LTD,965.3,PHY LTS 65+,HOMECARE - SPOT,2102873082,1000080718
05.10.2018,ADULT SOCIAL CARE,GREENWRITE HEALTHCARE LTD,"1,096.31",PHY LTS 65+,HOMECARE - SPOT,2102873086,1000080718
05.10.2018,ADULT SOCIAL CARE,GREENWRITE HEALTHCARE LTD,"1,420.37",PHY LTS 65+,HOMECARE - SPOT,2102873084,1000080718
05.10.2018,ADULT SOCIAL CARE,GREENWRITE HEALTHCARE LTD,"1,820.28",PHY LTS 65+,HOMECARE - SPOT,2102873081,1000080718
05.10.2018,ADULT SOCIAL CARE,WESTMINSTER HOMECARE LTD,251.76,PHY LTS 65+,HOMECARE - SPOT,2102873093,1000075287
05.10.2018,ADULT SOCIAL CARE,WESTMINSTER HOMECARE LTD,262.25,PHY LTS 65+,HOMECARE - SPOT,2102873107,1000075287
05.10.2018,ADULT SOCIAL CARE,WESTMINSTER HOMECARE LTD,293.72,PHY LTS 65+,HOMECARE - SPOT,2102873109,1000075287
05.10.2018,ADULT SOCIAL CARE,WESTMINSTER HOMECARE LTD,293.72,PHY LTS 65+,HOMECARE - SPOT,2102873116,1000075287
05.10.2018,ADULT SOCIAL CARE,WESTMINSTER HOMECARE LTD,293.72,PHY LTS 65+,HOMECARE - SPOT,2102873138,1000075287
05.10.2018,ADULT SOCIAL CARE,WESTMINSTER HOMECARE LTD,293.72,PHY LTS 65+,HOMECARE - SPOT,2102873162,1000075287
05.10.2018,ADULT SOCIAL CARE,WESTMINSTER HOMECARE LTD,342.61,PHY LTS 65+,HOMECARE - SPOT,2102873124,1000075287
05.10.2018,ADULT SOCIAL CARE,WESTMINSTER HOMECARE LTD,412.46,PHY LTS 65+,HOMECARE - SPOT,2102873089,1000075287
05.10.2018,ADULT SOCIAL CARE,WESTMINSTER HOMECARE LTD,447.36,PHY LTS 65+,HOMECARE - SPOT,2102873156,1000075287
05.10.2018,ADULT SOCIAL CARE,WESTMINSTER HOMECARE LTD,489.44,PHY LTS 65+,HOMECARE - SPOT,2102873090,1000075287
05.10.2018,ADULT SOCIAL CARE,WESTMINSTER HOMECARE LTD,489.44,PHY LTS 65+,HOMECARE - SPOT,2102873092,1000075287
05.10.2018,ADULT SOCIAL CARE,WESTMINSTER HOMECARE LTD,489.44,PHY LTS 65+,HOMECARE - SPOT,2102873117,1000075287
05.10.2018,ADULT SOCIAL CARE,WESTMINSTER HOMECARE LTD,517.4,PHY LTS 65+,HOMECARE - SPOT,2102873110,1000075287
05.10.2018,ADULT SOCIAL CARE,WESTMINSTER HOMECARE LTD,552.21,PHY LTS 65+,HOMECARE - SPOT,2102873108,1000075287
05.10.2018,ADULT SOCIAL CARE,WESTMINSTER HOMECARE LTD,587.16,PHY LTS 65+,HOMECARE - SPOT,2102873106,1000075287
05.10.2018,ADULT SOCIAL CARE,WESTMINSTER HOMECARE LTD,587.16,PHY LTS 65+,HOMECARE - SPOT,2102873154,1000075287
05.10.2018,ADULT SOCIAL CARE,WESTMINSTER HOMECARE LTD,618.75,PHY LTS 65+,HOMECARE - SPOT,2102873101,1000075287
05.10.2018,ADULT SOCIAL CARE,WESTMINSTER HOMECARE LTD,873.89,PHY LTS 65+,HOMECARE - SPOT,2102873099,1000075287
05.10.2018,ADULT SOCIAL CARE,WESTMINSTER HOMECARE LTD,"1,045.24",PHY LTS 65+,HOMECARE - SPOT,2102873144,1000075287
05.10.2018,ADULT SOCIAL CARE,WESTMINSTER HOMECARE LTD,"1,209.27",PHY LTS 65+,HOMECARE - SPOT,2102873126,1000075287
05.10.2018,ADULT SOCIAL CARE,WESTMINSTER HOMECARE LTD,"1,258.48",PHY LTS 65+,HOMECARE - SPOT,2102873136,1000075287
05.10.2018,ADULT SOCIAL CARE,WESTMINSTER HOMECARE LTD,"1,467.90",PHY LTS 65+,HOMECARE - SPOT,2102873148,1000075287
05.10.2018,ADULT SOCIAL CARE,WESTMINSTER HOMECARE LTD,"1,999.56",PHY LTS 65+,HOMECARE - SPOT,2102873118,1000075287
05.10.2018,ADULT SOCIAL CARE,WESTMINSTER HOMECARE LTD,"2,111.25",PHY LTS 65+,HOMECARE - SPOT,2102873120,1000075287
05.10.2018,ADULT SOCIAL CARE,HEATHERDENE NURSING HOME,-528.12,PHY LTS 65+,"MAND STATUTORY CHARGES, NURSING",2102871588,1000076774
05.10.2018,ADULT SOCIAL CARE,HEATHERDENE NURSING HOME,"2,226.64",PHY LTS 65+,NURSING PLACEMENTS FEES,2102871589,1000076774
05.10.2018,ADULT SOCIAL CARE,PELLE LTD,"1,500.00",SAFEGUARDING TEAM,EXTERNAL AGENCIES AND BODIES,5902321988,1000073574
05.10.2018,ADULT SOCIAL CARE,REDACTED PERSONAL DATA,"1,196.38",SPEC NEEDS CHILDREN,PAYMENTS TO CLIENTS (DIRECT PAYMENTS),REDACTED,REDACTED
05.10.2018,ASSET MANAGEMENT,POTTER RAPER AND PARTNERS,"4,499.00",HIP MAJOR WORKS,PLANNED MAINTENANCE,5902322813,1009369
05.10.2018,ASSET MANAGEMENT,SANDERSONS BUILDING SERVICES LTD,747.35,R&M CONTRACTS (SOUTH),BUILDING R&M,2102873051,3000002065
05.10.2018,ASSET MANAGEMENT,SANDERSONS BUILDING SERVICES LTD,"2,421.38",R&M CONTRACTS (SOUTH),BUILDING R&M,2102873053,3000002065
05.10.2018,ASSET MANAGEMENT,SANDERSONS BUILDING SERVICES LTD,"5,854.46",R&M CONTRACTS (SOUTH),BUILDING R&M,2102873052,3000002065
05.10.2018,CENTRAL FUNCTIONS,STANBURY BUILDING SERVICES LTD,790,COMMERCIAL PROPERTIES,BUILDING R&M,5902322078,1000078207
05.10.2018,CENTRAL FUNCTIONS,LEONARD GRAY SOLICITORS,638.39,HOME OWNERSHIP INCOME,HOUSING RESIDENTIAL RENTS,5902321941,1000081713
05.10.2018,CHIEF EXECUTIVE,TRANSPORT FOR LONDON,"5,222.00",CAPITAL PS (REGEN),CONSTR'N SUB CONTRACT - NON CERTIFICATED,5902322864,1000023986
05.10.2018,CHIEF EXECUTIVE,STITCHES MARQUEE HIRE,761.4,CAPITAL PS (REGEN),CONSTRUCTION FEES  - EXTERNAL,5902321510,1026432
05.10.2018,CHIEF EXECUTIVE,TRACSIS TRAFFIC DATA LTD,"3,100.00",CAPITAL PS (REGEN),CONSTRUCTION MAIN CONTRACT -CERTIFICATED,5902322874,1000079382
05.10.2018,CHIEF EXECUTIVE'S OFFICE,J C CONSULTANT SERVICES LTD,"8,500.00",CHIEF EXEC'S OFFICE,GRANTS,5902322755,1000042476
05.10.2018,CHIEF EXECUTIVE'S OFFICE,ARCO ACADEMY,"2,784.60",YOUTH FUND EMPLOYMENT,GRANTS,2102873251,1000080706
05.10.2018,CHIEF EXECUTIVE'S OFFICE,DKUK PROJECTS LTD,"2,254.20",YOUTH FUND EMPLOYMENT,GRANTS,2102873250,1000080510
05.10.2018,CHILDREN'S SERVICES,BUSOLA GIWA,"1,307.79",CLA TEAM SAFEGUARDING,PROFESSIONAL FEES,5902322811,1000078885
05.10.2018,CHILDREN'S SERVICES,JAMMA UMOJA (COMMUNITY SERVICES) LTD,"2,355.71",FAMILY ASSESSMENTS,RESIDENTIAL CARE,2102873068,1000023825
05.10.2018,CHILDREN'S SERVICES,JAMMA UMOJA (COMMUNITY SERVICES) LTD,"3,298.00",FAMILY ASSESSMENTS,RESIDENTIAL CARE,2102873067,1000023825
05.10.2018,CHILDREN'S SERVICES,JAMMA UMOJA (COMMUNITY SERVICES) LTD,"3,298.00",FAMILY ASSESSMENTS,RESIDENTIAL CARE,2102873069,1000023825
05.10.2018,CHILDREN'S SERVICES,JAMMA UMOJA (COMMUNITY SERVICES) LTD,"3,298.00",FAMILY ASSESSMENTS,RESIDENTIAL CARE,2102873070,1000023825
05.10.2018,CHILDREN'S SERVICES,JAMMA UMOJA (COMMUNITY SERVICES) LTD,"3,298.00",FAMILY ASSESSMENTS,RESIDENTIAL CARE,2102873071,1000023825
05.10.2018,CHILDREN'S SERVICES,JAMMA UMOJA (COMMUNITY SERVICES) LTD,"3,298.00",FAMILY ASSESSMENTS,RESIDENTIAL CARE,2102873072,1000023825
05.10.2018,CHILDREN'S SERVICES,SUPPLY & DEMAND CONSULTANCY LTD,"1,575.00",PUPIL PREMIUM CURRENT YEAR,EXTERNAL AGENCIES AND BODIES,5902321996,1000044903
05.10.2018,CHILDREN'S SERVICES,OVAL EVENTS LIMITED,"1,274.00",REGIONAL ADOPTION AGENCY,HIRE OF ROOMS/HALLS,5902322752,1000050739
05.10.2018,CHILDREN'S SERVICES,ROOCOU CONSULTING LTD,"10,400.00",REGIONAL ADOPTION AGENCY,PROFESSIONAL FEES,5902322753,1000081284
05.10.2018,CHILDREN'S SERVICES,GET ASSIGNED LTD,"20,516.00",RESIDENTIAL,RESIDENTIAL CARE,2102872863,1000081697
05.10.2018,CHILDREN'S SERVICES,REDACTED PERSONAL DATA,"37,500.00",RESIDENTIAL,RESIDENTIAL CARE,REDACTED,REDACTED
05.10.2018,CHILDREN'S SERVICES,REDACTED PERSONAL DATA,"4,056.00",SCH TRANS - CONTRACT COST,OTHER PAYMENTS FOR CLIENTS,REDACTED,REDACTED
05.10.2018,CHILDREN'S SERVICES,REDACTED PERSONAL DATA,622.86,SEMI INDEPENDENT,OTHER PAYMENTS FOR CLIENTS,REDACTED,REDACTED
05.10.2018,CHILDREN'S SERVICES,ST GEORGES CE SCHOOL,"75,000.00",ST GEORGE'S CE PRIMARY SCHOOL,EARLY YEARS - 3 AND 4 YEAR OLDS,2102873264,5001000069
05.10.2018,CHILDREN'S SERVICES,REDACTED PERSONAL DATA,"1,107.15",STAYING PUT,PAYMENTS TO CARERS,REDACTED,REDACTED
05.10.2018,CHILDREN'S SERVICES,ST GILES TRUST,"-17,500.00",TACKLING TROUBLED FAMILIES,EXTERNAL AGENCIES AND BODIES,5902323048,1013828
05.10.2018,CHILDREN'S SERVICES,ST GILES TRUST,"17,500.00",TACKLING TROUBLED FAMILIES,EXTERNAL AGENCIES AND BODIES,5902323013,1013828
05.10.2018,COMMUNITIES,KENNINGTON PARK HSE MGMT CO-OP,"16,335.50",KENNINGTON PK CO-OP,M&M ALLOWANCE CO-OPS,5902322763,1000056189
05.10.2018,COMMUNITIES,DARETHEALTHCARE UK LTD,"1,231.20",NO RECOURSE TO PUBLIC FUNDS,HOMECARE - C&V,2102873087,1000059149
05.10.2018,COMMUNITIES,ACORN T&RA,"2,299.00",TENANTS FUND,GRANTS,5902322823,1000044352
05.10.2018,COMMUNITIES,CAROLINE GARDENS RESIDENTS ASSOCIATION,"1,300.00",TENANTS FUND,GRANTS,5902322822,1000052192
05.10.2018,COMMUNITIES,DRAPER T&RA,"1,300.00",TENANTS FUND,GRANTS,5902322881,1000037876
05.10.2018,COMMUNITIES,WEBBER AND QUENTIN LTD,"37,508.50",WEBBER & QUENTIN TMO,M&M ALLOWANCE CO-OPS,5902322836,1000077088
05.10.2018,CUSTOMER EXPERIENCE HGF,A & M PROPERTY AND CONSTRUCTION LTD,"26,662.00",NIGHTLY TA (NSC),EXTERNAL AGENCIES AND BODIES,5902322777,1000014564
05.10.2018,CUSTOMER EXPERIENCE HGF,D & G LETTINGS LTD,288,NIGHTLY TA (NSC),EXTERNAL AGENCIES AND BODIES,5902321969,1000075094
05.10.2018,CUSTOMER EXPERIENCE HGF,VENTURE HOUSING (LONDON) LTD,"-4,290.00",NIGHTLY TA (NSC),EXTERNAL AGENCIES AND BODIES,5902322782,1000056686
05.10.2018,CUSTOMER EXPERIENCE HGF,VENTURE HOUSING (LONDON) LTD,"-3,672.75",NIGHTLY TA (NSC),EXTERNAL AGENCIES AND BODIES,5902322775,1000056686
05.10.2018,CUSTOMER EXPERIENCE HGF,VENTURE HOUSING (LONDON) LTD,-720,NIGHTLY TA (NSC),EXTERNAL AGENCIES AND BODIES,5902322769,1000056686
05.10.2018,CUSTOMER EXPERIENCE HGF,VENTURE HOUSING (LONDON) LTD,"6,123.00",NIGHTLY TA (NSC),EXTERNAL AGENCIES AND BODIES,5902322764,1000056686
05.10.2018,CUSTOMER EXPERIENCE HGF,VENTURE HOUSING (LONDON) LTD,"146,257.50",NIGHTLY TA (NSC),EXTERNAL AGENCIES AND BODIES,5902322760,1000056686
05.10.2018,CUSTOMER EXPERIENCE HGF,FINEFAIR LTD,"4,444.93",PSL PLACEMENTS,EXTERNAL AGENCIES AND BODIES,5902322860,1000075570
05.10.2018,CUSTOMER EXPERIENCE HGF,LODGISTICS ESTATES,"2,429.97",PSL PLACEMENTS,EXTERNAL AGENCIES AND BODIES,5902322869,1000080324
05.10.2018,ENVIRONMENT AND LEISURE,REDACTED PERSONAL DATA,350,CAPITAL PS (LEISURE),CONSTRUCTION FEES,REDACTED,REDACTED
05.10.2018,ENVIRONMENT AND LEISURE,LDA DESIGN CONSULTING LTD,"6,862.00",CAPITAL PS (LEISURE),CONSTRUCTION FEES  - EXTERNAL,5902322842,1000031830
05.10.2018,ENVIRONMENT AND LEISURE,COMPLETE ELECTRICAL SERVICES (CES),272.8,CAPITAL PS (LEISURE),CONSTRUCTION MAIN CONTRACT -CERTIFICATED,5902321714,1000077291
05.10.2018,ENVIRONMENT AND LEISURE,ECSI LTD,286,CAPITAL PS (LEISURE),"PLANT, MACHINERY & EQUIPMENT ACQUISITION",5902322430,1000081715
05.10.2018,ENVIRONMENT DIRECTORATE,ARNOLD CLARK VEHICLE MANAGEMENT,271.61,CAR LEASING CTRL A/C,VEHICLE LEASING CHARGES,5902322835,1000079116
05.10.2018,ENVIRONMENT DIRECTORATE,ARNOLD CLARK VEHICLE MANAGEMENT,283.26,CAR LEASING CTRL A/C,VEHICLE LEASING CHARGES,5902322835,1000079116
05.10.2018,ENVIRONMENT DIRECTORATE,ARNOLD CLARK VEHICLE MANAGEMENT,311.03,CAR LEASING CTRL A/C,VEHICLE LEASING CHARGES,5902322852,1000079116
05.10.2018,ENVIRONMENT DIRECTORATE,ARNOLD CLARK VEHICLE MANAGEMENT,329.14,CAR LEASING CTRL A/C,VEHICLE LEASING CHARGES,5902322841,1000079116
05.10.2018,ENVIRONMENT DIRECTORATE,ARNOLD CLARK VEHICLE MANAGEMENT,333.07,CAR LEASING CTRL A/C,VEHICLE LEASING CHARGES,5902322852,1000079116
05.10.2018,ENVIRONMENT DIRECTORATE,ARNOLD CLARK VEHICLE MANAGEMENT,339.92,CAR LEASING CTRL A/C,VEHICLE LEASING CHARGES,5902322841,1000079116
05.10.2018,ENVIRONMENT DIRECTORATE,ARNOLD CLARK VEHICLE MANAGEMENT,357.06,CAR LEASING CTRL A/C,VEHICLE LEASING CHARGES,5902322851,1000079116
05.10.2018,ENVIRONMENT DIRECTORATE,ARNOLD CLARK VEHICLE MANAGEMENT,403.79,CAR LEASING CTRL A/C,VEHICLE LEASING CHARGES,5902322851,1000079116
05.10.2018,ENVIRONMENT DIRECTORATE,ARNOLD CLARK VEHICLE MANAGEMENT,442.39,CAR LEASING CTRL A/C,VEHICLE LEASING CHARGES,5902322856,1000079116
05.10.2018,ENVIRONMENT DIRECTORATE,ARNOLD CLARK VEHICLE MANAGEMENT,497.25,CAR LEASING CTRL A/C,VEHICLE LEASING CHARGES,5902322856,1000079116
05.10.2018,ENVIRONMENT DIRECTORATE,CABLE TEST LTD,279,COLUMNS - MINOR ROADS,SOUTHWARK DIRECT CHARGES,5902322772,1000079183
05.10.2018,ENVIRONMENT DIRECTORATE,CABLE TEST LTD,413,COLUMNS - MINOR ROADS,SOUTHWARK DIRECT CHARGES,5902322774,1000079183
05.10.2018,ENVIRONMENT DIRECTORATE,CABLE TEST LTD,579.46,COLUMNS - MINOR ROADS,SOUTHWARK DIRECT CHARGES,5902322778,1000079183
05.10.2018,ENVIRONMENT DIRECTORATE,CABLE TEST LTD,692,COLUMNS - MINOR ROADS,SOUTHWARK DIRECT CHARGES,5902322739,1000079183
05.10.2018,ENVIRONMENT DIRECTORATE,CABLE TEST LTD,710,COLUMNS - MINOR ROADS,SOUTHWARK DIRECT CHARGES,5902322776,1000079183
05.10.2018,ENVIRONMENT DIRECTORATE,CABLE TEST LTD,875.59,COLUMNS - MINOR ROADS,SOUTHWARK DIRECT CHARGES,5902322785,1000079183
05.10.2018,ENVIRONMENT DIRECTORATE,CABLE TEST LTD,"1,239.00",COLUMNS - MINOR ROADS,SOUTHWARK DIRECT CHARGES,5902322783,1000079183
05.10.2018,ENVIRONMENT DIRECTORATE,AUTOMOTIVE LEASING,"1,813.80",COMMERCIAL VEH CTRL A/C,HIRED VEHICLES,5902322725,11014756
05.10.2018,ENVIRONMENT DIRECTORATE,ENTERPRISE FLEX E RENT,"1,207.60",COMMERCIAL VEH CTRL A/C,HIRED VEHICLES,5902322815,1000069585
05.10.2018,ENVIRONMENT DIRECTORATE,FIVEWAYS MUNICIPAL VEHICLE HIRE LTD,510,COMMERCIAL VEH CTRL A/C,HIRED VEHICLES,5902322745,1000023985
05.10.2018,ENVIRONMENT DIRECTORATE,FIVEWAYS MUNICIPAL VEHICLE HIRE LTD,725,COMMERCIAL VEH CTRL A/C,HIRED VEHICLES,5902322738,1000023985
05.10.2018,ENVIRONMENT DIRECTORATE,FIVEWAYS MUNICIPAL VEHICLE HIRE LTD,725,COMMERCIAL VEH CTRL A/C,HIRED VEHICLES,5902322740,1000023985
05.10.2018,ENVIRONMENT DIRECTORATE,FIVEWAYS MUNICIPAL VEHICLE HIRE LTD,725,COMMERCIAL VEH CTRL A/C,HIRED VEHICLES,5902322748,1000023985
05.10.2018,ENVIRONMENT DIRECTORATE,WILDFLOWER TURF LTD,300,COMMUNITY PROJECTS,TRAINING,5902322875,1000076721
05.10.2018,ENVIRONMENT DIRECTORATE,ZAUN LTD,"8,061.00",ENGINEERING CRAFTS,OTHER CONTRACTORS,5902322877,1000030488
05.10.2018,ENVIRONMENT DIRECTORATE,JAAMA LTD,432.78,FLEET SERVICES MANAGEMENT,COMPUTER MAINTENANCE,5902322792,1000080704
05.10.2018,ENVIRONMENT DIRECTORATE,CABLE TEST LTD,386,LIGHTING RECOVERABLE WORKS,SOUTHWARK DIRECT CHARGES,5902322741,1000079183
05.10.2018,ENVIRONMENT DIRECTORATE,CABLE TEST LTD,474,LIGHTING RECOVERABLE WORKS,SOUTHWARK DIRECT CHARGES,5902322742,1000079183
05.10.2018,ENVIRONMENT DIRECTORATE,CABLE TEST LTD,611.58,LIGHTING RECOVERABLE WORKS,SOUTHWARK DIRECT CHARGES,5902322744,1000079183
05.10.2018,ENVIRONMENT DIRECTORATE,CALLOW MASTER LOCKSMITHS,407.77,MANAGEMENT TEAM,OTHER CONTRACTORS,5902322767,11179552
05.10.2018,ENVIRONMENT DIRECTORATE,THE INSTITUTE OF ENGINEERING & TECHNOLOGY,380,PUBLIC LIGHTING,BOOKS & PUBLICATIONS,5902322891,1000047428
05.10.2018,ENVIRONMENT DIRECTORATE,BELLENDEN SIGNS LTD,390,SIGN SHOP,MATERIALS,5902322838,1704661
05.10.2018,ENVIRONMENT DIRECTORATE,CROMWELL POLYTHENE LTD,"2,016.00",STREET CLEANING-GENERAL,MATERIALS,5902322737,1000021159
05.10.2018,ENVIRONMENT DIRECTORATE,ELLIOT ENVIRONMENTAL LTD,400,STREET CLEANING-GENERAL,OTHER CONTRACTORS,5902322720,1000047392
05.10.2018,ENVIRONMENT DIRECTORATE,TRANSPORT FOR LONDON,"38,122.87",STRUCTURES MAJOR ROADS,OTHER CONTRACTORS,5902322864,1000023986
05.10.2018,ENVIRONMENT DIRECTORATE,MAC FERRARI-GUY,"3,480.00",YOUNG ADVISORS,MARKETING & PUBLICITY SERVICES,5902322405,1000081725
05.10.2018,F & C S EXCLUDING CORPORATE BUDGETS,IES TRAINING LTD,700,ADMINISTRATIVE SUPPORT,TRAINING,5902322063,1000081705
05.10.2018,F & C S EXCLUDING CORPORATE BUDGETS,INSTITUTE OF MONEY ADVISORS,381.88,ADMINISTRATIVE SUPPORT,TRAINING,5902322673,1000081706
05.10.2018,F & C S EXCLUDING CORPORATE BUDGETS,INSTITUTE OF MONEY ADVISORS,916.74,ADMINISTRATIVE SUPPORT,TRAINING,5902322673,1000081706
05.10.2018,F & C S EXCLUDING CORPORATE BUDGETS,LAW MORGAN LTD,"13,163.00",HOUSING & MODERNISATION,AGENCY STAFF,5902322048,1000081165
05.10.2018,F & C S EXCLUDING CORPORATE BUDGETS,BDO LLP,"2,083.33",RISK ADMIN,PROFESSIONAL FEES,5902321827,1000057898
05.10.2018,HOUSING GENERAL FUND,BORER DATA SYSTEMS LIMITED,"1,295.00",CAPITAL PS (REGEN),CONSTRUCTION,5902322773,1000013544
05.10.2018,HOUSING HRA,MLM CONSULTING ENGINEERS LTD,425,CAPITAL PS (HRA),CONSTRUCTION FEES  - EXTERNAL,5902322834,1000059806
05.10.2018,HOUSING HRA,MLM CONSULTING ENGINEERS LTD,450,CAPITAL PS (HRA),CONSTRUCTION FEES  - EXTERNAL,5902322834,1000059806
05.10.2018,HOUSING HRA,CALFORD SEADEN LLP,"52,241.66",CAPITAL PS (HRA),CONSTRUCTION MAIN CONTRACT -CERTIFICATED,5902322886,1061592
05.10.2018,LEISURE DIRECTORATE,ASKEWS & HOLTS LIBRARY SERVICES LTD,"4,571.36",STOCK SERVICES,BOOKS & PUBLICATIONS,5902322806,1494168
05.10.2018,MODERNISATION HGF,BRITISH GAS,664.77,CURLEW HOUSE,GAS,5902322333,1000054825
05.10.2018,MODERNISATION HGF,KIER FACILITIES SERVICES LTD,"53,576.88",PLANNED FM SERVICES BY KIER,INTEGRATED FACILITIES MANAGEMENT CONTRACT,5902322846,1000040603
05.10.2018,PROPERTY SERVICES,STANBURY BUILDING SERVICES LTD,300,VCS MANAGED MSC BUILDILNGS,BUILDING R&M,5902322071,1000078207
05.10.2018,PUBLIC HEALTH,THE COLLEGE OF CONTEMPORARY HEALTH,"2,273.75",HEALTHY WEIGHT,EXTERNAL AGENCIES AND BODIES,5902322854,1000080685
05.10.2018,SOUTHWARK BUILDING SERVICES,EDEN SPRINGS (UK) LTD,303.97,BUSINESS SUPPORT,CATERING MATERIALS & SUPPLIES,5902322885,11261325
05.10.2018,SOUTHWARK BUILDING SERVICES,EDEN SPRINGS (UK) LTD,"2,735.76",BUSINESS SUPPORT,CATERING MATERIALS & SUPPLIES,5902322885,11261325
06.10.2018,CUSTOMER EXPERIENCE,JOANNE MCELROY,300,COMPLAINTS,PROFESSIONAL FEES,5902321853,1000030005
06.10.2018,CUSTOMER EXPERIENCE HGF,IMPERIAL COLLEGE PROJECTS LTD,332,CORONER'S,PROFESSIONAL FEES,5902322618,1000080106
06.10.2018,CUSTOMER EXPERIENCE HGF,IMPERIAL COLLEGE PROJECTS LTD,384,CORONER'S,PROFESSIONAL FEES,5902322621,1000080106
06.10.2018,CUSTOMER EXPERIENCE HGF,IMPERIAL COLLEGE PROJECTS LTD,392,CORONER'S,PROFESSIONAL FEES,5902322619,1000080106
06.10.2018,ENVIRONMENT DIRECTORATE,AUTOMOTIVE LEASING,"1,804.30",COMMERCIAL VEH CTRL A/C,HIRED VEHICLES,5902322683,11014756
06.10.2018,LEISURE DIRECTORATE,GLASDON UK LIMITED,"2,921.85",BURGESS AREA TEAM,OTHER R&M,5902322814,1024073
06.10.2018,SOUTHWARK BUILDING SERVICES,PITNEY BOWES PURCHASE POWER,832,R & M OVERHEADS,POSTAGES,5902322893,1000000025
07.10.2018,CHILDREN AND ADULT,CURRIE & BROWN UK LTD,"6,000.00",CAPITAL PS (EDUCATION),CONSTRUCTION,5902322743,1000033455
07.10.2018,COMMUNITIES,CGL,"233,297.81",ADULT SM SERVICE,OTHER CONTRACTORS,5902322502,1000064197
07.10.2018,CUSTOMER EXPERIENCE HGF,TUNSTALL HEALTHCARE (UK) LTD,"5,620.50",SMART MOBILE RESPONSE TEAM,EQUIPMENT PURCHASE & REPAIR,5902322093,1012297
07.10.2018,ENVIRONMENT AND LEISURE,CONNICK TREE CARE REIGATE LTD,"1,100.00",CAPITAL PS (LEISURE),CONSTRUCTION FEES  - EXTERNAL,5902322090,1000070069
07.10.2018,ENVIRONMENT DIRECTORATE,SOUTHWARK NEWSPAPER LTD,252,STREET WORKS OVERHEADS,MARKETING & PUBLICITY SERVICES,5902322420,1556957
07.10.2018,ENVIRONMENT DIRECTORATE,SOUTHWARK NEWSPAPER LTD,300,STREET WORKS OVERHEADS,MARKETING & PUBLICITY SERVICES,5902322426,1556957
07.10.2018,ENVIRONMENT DIRECTORATE,SOUTHWARK NEWSPAPER LTD,300,STREET WORKS OVERHEADS,MARKETING & PUBLICITY SERVICES,5902322513,1556957
07.10.2018,ENVIRONMENT DIRECTORATE,SOUTHWARK NEWSPAPER LTD,312,STREET WORKS OVERHEADS,MARKETING & PUBLICITY SERVICES,5902322542,1556957
07.10.2018,ENVIRONMENT DIRECTORATE,SOUTHWARK NEWSPAPER LTD,324,STREET WORKS OVERHEADS,MARKETING & PUBLICITY SERVICES,5902322538,1556957
07.10.2018,ENVIRONMENT DIRECTORATE,SOUTHWARK NEWSPAPER LTD,336,STREET WORKS OVERHEADS,MARKETING & PUBLICITY SERVICES,5902322508,1556957
07.10.2018,ENVIRONMENT DIRECTORATE,SOUTHWARK NEWSPAPER LTD,336,STREET WORKS OVERHEADS,MARKETING & PUBLICITY SERVICES,5902322540,1556957
07.10.2018,ENVIRONMENT DIRECTORATE,SOUTHWARK NEWSPAPER LTD,348,STREET WORKS OVERHEADS,MARKETING & PUBLICITY SERVICES,5902322532,1556957
07.10.2018,ENVIRONMENT DIRECTORATE,SOUTHWARK NEWSPAPER LTD,360,STREET WORKS OVERHEADS,MARKETING & PUBLICITY SERVICES,5902322547,1556957
07.10.2018,HOUSING HRA,CALFORD SEADEN LLP,"1,914.52",CAPITAL PS (HRA),CONSTRUCTION FEES  - EXTERNAL,5902322180,1061592
07.10.2018,HOUSING HRA,CALFORD SEADEN LLP,"2,425.50",CAPITAL PS (HRA),CONSTRUCTION FEES  - EXTERNAL,5902322175,1061592
07.10.2018,HOUSING HRA,CALFORD SEADEN LLP,"2,851.21",CAPITAL PS (HRA),CONSTRUCTION FEES  - EXTERNAL,5902322177,1061592
07.10.2018,HOUSING HRA,CALFORD SEADEN LLP,"3,149.57",CAPITAL PS (HRA),CONSTRUCTION FEES  - EXTERNAL,5902322182,1061592
07.10.2018,HOUSING HRA,CALFORD SEADEN LLP,"4,176.53",CAPITAL PS (HRA),CONSTRUCTION FEES  - EXTERNAL,5902322172,1061592
07.10.2018,HOUSING HRA,CALFORD SEADEN LLP,"4,741.00",CAPITAL PS (HRA),CONSTRUCTION FEES  - EXTERNAL,5902322507,1061592
07.10.2018,SOUTHWARK BUILDING SERVICES,CIPFA,"1,090.00",FINANCE,TRAINING,5902322397,1000000196
08.10.2018,ADULT SOCIAL CARE,REDACTED PERSONAL DATA,266.65,APPOINTEESHIPS,OTHER PAYMENTS FOR CLIENTS,REDACTED,REDACTED
08.10.2018,ADULT SOCIAL CARE,HEALTHCARE & TRANSPORT SERVICES,306,LD LTS 18-64,CLIENT TRANSPORT,2102873371,1000042743
08.10.2018,ADULT SOCIAL CARE,ACT TOO LTD,400,LD LTS 18-64,DAYCARE,2102873419,1000053657
08.10.2018,ADULT SOCIAL CARE,SUPREME CARE SERVICES LTD,467.6,LD LTS 18-64,HOMECARE - C&V,2102873365,1000059416
08.10.2018,ADULT SOCIAL CARE,PEOPLEPLUS ILS,670,LD LTS 18-64,PAYMENTS TO CLIENTS (DIRECT PAYMENTS),2102873313,1000061886
08.10.2018,ADULT SOCIAL CARE,REDACTED PERSONAL DATA,"15,919.00",LD LTS 18-64,PAYMENTS TO CLIENTS (DIRECT PAYMENTS),REDACTED,REDACTED
08.10.2018,ADULT SOCIAL CARE,CHOICE SUPPORT,293.92,LD LTS 18-64,SUPPORTED LIVING,2102873407,1104183
08.10.2018,ADULT SOCIAL CARE,CHOICE SUPPORT,330.66,LD LTS 18-64,SUPPORTED LIVING,2102873399,1104183
08.10.2018,ADULT SOCIAL CARE,CHOICE SUPPORT,367.4,LD LTS 18-64,SUPPORTED LIVING,2102873416,1104183
08.10.2018,ADULT SOCIAL CARE,CHOICE SUPPORT,367.4,LD LTS 18-64,SUPPORTED LIVING,2102873418,1104183
08.10.2018,ADULT SOCIAL CARE,CHOICE SUPPORT,440.88,LD LTS 18-64,SUPPORTED LIVING,2102873394,1104183
08.10.2018,ADULT SOCIAL CARE,CHOICE SUPPORT,440.88,LD LTS 18-64,SUPPORTED LIVING,2102873409,1104183
08.10.2018,ADULT SOCIAL CARE,CHOICE SUPPORT,440.88,LD LTS 18-64,SUPPORTED LIVING,2102873413,1104183
08.10.2018,ADULT SOCIAL CARE,CHOICE SUPPORT,514.36,LD LTS 18-64,SUPPORTED LIVING,2102873398,1104183
08.10.2018,ADULT SOCIAL CARE,CHOICE SUPPORT,514.36,LD LTS 18-64,SUPPORTED LIVING,2102873400,1104183
08.10.2018,ADULT SOCIAL CARE,CHOICE SUPPORT,587.84,LD LTS 18-64,SUPPORTED LIVING,2102873395,1104183
08.10.2018,ADULT SOCIAL CARE,CHOICE SUPPORT,808.28,LD LTS 18-64,SUPPORTED LIVING,2102873405,1104183
08.10.2018,ADULT SOCIAL CARE,CHOICE SUPPORT,955.24,LD LTS 18-64,SUPPORTED LIVING,2102873414,1104183
08.10.2018,ADULT SOCIAL CARE,CHOICE SUPPORT,"1,102.20",LD LTS 18-64,SUPPORTED LIVING,2102873415,1104183
08.10.2018,ADULT SOCIAL CARE,HEATH FARM FAMILY SOLUTION (FOSTERING),"4,024.73",LD LTS 18-64,SUPPORTED LIVING,2102873422,11271268
08.10.2018,ADULT SOCIAL CARE,CHOICE SUPPORT,440.88,LD LTS 65+,SUPPORTED LIVING,2102873404,1104183
08.10.2018,ADULT SOCIAL CARE,CHOICE SUPPORT,"6,935.52",LD LTS 65+,SUPPORTED LIVING,2102873406,1104183
08.10.2018,ADULT SOCIAL CARE,BUDDI LTD,444,MEM LTS 65+,EXTERNAL AGENCIES AND BODIES,2102873311,1000067243
08.10.2018,ADULT SOCIAL CARE,NESTOR PRIMECARE SERVICES LTD,410.94,MEM LTS 65+,HOMECARE - C&V,2102873423,11098703
08.10.2018,ADULT SOCIAL CARE,SUPREME CARE SERVICES LTD,851.72,MEM LTS 65+,HOMECARE - C&V,2102873357,1000059416
08.10.2018,ADULT SOCIAL CARE,SUPREME CARE SERVICES LTD,"1,068.80",MEM LTS 65+,HOMECARE - C&V,2102873368,1000059416
08.10.2018,ADULT SOCIAL CARE,SUPREME CARE SERVICES LTD,601.2,MH LTS 65+,HOMECARE - C&V,2102873343,1000059416
08.10.2018,ADULT SOCIAL CARE,PHOENIX HEALTHCARE & RECRUITMENT,391.36,PHY LTS 18-64,DAYCARE,2102873420,1000065636
08.10.2018,ADULT SOCIAL CARE,SUPREME CARE SERVICES LTD,634.6,PHY LTS 18-64,HOMECARE - C&V,2102873341,1000059416
08.10.2018,ADULT SOCIAL CARE,SUPREME CARE SERVICES LTD,"2,939.20",PHY LTS 18-64,HOMECARE - C&V,2102873351,1000059416
08.10.2018,ADULT SOCIAL CARE,HUMBLE HEALTH CARE LTD,338.46,PHY LTS 18-64,HOMECARE - SPOT,2102873391,1000079270
08.10.2018,ADULT SOCIAL CARE,HUMBLE HEALTH CARE LTD,351,PHY LTS 18-64,HOMECARE - SPOT,2102873373,1000079270
08.10.2018,ADULT SOCIAL CARE,HUMBLE HEALTH CARE LTD,351,PHY LTS 18-64,HOMECARE - SPOT,2102873375,1000079270
08.10.2018,ADULT SOCIAL CARE,HUMBLE HEALTH CARE LTD,418.52,PHY LTS 18-64,HOMECARE - SPOT,2102873370,1000079270
08.10.2018,ADULT SOCIAL CARE,HUMBLE HEALTH CARE LTD,438.75,PHY LTS 18-64,HOMECARE - SPOT,2102873392,1000079270
08.10.2018,ADULT SOCIAL CARE,METRO HOMECARE LTD,448.18,PHY LTS 65+,HOMECARE - C&V,2102873334,1000070695
08.10.2018,ADULT SOCIAL CARE,SUPREME CARE SERVICES LTD,425.85,PHY LTS 65+,HOMECARE - C&V,2102873363,1000059416
08.10.2018,ADULT SOCIAL CARE,SUPREME CARE SERVICES LTD,651.32,PHY LTS 65+,HOMECARE - C&V,2102873353,1000059416
08.10.2018,ADULT SOCIAL CARE,SUPREME CARE SERVICES LTD,701.4,PHY LTS 65+,HOMECARE - C&V,2102873354,1000059416
08.10.2018,ADULT SOCIAL CARE,SUPREME CARE SERVICES LTD,701.4,PHY LTS 65+,HOMECARE - C&V,2102873361,1000059416
08.10.2018,ADULT SOCIAL CARE,SUPREME CARE SERVICES LTD,701.4,PHY LTS 65+,HOMECARE - C&V,2102873366,1000059416
08.10.2018,ADULT SOCIAL CARE,SUPREME CARE SERVICES LTD,751.52,PHY LTS 65+,HOMECARE - C&V,2102873359,1000059416
08.10.2018,ADULT SOCIAL CARE,SUPREME CARE SERVICES LTD,868.4,PHY LTS 65+,HOMECARE - C&V,2102873355,1000059416
08.10.2018,ADULT SOCIAL CARE,SUPREME CARE SERVICES LTD,"1,002.00",PHY LTS 65+,HOMECARE - C&V,2102873339,1000059416
08.10.2018,ADULT SOCIAL CARE,SUPREME CARE SERVICES LTD,"1,035.40",PHY LTS 65+,HOMECARE - C&V,2102873342,1000059416
08.10.2018,ADULT SOCIAL CARE,SUPREME CARE SERVICES LTD,"1,519.72",PHY LTS 65+,HOMECARE - C&V,2102873346,1000059416
08.10.2018,ADULT SOCIAL CARE,SUPREME CARE SERVICES LTD,"1,678.35",PHY LTS 65+,HOMECARE - C&V,2102873344,1000059416
08.10.2018,ADULT SOCIAL CARE,SUPREME CARE SERVICES LTD,"1,987.32",PHY LTS 65+,HOMECARE - C&V,2102873360,1000059416
08.10.2018,ADULT SOCIAL CARE,SUPREME CARE SERVICES LTD,"2,304.60",PHY LTS 65+,HOMECARE - C&V,2102873348,1000059416
08.10.2018,ADULT SOCIAL CARE,SUPREME CARE SERVICES LTD,"2,467.44",PHY LTS 65+,HOMECARE - C&V,2102873358,1000059416
08.10.2018,ADULT SOCIAL CARE,SUPREME CARE SERVICES LTD,"2,855.72",PHY LTS 65+,HOMECARE - C&V,2102873345,1000059416
08.10.2018,ADULT SOCIAL CARE,METRO HOMECARE LTD,455.07,PHY LTS 65+,HOMECARE - SPOT,2102873324,1000070695
08.10.2018,ADULT SOCIAL CARE,METRO HOMECARE LTD,551.6,PHY LTS 65+,HOMECARE - SPOT,2102873321,1000070695
08.10.2018,ADULT SOCIAL CARE,SUPREME CARE SERVICES LTD,951.92,PHY LTS 65+,HOMECARE - SPOT,2102873356,1000059416
08.10.2018,ADULT SOCIAL CARE,CHOICE SUPPORT,293.92,PHY LTS 65+,SUPPORTED LIVING,2102873403,1104183
08.10.2018,ADULT SOCIAL CARE,THE CAMDEN SOCIETY (CATERING),"15,750.00",SHORT BREAKS,EXTERNAL AGENCIES AND BODIES,5902322942,1000075365
08.10.2018,ADULT SOCIAL CARE,PEOPLEPLUS ILS,717.57,SPEC NEEDS CHILDREN,PAYMENTS TO CLIENTS (DIRECT PAYMENTS),2102873308,1000061886
08.10.2018,ADULT SOCIAL CARE,PAULWAYS KENNELS,600,SUB LTS 18-64,OTHER PAYMENTS FOR CLIENTS,2102873421,1068767
08.10.2018,ASSET MANAGEMENT,ANTONY HODARI  SOLICITORS,750,DISREPAIR,BUILDING R&M,5902322979,1000031040
08.10.2018,ASSET MANAGEMENT,1st ACTIVE PROPERTY SERVICES LTD,282,R&M CONTRACTS (SOUTH),BUILDING R&M,2102873428,3000001655
08.10.2018,ASSET MANAGEMENT,1st ACTIVE PROPERTY SERVICES LTD,282,R&M CONTRACTS (SOUTH),BUILDING R&M,2102873429,3000001655
08.10.2018,ASSET MANAGEMENT,MASHER BROTHERS LTD,"8,154.51",R&M CONTRACTS (SOUTH),BUILDING R&M,2102873292,3000001100
08.10.2018,ASSET MANAGEMENT,PROPERTY FACILITIES GROUP PLC,"21,502.93",R&M CONTRACTS (SOUTH),BUILDING R&M,2102873291,3000001420
08.10.2018,ASSET MANAGEMENT,SANDERSONS BUILDING SERVICES LTD,"2,097.73",R&M CONTRACTS (SOUTH),BUILDING R&M,2102873299,3000002065
08.10.2018,ASSET MANAGEMENT,A & E ELKINS LTD,"60,349.64",VISIBLE DIFFERENCE (SOUTH),BUILDING R&M,2102873298,4012501
08.10.2018,CENTRAL FUNCTIONS,INTERSERVE (FACILITIES MANAGEMENT),"5,926.41",COMMERCIAL PROPERTIES,BUILDING R&M,2102873296,3000000166
08.10.2018,CHIEF EXECUTIVE,STEVEN SHARKEY,406.25,CAPITAL PS (REGEN),CONSTRUCTION FEES,5902322938,1000081427
08.10.2018,CHIEF EXECUTIVE,SLIEVERUE PROJECT MANAGEMENT LTD,"31,924.00",CAPITAL PS (REGEN),CONSTRUCTION SITE COSTS,2102873446,3000002030
08.10.2018,CHIEF EXECUTIVE,FAITHFUL & GOULD,"53,684.58",CAPITAL PS (STRAT SERV),CONSTRUCTION FEES - QUANTITY SURVEYOR,5902322956,1000061390
08.10.2018,CHIEF EXECUTIVE'S OFFICE,SAVILLS (UK) LTD,"5,254.00",CHIEF EXEC'S OFFICE,RENTS,2102873274,1000023005
08.10.2018,CHILDREN AND ADULT,CBS MAINTENANCE SERVICES LTD,"28,016.70",CAPITAL PS (EDUCATION),CONSTRUCTION MAIN CONTRACT -CERTIFICATED,2102873433,3000001518
08.10.2018,CHILDREN AND ADULT,CBS MAINTENANCE SERVICES LTD,"35,454.52",CAPITAL PS (EDUCATION),CONSTRUCTION MAIN CONTRACT -CERTIFICATED,2102873433,3000001518
08.10.2018,CHILDREN AND ADULT,CBS MAINTENANCE SERVICES LTD,"51,263.95",CAPITAL PS (EDUCATION),CONSTRUCTION MAIN CONTRACT -CERTIFICATED,2102873289,3000001518
08.10.2018,CHILDREN AND ADULT,PDC CONSTRUCTION SERVICES LTD,"92,151.75",CAPITAL PS (EDUCATION),CONSTRUCTION SITE COSTS,2102873445,3000001841
08.10.2018,CHILDREN AND ADULT,KIER SUPPORT SERVICES LIMITED,"168,694.38",CAPITAL PS (SOC SERV),CONSTRUCTION MAIN CONTRACT,2102873434,3000001246
08.10.2018,CHILDREN'S SERVICES,DENISE GOLDING,"2,426.00",ADOPTION REFORM GRANT (PART B),PROFESSIONAL FEES,5902322978,1000077971
08.10.2018,CHILDREN'S SERVICES,LONDON BOROUGH OF EALING,"84,520.00",REGIONAL ADOPTION AGENCY,EXTERNAL AGENCIES AND BODIES,5902322958,1000033322
08.10.2018,CHILDREN'S SERVICES,REDACTED PERSONAL DATA,275,SCH TRANS - CONTRACT COST,OTHER PAYMENTS FOR CLIENTS,REDACTED,REDACTED
08.10.2018,CHILDREN'S SERVICES,REDACTED PERSONAL DATA,330,SCH TRANS - CONTRACT COST,OTHER PAYMENTS FOR CLIENTS,REDACTED,REDACTED
08.10.2018,CHILDREN'S SERVICES,REDACTED PERSONAL DATA,"1,200.00",SCH TRANS - CONTRACT COST,OTHER PAYMENTS FOR CLIENTS,REDACTED,REDACTED
08.10.2018,CUSTOMER EXPERIENCE,SGS UK LTD,800,QUALITY & TRAINING,CONSULTANTS SERVICES,5902322946,1000037326
08.10.2018,CUSTOMER EXPERIENCE HGF,WANDLE HOUSING ASSOCIATION,"25,631.25",CUSTOMER SUPPORT,RENTS,2102873271,1039321
08.10.2018,CUSTOMER EXPERIENCE HGF,BIRCHAM DYSON BELL,"4,810.50",LONDON BRIDGE INQUEST,LEGAL FEES & COURT COSTS,5902322226,1000048605
08.10.2018,ENVIRONMENT DIRECTORATE,AUTOMOTIVE LEASING,"27,965.45",COMMERCIAL VEH CTRL A/C,HIRED VEHICLES,5902322900,11014756
08.10.2018,ENVIRONMENT DIRECTORATE,DAWSON RENTALS BUS & COACH LTD,252,COMMERCIAL VEH CTRL A/C,HIRED VEHICLES,5902322912,1000042174
08.10.2018,ENVIRONMENT DIRECTORATE,SCOT GROUP LIMITED,350.56,COMMERCIAL VEH CTRL A/C,HIRED VEHICLES,5902322904,1709512
08.10.2018,ENVIRONMENT DIRECTORATE,SCOT GROUP LIMITED,350.56,COMMERCIAL VEH CTRL A/C,HIRED VEHICLES,5902322908,1709512
08.10.2018,ENVIRONMENT DIRECTORATE,SCOT GROUP LIMITED,367.92,COMMERCIAL VEH CTRL A/C,HIRED VEHICLES,5902322911,1709512
08.10.2018,ENVIRONMENT DIRECTORATE,SCOT GROUP LIMITED,378.56,COMMERCIAL VEH CTRL A/C,HIRED VEHICLES,5902322903,1709512
08.10.2018,ENVIRONMENT DIRECTORATE,SCOT GROUP LIMITED,378.56,COMMERCIAL VEH CTRL A/C,HIRED VEHICLES,5902322910,1709512
08.10.2018,ENVIRONMENT DIRECTORATE,SCOT GROUP LIMITED,448.56,COMMERCIAL VEH CTRL A/C,HIRED VEHICLES,5902322901,1709512
08.10.2018,ENVIRONMENT DIRECTORATE,LONDON HIRE T/A R J MOTORS,448.64,COMMERCIAL VEH CTRL A/C,VEHICLE REPAIRS & MAINTENANCE,5902322952,1000047106
08.10.2018,ENVIRONMENT DIRECTORATE,LONDON HIRE T/A R J MOTORS,525.24,COMMERCIAL VEH CTRL A/C,VEHICLE REPAIRS & MAINTENANCE,5902322934,1000047106
08.10.2018,ENVIRONMENT DIRECTORATE,LONDON HIRE T/A R J MOTORS,675.34,COMMERCIAL VEH CTRL A/C,VEHICLE REPAIRS & MAINTENANCE,5902322921,1000047106
08.10.2018,ENVIRONMENT DIRECTORATE,LONDON SOUTH EAST COLLEGES,"3,750.00",EH & TS MANAGER,TRAINING,5902322959,11249372
08.10.2018,ENVIRONMENT DIRECTORATE,GREENHAM TRADING LTD,"1,176.73",ESTATE CLEANING-GENERAL,MATERIALS,5902322321,1000006610
08.10.2018,F & C S EXCLUDING CORPORATE BUDGETS,DSI BILLING SERVICES LTD,"2,333.52",ADMINISTRATIVE SUPPORT,POSTAGES,5902322930,1000058640
08.10.2018,HOUSING HRA,CALFORD SEADEN LLP,"4,274.99",CAPITAL PS (HRA),CONSTRUCTION FEES  - EXTERNAL,5902322914,1061592
08.10.2018,HOUSING HRA,OCO LIMITED,"5,163.96",CAPITAL PS (HRA),CONSTRUCTION FEES  - EXTERNAL,5902322966,1006066
08.10.2018,HOUSING HRA,OCO LIMITED,"11,184.39",CAPITAL PS (HRA),CONSTRUCTION FEES  - EXTERNAL,5902322965,1006066
08.10.2018,HOUSING HRA,A & E ELKINS LTD,"47,816.42",CAPITAL PS (HRA),CONSTRUCTION MAIN CONTRACT -CERTIFICATED,2102873432,4012501
08.10.2018,HOUSING HRA,NIBLOCK (BUILDERS) LTD,"147,668.09",CAPITAL PS (HRA),CONSTRUCTION MAIN CONTRACT -CERTIFICATED,2102873444,3000000235
08.10.2018,HOUSING HRA,CARTER JONAS LLP,700,CAPITAL PS (HRA),LAND & BUILDINGS ACQUISITION FEES,5902322937,1000073124
08.10.2018,HOUSING HRA,HTA DESIGN LLP,"3,500.00",CAPITAL PS (REGEN),CONSTRUCTION FEES,5902322898,1000074662
08.10.2018,HOUSING HRA,HTA DESIGN LLP,"6,175.00",CAPITAL PS (REGEN),CONSTRUCTION FEES,5902322898,1000074662
08.10.2018,HOUSING HRA,HTA DESIGN LLP,"7,600.00",CAPITAL PS (REGEN),CONSTRUCTION FEES,5902322898,1000074662
08.10.2018,HOUSING HRA,HTA DESIGN LLP,"11,325.00",CAPITAL PS (REGEN),CONSTRUCTION FEES,5902322898,1000074662
08.10.2018,HOUSING HRA,MEARS LTD,"647,920.41",MEARS,MANUAL CREDITORS,2102873443,3000001096
08.10.2018,HOUSING HRA,SMITH & BYFORD LTD,"182,867.48",SMITH AND BYFORD,MANUAL CREDITORS,2102873294,3000000520
08.10.2018,HOUSING HRA,SMITH & BYFORD LTD,"337,129.59",SMITH AND BYFORD,MANUAL CREDITORS,2102873297,3000000520
08.10.2018,HOUSING HRA,SMITH & BYFORD LTD,"438,171.32",SMITH AND BYFORD,MANUAL CREDITORS,2102873295,3000000520
08.10.2018,LEISURE DIRECTORATE,ONE TREE HILL ALLOTMENT SOCIETY,"4,875.00",ACCOMODATION,SERVICE CHARGES,2102873280,1000069929
08.10.2018,LEISURE DIRECTORATE,QUADRON SERVICES LIMITED,370.57,BURGESS AREA TEAM,GROUNDS MAINTENANCE,5902322824,1000066528
08.10.2018,LEISURE DIRECTORATE,QUADRON SERVICES LIMITED,"1,814.47",BURGESS AREA TEAM,GROUNDS MAINTENANCE,5902322825,1000066528
08.10.2018,LEISURE DIRECTORATE,RH WROUGHT IRON,"2,172.00",DULWICH AREA TEAM,OTHER R&M,2102873281,3000000680
08.10.2018,LEISURE DIRECTORATE,GLS EDUCATIONAL SUPPLIES LTD,250.44,DULWICH LIBRARY,EQUIPMENT PURCHASE & REPAIR,5902322947,1318282
08.10.2018,LEISURE DIRECTORATE,SIMPLY HIRE LTD,940,FACILITIES MANAGEMENT,BUILDING R&M,5902322974,1000018354
08.10.2018,LEISURE DIRECTORATE,SIMPLY HIRE LTD,"1,001.44",FACILITIES MANAGEMENT,BUILDING R&M,5902322972,1000018354
08.10.2018,LEISURE DIRECTORATE,THE DULWICH ESTATE,"5,339.50",HOMERSTALL ROAD SPORTS GROUND,RENTS,2102873272,3000036
08.10.2018,LEISURE DIRECTORATE,PALMSTEAD NURSERIES LTD,543.55,SOUTHWARK AREA TEAM,GROUNDS MAINTENANCE,5902322939,1000067566
08.10.2018,MODERNISATION HGF,BRESLIN CONSTRUCTION LTD,"3,500.00",REPAIR AND MAINTENANCE SERVICES,BUILDING R&M,2102873293,3000001948
08.10.2018,PROPERTY SERVICES,ALI EKBER BULUT,"1,750.00",CPHA  MANAGED PROPERTIES,RENTS,2102873275,1000080799
08.10.2018,REGENERATION,DETON SOLICITORS,"2,194.50",REGENERATION SOUTH - M & A,LEGAL FEES & COURT COSTS,2102873300,1000081636
08.10.2018,RESIDENT SERVICES,CENTRAL & CECIL HOUSING TRUST,"51,250.00",NORTHCOTT HOUSE,RENTS,2102873273,1809267
08.10.2018,SOUTHWARK BUILDING SERVICES,ATPB LTD,"26,670.10",BUSINESS SUPPORT,OTHER CONTRACTORS,2102873283,3000001850
08.10.2018,SOUTHWARK BUILDING SERVICES,BRIDGEWATER ROOFING CONTRACTORS LTD,"39,604.74",BUSINESS SUPPORT,OTHER CONTRACTORS,2102873288,3000001482
08.10.2018,SOUTHWARK BUILDING SERVICES,DEREK BUILDING SERVICES LTD,"83,325.94",BUSINESS SUPPORT,OTHER CONTRACTORS,2102873284,3000001751
08.10.2018,SOUTHWARK BUILDING SERVICES,ELROY'S BUILDING SERVICES UK LTD,"3,294.52",BUSINESS SUPPORT,OTHER CONTRACTORS,2102873286,3000001656
08.10.2018,SOUTHWARK BUILDING SERVICES,ENVIROVENT LTD,"1,360.41",BUSINESS SUPPORT,OTHER CONTRACTORS,2102873285,1000075373
08.10.2018,SOUTHWARK BUILDING SERVICES,MULTI-INSTALLATIONS LTD,"10,682.69",BUSINESS SUPPORT,OTHER CONTRACTORS,2102873287,3000000595
09.10.2018,ADULT SOCIAL CARE,INSPIRE SUPPORT WORKERS LTD,784,LD LTS 18-64,HOMECARE - SPOT,2102873468,1000080725
09.10.2018,ADULT SOCIAL CARE,INSPIRE SUPPORT WORKERS LTD,816,LD LTS 18-64,HOMECARE - SPOT,2102873470,1000080725
09.10.2018,ADULT SOCIAL CARE,INSPIRE SUPPORT WORKERS LTD,816,LD LTS 18-64,HOMECARE - SPOT,2102873471,1000080725
09.10.2018,ADULT SOCIAL CARE,PEABODY TRUST,"1,895.44",LD LTS 18-64,SUPPORTED LIVING,2102873532,11275862
09.10.2018,ADULT SOCIAL CARE,PEABODY TRUST,"2,314.20",LD LTS 18-64,SUPPORTED LIVING,2102873533,11275862
09.10.2018,ADULT SOCIAL CARE,PEABODY TRUST,"2,460.92",LD LTS 18-64,SUPPORTED LIVING,2102873531,11275862
09.10.2018,ADULT SOCIAL CARE,CORONA ENERGY RETAIL 2 LTD,320.4,PWLD DAYCARE,REMOVAL EXPENSES,5902323004,1000020539
09.10.2018,ADULT SOCIAL CARE,CORONA ENERGY RETAIL 2 LTD,328.04,PWLD DAYCARE,REMOVAL EXPENSES,5902323009,1000020539
09.10.2018,ADULT SOCIAL CARE,CORONA ENERGY RETAIL 2 LTD,360.54,PWLD DAYCARE,REMOVAL EXPENSES,5902323020,1000020539
09.10.2018,ADULT SOCIAL CARE,CORONA ENERGY RETAIL 2 LTD,382.94,PWLD DAYCARE,REMOVAL EXPENSES,5902323015,1000020539
09.10.2018,ADULT SOCIAL CARE,LUCAS CONSULT LTD,817.5,SAFEGUARDING TEAM,EXTERNAL AGENCIES AND BODIES,5902323172,1000078082
09.10.2018,ADULT SOCIAL CARE,THE CAMDEN SOCIETY (CATERING),"15,750.00",SHORT BREAKS,EXTERNAL AGENCIES AND BODIES,5902323128,1000075365
09.10.2018,ADULT SOCIAL CARE,REDACTED PERSONAL DATA,"1,640.00",SUB LTS 18-64,DAYCARE,REDACTED,REDACTED
09.10.2018,ASSET MANAGEMENT,PRB ESTATES LTD,"29,180.93",ADAPTATIONS,BUILDING R&M,5902323193,1000072298
09.10.2018,ASSET MANAGEMENT,ANTHONY GOLD SOLICITORS,255,DISREPAIR,LEGAL FEES & COURT COSTS,2102873539,1000050198
09.10.2018,ASSET MANAGEMENT,BB7 FIRE LTD,"27,000.00",HEALTH AND SAFETY,PROFESSIONAL FEES,5902323121,1000079759
09.10.2018,ASSET MANAGEMENT,ALBURY S.I. LTD,890,REPAIRS OPERATIONS,BUILDING R&M,5902323201,1000038277
09.10.2018,ASSET MANAGEMENT,ALBURY S.I. LTD,"1,715.00",REPAIRS OPERATIONS,BUILDING R&M,5902323197,1000038277
09.10.2018,CHIEF EXECUTIVE,REX PROCTER & PARTNERS,"1,462.50",CAPITAL PS (REGEN),CONSTRUCTION FEES - QUANTITY SURVEYOR,5902323155,1000078516
09.10.2018,CHIEF EXECUTIVE'S OFFICE,THE CAMDEN SOCIETY (CATERING),620,CHIEF EXEC'S OFFICE,GAS,5902323127,1000075365
09.10.2018,CHILDREN AND ADULT,FAITHFUL & GOULD,"2,025.00",CAPITAL PS (EDUCATION),CONSTRUCTION FEES,5902323162,1000061390
09.10.2018,CHILDREN AND ADULT,FAITHFUL & GOULD,"92,794.89",CAPITAL PS (EDUCATION),CONSTRUCTION FEES,5902323175,1000061390
09.10.2018,CHILDREN AND ADULT,FAITHFUL & GOULD,"92,794.94",CAPITAL PS (EDUCATION),CONSTRUCTION FEES,5902323176,1000061390
09.10.2018,CHILDREN'S SERVICES,AVOCET SERVICES LTD,299.9,AIS - PRAC GRP A SET1-3,OTHER PAYMENTS FOR CLIENTS,5902323039,1000081147
09.10.2018,CHILDREN'S SERVICES,WINCHMORE TUTORS LTD,456,ALTERNATIVE PROVISION,EXTERNAL AGENCIES AND BODIES,5902323133,1000075298
09.10.2018,CHILDREN'S SERVICES,WINCHMORE TUTORS LTD,768,ALTERNATIVE PROVISION,EXTERNAL AGENCIES AND BODIES,5902323138,1000075298
09.10.2018,CHILDREN'S SERVICES,WINCHMORE TUTORS LTD,"1,536.00",ALTERNATIVE PROVISION,EXTERNAL AGENCIES AND BODIES,5902323134,1000075298
09.10.2018,CHILDREN'S SERVICES,OFFICE DEPOT UK LTD,534.02,CENTRAL SUPPORT,STATIONERY,5902323032,1109426
09.10.2018,CHILDREN'S SERVICES,CORAL COMMUNITY ASSESSMENTS LTD,473.35,FAMILY ASSESSMENTS,RESIDENTIAL CARE,5902323040,1000056464
09.10.2018,CHILDREN'S SERVICES,CORAL COMMUNITY ASSESSMENTS LTD,"2,200.00",FAMILY ASSESSMENTS,RESIDENTIAL CARE,5902323042,1000056464
09.10.2018,CHILDREN'S SERVICES,CORAL COMMUNITY ASSESSMENTS LTD,"2,200.00",FAMILY ASSESSMENTS,RESIDENTIAL CARE,5902323043,1000056464
09.10.2018,CHILDREN'S SERVICES,DR PETER MAGGS,"1,160.00",FAMILY ASSESSMENTS,RESIDENTIAL CARE,5902323047,1000076432
09.10.2018,CHILDREN'S SERVICES,WELFARE CALL (LAC) LTD,"9,313.20",LAC EDUCATION,EXTERNAL AGENCIES AND BODIES,5902323214,1000057872
09.10.2018,CHILDREN'S SERVICES,ORCHID CELLMARK LTD,504,S & FAM SUPP - PRAC GRP F SET 29-31,OTHER PAYMENTS FOR CLIENTS,5902323018,1000078050
09.10.2018,CHILDREN'S SERVICES,PEABODY TRUST,566.16,S24 CLA,OTHER PAYMENTS FOR CLIENTS,5902323001,11275862
09.10.2018,CHILDREN'S SERVICES,TAYLOR CONWAY LTD,"-1,875.00",TACKLING TROUBLED FAMILIES,EXTERNAL AGENCIES AND BODIES,5902323609,1000080955
09.10.2018,CHILDREN'S SERVICES,TAYLOR CONWAY LTD,"1,875.00",TACKLING TROUBLED FAMILIES,EXTERNAL AGENCIES AND BODIES,5902323010,1000080955
09.10.2018,CHILDREN'S SERVICES,SOUTH OF THE RIVER INVESTMENTS LTD,"2,181.00",TEMPORARY ACCOMMODATION,EXTERNAL AGENCIES AND BODIES,5902323097,1000073638
09.10.2018,COMMUNITIES,FLUID I.T. LTD,808.4,PREVENT,HARDWARE,5902323141,1000075702
09.10.2018,CUSTOMER EXPERIENCE HGF,APEX HOUSING SOLUTIONS LTD,"31,022.08",NIGHTLY TA (NSC),EXTERNAL AGENCIES AND BODIES,5902323215,1000079786
09.10.2018,CUSTOMER EXPERIENCE HGF,CYBERSTYLE LETTINGS LTD,"10,197.00",NIGHTLY TA (NSC),EXTERNAL AGENCIES AND BODIES,5902323192,1000079319
09.10.2018,CUSTOMER EXPERIENCE HGF,QUINARY LTD,"5,451.00",NIGHTLY TA (NSC),EXTERNAL AGENCIES AND BODIES,5902323098,1000029106
09.10.2018,CUSTOMER EXPERIENCE HGF,S & G PROPERTIES,"3,744.00",NIGHTLY TA (NSC),EXTERNAL AGENCIES AND BODIES,5902323102,1000005082
09.10.2018,CUSTOMER EXPERIENCE HGF,TAAKSVALE HOUSING LTD,"2,814.00",NIGHTLY TA (NSC),EXTERNAL AGENCIES AND BODIES,5902323186,1000073665
09.10.2018,CUSTOMER EXPERIENCE HGF,JANET OMOROGA,601.67,PRIVATE SECTOR LEASING,EXTERNAL AGENCIES AND BODIES,2102873466,1000072890
09.10.2018,ENVIRONMENT AND LEISURE,CJS PLANTS,300,CAPITAL PS (LEISURE),CONST'N MAIN CONTRACT - NON CERTIFICATED,5902323165,1000025370
09.10.2018,ENVIRONMENT AND LEISURE,CJS PLANTS,720,CAPITAL PS (LEISURE),CONST'N MAIN CONTRACT - NON CERTIFICATED,5902323165,1000025370
09.10.2018,ENVIRONMENT AND LEISURE,CJS PLANTS,825,CAPITAL PS (LEISURE),CONST'N MAIN CONTRACT - NON CERTIFICATED,5902323179,1000025370
09.10.2018,ENVIRONMENT AND LEISURE,CJS PLANTS,990,CAPITAL PS (LEISURE),CONST'N MAIN CONTRACT - NON CERTIFICATED,5902323116,1000025370
09.10.2018,ENVIRONMENT AND LEISURE,CJS PLANTS,"2,280.00",CAPITAL PS (LEISURE),CONST'N MAIN CONTRACT - NON CERTIFICATED,5902323181,1000025370
09.10.2018,ENVIRONMENT AND LEISURE,CJS PLANTS,"5,267.50",CAPITAL PS (LEISURE),CONST'N MAIN CONTRACT - NON CERTIFICATED,5902323208,1000025370
09.10.2018,ENVIRONMENT DIRECTORATE,SHARPE PRITCHARD LLP,"1,856.00",2019+ HIGHWAYS SERVICE DELIVERY,PAYMENTS FOR LEGAL SERVICES,5902323113,1790085
09.10.2018,ENVIRONMENT DIRECTORATE,LEX AUTOLEASE,-447.66,CAR LEASING CTRL A/C,VEHICLE LEASING CHARGES,5902322807,1000069462
09.10.2018,ENVIRONMENT DIRECTORATE,LEX AUTOLEASE,-377.85,CAR LEASING CTRL A/C,VEHICLE LEASING CHARGES,5902322758,1000069462
09.10.2018,ENVIRONMENT DIRECTORATE,LEX AUTOLEASE,-260.1,CAR LEASING CTRL A/C,VEHICLE LEASING CHARGES,5902322807,1000069462
09.10.2018,ENVIRONMENT DIRECTORATE,LEX AUTOLEASE,-253.5,CAR LEASING CTRL A/C,VEHICLE LEASING CHARGES,5902322762,1000069462
09.10.2018,ENVIRONMENT DIRECTORATE,LEX AUTOLEASE,"16,300.15",COMMERCIAL VEH CTRL A/C,HIRED VEHICLES,5902323054,1000069462
09.10.2018,ENVIRONMENT DIRECTORATE,LONDON HIRE T/A R J MOTORS,338.45,COMMERCIAL VEH CTRL A/C,VEHICLE REPAIRS & MAINTENANCE,5902322989,1000047106
09.10.2018,ENVIRONMENT DIRECTORATE,LONDON HIRE T/A R J MOTORS,366.28,COMMERCIAL VEH CTRL A/C,VEHICLE REPAIRS & MAINTENANCE,5902323064,1000047106
09.10.2018,ENVIRONMENT DIRECTORATE,LONDON HIRE T/A R J MOTORS,384.5,COMMERCIAL VEH CTRL A/C,VEHICLE REPAIRS & MAINTENANCE,5902322999,1000047106
09.10.2018,ENVIRONMENT DIRECTORATE,RAINBOW CAR WASH,391,COMMERCIAL VEH CTRL A/C,VEHICLE REPAIRS & MAINTENANCE,5902323082,1000079913
09.10.2018,ENVIRONMENT DIRECTORATE,CASTLE WATER LTD,266.95,MANAGEMENT TEAM,WATER,5902323086,1000078867
09.10.2018,ENVIRONMENT DIRECTORATE,COMPLETE TREE CARE LTD,"2,158.56",NON HOUSING GROUNDS,AGENCY STAFF,5902323124,1000041410
09.10.2018,ENVIRONMENT DIRECTORATE,TYCO INTEGRATED FIRE & SECURITY,"2,302.50",PKG & CAR PKS CCTV,PROFESSIONAL FEES,5902323173,1000077948
09.10.2018,ENVIRONMENT DIRECTORATE,NPOWER,356.9,SANDGATE STREET,ELECTRICITY,5902323094,1000032342
09.10.2018,ENVIRONMENT DIRECTORATE,JUDGE AND PRIESTLEY SOLICITORS,351,SASBU,LEGAL FEES & COURT COSTS,5902323107,1472217
09.10.2018,ENVIRONMENT DIRECTORATE,TYCO INTEGRATED FIRE & SECURITY,"13,071.12",TOWN CENTRE CCTV,EQUIPMENT PURCHASE & REPAIR,5902323170,1000077948
09.10.2018,F & C S EXCLUDING CORPORATE BUDGETS,NORTHGATE PUBLIC SERVICES (UK) LTD,301.19,ADMINISTRATIVE SUPPORT,POSTAGES,5902323211,1000037405
09.10.2018,HOUSING & MODERNISATION,LONDON COUNCILS,"59,417.00",LONDON COUNCILS,OTHER LOCAL AUTHORITIES,5902323156,11237079
09.10.2018,HOUSING HRA,BNP PARIBAS REAL ESTATE ADVISORY & PROPERTY MANAGEMENT,"1,450.00",CAPITAL PS (HRA),CONSTRUCTION FEES  - EXTERNAL,5902323103,1000053153
09.10.2018,HOUSING HRA,CARTER JONAS LLP,"1,029.20",CAPITAL PS (HRA),LAND & BUILDINGS ACQUISITION FEES,5902323131,1000073124
09.10.2018,HOUSING HRA,PROJECT CENTRE LTD,"5,775.00",CAPITAL PS (REGEN),CONSTRUCTION FEES,5902323129,1000072621
09.10.2018,HOUSING HRA,CARTER JONAS LLP,700,CAPITAL PS (REGEN),LAND & BUILDINGS ACQUISITION FEES,5902323140,1000073124
09.10.2018,HOUSING HRA,CARTER JONAS LLP,"5,484.70",CAPITAL PS (REGEN),LAND & BUILDINGS ACQUISITION FEES,5902323139,1000073124
09.10.2018,HOUSING HRA,KENT COUNTY COUNCIL - LASER,"37,942.29",RESIDENT SERVICES BUSINESS SUPPORT,ELECTRICITY,6101854389,DIRECT DEBIT PAYMENT
09.10.2018,HOUSING STRATEGY AND OPTIONS,REDACTED PERSONAL DATA,995.1,HOMELESS PROJECTS,GRANTS,REDACTED,REDACTED
09.10.2018,HOUSING STRATEGY AND OPTIONS,REDACTED PERSONAL DATA,"3,000.00",HOMELESS PROJECTS,GRANTS,REDACTED,REDACTED
09.10.2018,LEISURE DIRECTORATE,BERMONDSEY ARTIST`S GROUP,"5,375.00",ARTS GRANTS,GRANTS,5902323144,1000004746
09.10.2018,LEISURE DIRECTORATE,CASTLE WATER LTD,252.85,CEMETERIES,WATER,5902323205,1000078867
09.10.2018,LEISURE DIRECTORATE,FRONTIER-PITTS LTD,305.12,DULWICH AREA TEAM,OTHER R&M,5902323137,1548679
09.10.2018,LEISURE DIRECTORATE,BANKSIDE OPEN SPACES TRUST,"11,503.25",ENVIRONMENT & LEISURE GRANTS,OTHER CONTRACTORS,5902323108,1000018290
09.10.2018,LEISURE DIRECTORATE,SKYWAY,"4,470.00",GRANTS COMMISSIONING,GRANTS,5902323136,1000069595
09.10.2018,LEISURE DIRECTORATE,INFINITY NETWORKS LTD,367,IT DEVELOPMENT,COMMS & COMPUTING CONTRACT CHARGES,5902323147,1000035571
09.10.2018,LEISURE DIRECTORATE,INFINITY NETWORKS LTD,483,IT DEVELOPMENT,COMMS & COMPUTING CONTRACT CHARGES,5902323147,1000035571
09.10.2018,LEISURE DIRECTORATE,INFINITY NETWORKS LTD,747,IT DEVELOPMENT,COMMS & COMPUTING CONTRACT CHARGES,5902323147,1000035571
09.10.2018,LEISURE DIRECTORATE,INFINITY NETWORKS LTD,"1,975.00",IT DEVELOPMENT,COMMS & COMPUTING CONTRACT CHARGES,5902323147,1000035571
09.10.2018,LEISURE DIRECTORATE,KENT COUNTY COUNCIL - LASER,305.43,PECKHAM LIBRARY,GAS,5902323078,1000012926
09.10.2018,MODERNISATION HGF,ROSEMARY POTTS,"1,810.00",OCCUPATIONAL ASSESSMENT,CONSULTANTS SERVICES,5902323183,1738708
09.10.2018,MODERNISATION HGF,ASSESSMENT & DEVELOPMENT,498.2,OCCUPATIONAL ASSESSMENT,EQUIPMENT PURCHASE & REPAIR,5902323083,1000008858
09.10.2018,PLANNING AND TRANSPORT,SOUTHWARK NEWSPAPER LTD,506,DEVELOPMENT CONTROL ADMINSTRATION,MARKETING & PUBLICITY SERVICES,5902323112,1556957
09.10.2018,PLANNING AND TRANSPORT,SOUTHWARK NEWSPAPER LTD,506,DEVELOPMENT CONTROL ADMINSTRATION,MARKETING & PUBLICITY SERVICES,5902323115,1556957
09.10.2018,PLANNING AND TRANSPORT,DODS PARLIAMENTARY COMMUNICATIONS LTD,390,PLANNING POLICY TEAM,TRAINING,5902323110,1000067040
09.10.2018,PUBLIC HEALTH,CHELSEA AND WESTMINSTER HOSPITAL,330.94,SEXUAL HEALTH - STI,EXTERNAL AGENCIES AND BODIES,5902323191,1000072053
09.10.2018,PUBLIC HEALTH,CHELSEA AND WESTMINSTER HOSPITAL,377.52,SEXUAL HEALTH - STI,EXTERNAL AGENCIES AND BODIES,5902323189,1000072053
09.10.2018,PUBLIC HEALTH,LEWISHAM AND GREENWICH NHS TRUST,"17,324.46",SEXUAL HEALTH - STI,EXTERNAL AGENCIES AND BODIES,5902323148,1000076183
09.10.2018,PUBLIC HEALTH,LUTON AND DUNSTABLE HOSPITAL NHS FOUNDATION TRUST,305.04,SEXUAL HEALTH - STI,EXTERNAL AGENCIES AND BODIES,5902323150,1000073141
09.10.2018,PUBLIC HEALTH,NORTHERN DEVON HEALTHCARE NHS TRUST,347,SEXUAL HEALTH - STI,EXTERNAL AGENCIES AND BODIES,5902323160,1000073131
09.10.2018,REGENERATION,CARL TURNER ARCHITECTS LTD,"6,912.00",MASTER PLAN-H/WAY & TRANS INTERCHANGE,PROFESSIONAL FEES,5902323184,1000060355
09.10.2018,RESIDENT SERVICES,GT STEWART SOLICITORS,"2,500.00",OPERATIONS/OFFICES ACCOMMODATION,LEGAL FEES & COURT COSTS,2102873538,1000061213
09.10.2018,RESIDENT SERVICES,APCOA PARKING (UK) LTD,"8,595.67",PARKING CONTROL,OTHER CONTRACTORS,5902323158,1718645
09.10.2018,RESIDENT SERVICES,APCOA PARKING (UK) LTD,"43,541.84",PARKING CONTROL,OTHER CONTRACTORS,5902323161,1718645
09.10.2018,RESIDENT SERVICES,LIBERTY SERVICES LTD,518,PARKING CONTROL,STATIONERY,5902323142,1000061305
09.10.2018,RESIDENT SERVICES,LIBERTY SERVICES LTD,"1,741.00",PARKING CONTROL,STATIONERY,5902323142,1000061305
09.10.2018,RESIDENT SERVICES,DMS PROPERTIES SERVICES LTD,"2,232.00",TA PLACEMENTS,EXTERNAL AGENCIES AND BODIES,5902323114,1000081522
09.10.2018,RESIDENT SERVICES,SOUTH OF THE RIVER INVESTMENTS LTD,"3,345.00",TA PLACEMENTS,EXTERNAL AGENCIES AND BODIES,5902323206,1000073638
10.10.2018,ADULT SOCIAL CARE,CARE DIRECT UK LTD,689.5,MEM LTS 65+,HOMECARE - SPOT,2102874285,1000066322
10.10.2018,ADULT SOCIAL CARE,CASTLEBAR HEALTHCARE LTD,"-1,810.03",MEM LTS 65+,NURSING PLACEMENTS FEES,2102772075,1651851
10.10.2018,ADULT SOCIAL CARE,CASTLEBAR HEALTHCARE LTD,"2,534.04",MEM LTS 65+,NURSING PLACEMENTS FEES,2102771755,1651851
10.10.2018,ADULT SOCIAL CARE,CASTLEBAR HEALTHCARE LTD,"2,534.04",MEM LTS 65+,NURSING PLACEMENTS FEES,2102783942,1651851
10.10.2018,ADULT SOCIAL CARE,CASTLEBAR HEALTHCARE LTD,"2,534.04",MEM LTS 65+,NURSING PLACEMENTS FEES,2102795165,1651851
10.10.2018,ADULT SOCIAL CARE,CASTLEBAR HEALTHCARE LTD,"2,534.04",MEM LTS 65+,NURSING PLACEMENTS FEES,2102806376,1651851
10.10.2018,ADULT SOCIAL CARE,CASTLEBAR HEALTHCARE LTD,"2,534.04",MEM LTS 65+,NURSING PLACEMENTS FEES,2102816853,1651851
10.10.2018,ADULT SOCIAL CARE,CASTLEBAR HEALTHCARE LTD,"2,534.04",MEM LTS 65+,NURSING PLACEMENTS FEES,2102827979,1651851
10.10.2018,ADULT SOCIAL CARE,CASTLEBAR HEALTHCARE LTD,"2,584.72",MEM LTS 65+,NURSING PLACEMENTS FEES,2102848184,1651851
10.10.2018,ADULT SOCIAL CARE,CASTLEBAR HEALTHCARE LTD,"2,584.72",MEM LTS 65+,NURSING PLACEMENTS FEES,2102859474,1651851
10.10.2018,ADULT SOCIAL CARE,CASTLEBAR HEALTHCARE LTD,"2,584.72",MEM LTS 65+,NURSING PLACEMENTS FEES,2102871543,1651851
10.10.2018,ADULT SOCIAL CARE,CASTLEBAR HEALTHCARE LTD,"2,736.76",MEM LTS 65+,NURSING PLACEMENTS FEES,2102838380,1651851
10.10.2018,ADULT SOCIAL CARE,CARE DIRECT UK LTD,434.39,PHY LTS 65+,HOMECARE - SPOT,2102874309,1000066322
10.10.2018,ADULT SOCIAL CARE,CASTLEBAR HEALTHCARE LTD,-763.37,PHY LTS 65+,NURSING PLACEMENTS FEES,2102783682,1651851
10.10.2018,ADULT SOCIAL CARE,CASTLEBAR HEALTHCARE LTD,"2,374.92",PHY LTS 65+,NURSING PLACEMENTS FEES,2102771180,1651851
10.10.2018,ADULT SOCIAL CARE,REDACTED PERSONAL DATA,320,RESPITE FOSTERCARERS,PAYMENTS TO CARERS,REDACTED,REDACTED
10.10.2018,ADULT SOCIAL CARE,REDACTED PERSONAL DATA,540,RESPITE FOSTERCARERS,PAYMENTS TO CARERS,REDACTED,REDACTED
10.10.2018,ADULT SOCIAL CARE,IMPERIAL SOCIAL CARE LTD,"2,682.40",SAFEGUARDING TEAM,EXTERNAL AGENCIES AND BODIES,5902323235,1000081207
10.10.2018,ADULT SOCIAL CARE,J&G MEDICAL LTD,"3,330.00",SAFEGUARDING TEAM,OTHER CONTRACTORS,5902323241,1000076262
10.10.2018,ADULT SOCIAL CARE,J&G MEDICAL LTD,"5,092.00",SAFEGUARDING TEAM,OTHER CONTRACTORS,5902323242,1000076262
10.10.2018,ADULT SOCIAL CARE,RADHA CONSULTING LTD,"1,282.55",SAFEGUARDING TEAM,OTHER CONTRACTORS,5902323244,1000061154
10.10.2018,ADULT SOCIAL CARE,ROMEDICAL LTD,377.61,SAFEGUARDING TEAM,OTHER CONTRACTORS,5902323222,1000076318
10.10.2018,ADULT SOCIAL CARE,ROMEDICAL LTD,573.94,SAFEGUARDING TEAM,OTHER CONTRACTORS,5902323225,1000076318
10.10.2018,ADULT SOCIAL CARE,ROMEDICAL LTD,574.76,SAFEGUARDING TEAM,OTHER CONTRACTORS,5902323223,1000076318
10.10.2018,ASSET MANAGEMENT,BUILDTRUST LTD,"6,162.91",R&M CONTRACTS (SOUTH),BUILDING R&M,2102874340,3000002010
10.10.2018,ASSET MANAGEMENT,BUILDTRUST LTD,"14,107.06",R&M CONTRACTS (SOUTH),BUILDING R&M,2102874339,3000002010
10.10.2018,ASSET MANAGEMENT,GAS & ENVIRONMENTAL SERVICES LTD,"2,694.40",REPAIRS OPERATIONS,EQUIPMENT PURCHASE & REPAIR,5902323273,1000066947
10.10.2018,ASSET MANAGEMENT,BRIDGEWATER ROOFING CONTRACTORS LTD,380,VISIBLE DIFFERENCE (NORTH),BUILDING R&M,2102874341,3000001482
10.10.2018,CENTRAL FUNCTIONS,KENT COUNTY COUNCIL - LASER,645.48,HEATING ACCOUNT,GAS,2102865071,1000012926
10.10.2018,CHIEF EXECUTIVE,ADAMS AND SUTHERLAND,961.2,CAPITAL PS (REGEN),CONSTRUCTION FEES,5902323277,1000066083
10.10.2018,CHIEF EXECUTIVE,FARRER HUXLEY ASSOCIATES,"4,068.79",CAPITAL PS (REGEN),CONSTRUCTION FEES  - EXTERNAL,5902323543,1000052362
10.10.2018,CHIEF EXECUTIVE,MARK  RUSSELL,482,CAPITAL PS (REGEN),CONSTRUCTION FEES  - EXTERNAL,5902322915,1000055481
10.10.2018,CHIEF EXECUTIVE,LDA DESIGN CONSULTING LTD,"5,250.96",CAPITAL PS (REGEN),CONSTRUCTION FEES - ARCHITECT,5902322961,1000031830
10.10.2018,CHIEF EXECUTIVE,SHARPE PRITCHARD LLP,608.9,CAPITAL PS (STRAT SERV),CONSTRUCTION FEES - LEGAL,5902323258,1790085
10.10.2018,CHILDREN AND ADULT,RUSSELL TREW LIMITED,"6,031.09",CAPITAL PS (EDUCATION),CONSTRUCTION,2102874338,3000001855
10.10.2018,CHILDREN AND ADULT,FAITHFUL & GOULD,"21,754.50",CAPITAL PS (SOC SERV),CONSTRUCTION FEES  - EXTERNAL,5902323558,1000061390
10.10.2018,CHILDREN'S SERVICES,REDACTED PERSONAL DATA,251.94,ADOPTION PLACEMENTS & INTER AGENCY,PAYMENTS TO CARERS,REDACTED,REDACTED
10.10.2018,CHILDREN'S SERVICES,REDACTED PERSONAL DATA,252.9,ADOPTION PLACEMENTS & INTER AGENCY,PAYMENTS TO CARERS,REDACTED,REDACTED
10.10.2018,CHILDREN'S SERVICES,REDACTED PERSONAL DATA,253.56,ADOPTION PLACEMENTS & INTER AGENCY,PAYMENTS TO CARERS,REDACTED,REDACTED
10.10.2018,CHILDREN'S SERVICES,REDACTED PERSONAL DATA,255.22,ADOPTION PLACEMENTS & INTER AGENCY,PAYMENTS TO CARERS,REDACTED,REDACTED
10.10.2018,CHILDREN'S SERVICES,REDACTED PERSONAL DATA,261,ADOPTION PLACEMENTS & INTER AGENCY,PAYMENTS TO CARERS,REDACTED,REDACTED
10.10.2018,CHILDREN'S SERVICES,REDACTED PERSONAL DATA,269.22,ADOPTION PLACEMENTS & INTER AGENCY,PAYMENTS TO CARERS,REDACTED,REDACTED
10.10.2018,CHILDREN'S SERVICES,REDACTED PERSONAL DATA,271.04,ADOPTION PLACEMENTS & INTER AGENCY,PAYMENTS TO CARERS,REDACTED,REDACTED
10.10.2018,CHILDREN'S SERVICES,REDACTED PERSONAL DATA,275.1,ADOPTION PLACEMENTS & INTER AGENCY,PAYMENTS TO CARERS,REDACTED,REDACTED
10.10.2018,CHILDREN'S SERVICES,REDACTED PERSONAL DATA,279.26,ADOPTION PLACEMENTS & INTER AGENCY,PAYMENTS TO CARERS,REDACTED,REDACTED
10.10.2018,CHILDREN'S SERVICES,REDACTED PERSONAL DATA,282.76,ADOPTION PLACEMENTS & INTER AGENCY,PAYMENTS TO CARERS,REDACTED,REDACTED
10.10.2018,CHILDREN'S SERVICES,REDACTED PERSONAL DATA,293.98,ADOPTION PLACEMENTS & INTER AGENCY,PAYMENTS TO CARERS,REDACTED,REDACTED
10.10.2018,CHILDREN'S SERVICES,REDACTED PERSONAL DATA,304.64,ADOPTION PLACEMENTS & INTER AGENCY,PAYMENTS TO CARERS,REDACTED,REDACTED
10.10.2018,CHILDREN'S SERVICES,REDACTED PERSONAL DATA,316.5,ADOPTION PLACEMENTS & INTER AGENCY,PAYMENTS TO CARERS,REDACTED,REDACTED
10.10.2018,CHILDREN'S SERVICES,REDACTED PERSONAL DATA,359.44,ADOPTION PLACEMENTS & INTER AGENCY,PAYMENTS TO CARERS,REDACTED,REDACTED
10.10.2018,CHILDREN'S SERVICES,REDACTED PERSONAL DATA,368.52,ADOPTION PLACEMENTS & INTER AGENCY,PAYMENTS TO CARERS,REDACTED,REDACTED
10.10.2018,CHILDREN'S SERVICES,REDACTED PERSONAL DATA,375.54,ADOPTION PLACEMENTS & INTER AGENCY,PAYMENTS TO CARERS,REDACTED,REDACTED
10.10.2018,CHILDREN'S SERVICES,REDACTED PERSONAL DATA,375.54,ADOPTION PLACEMENTS & INTER AGENCY,PAYMENTS TO CARERS,REDACTED,REDACTED
10.10.2018,CHILDREN'S SERVICES,REDACTED PERSONAL DATA,375.54,ADOPTION PLACEMENTS & INTER AGENCY,PAYMENTS TO CARERS,REDACTED,REDACTED
10.10.2018,CHILDREN'S SERVICES,REDACTED PERSONAL DATA,375.54,ADOPTION PLACEMENTS & INTER AGENCY,PAYMENTS TO CARERS,REDACTED,REDACTED
10.10.2018,CHILDREN'S SERVICES,REDACTED PERSONAL DATA,375.54,ADOPTION PLACEMENTS & INTER AGENCY,PAYMENTS TO CARERS,REDACTED,REDACTED
10.10.2018,CHILDREN'S SERVICES,REDACTED PERSONAL DATA,375.54,ADOPTION PLACEMENTS & INTER AGENCY,PAYMENTS TO CARERS,REDACTED,REDACTED
10.10.2018,CHILDREN'S SERVICES,REDACTED PERSONAL DATA,375.54,ADOPTION PLACEMENTS & INTER AGENCY,PAYMENTS TO CARERS,REDACTED,REDACTED
10.10.2018,CHILDREN'S SERVICES,REDACTED PERSONAL DATA,375.54,ADOPTION PLACEMENTS & INTER AGENCY,PAYMENTS TO CARERS,REDACTED,REDACTED
10.10.2018,CHILDREN'S SERVICES,REDACTED PERSONAL DATA,375.54,ADOPTION PLACEMENTS & INTER AGENCY,PAYMENTS TO CARERS,REDACTED,REDACTED
10.10.2018,CHILDREN'S SERVICES,REDACTED PERSONAL DATA,382.3,ADOPTION PLACEMENTS & INTER AGENCY,PAYMENTS TO CARERS,REDACTED,REDACTED
10.10.2018,CHILDREN'S SERVICES,REDACTED PERSONAL DATA,382.3,ADOPTION PLACEMENTS & INTER AGENCY,PAYMENTS TO CARERS,REDACTED,REDACTED
10.10.2018,CHILDREN'S SERVICES,REDACTED PERSONAL DATA,382.3,ADOPTION PLACEMENTS & INTER AGENCY,PAYMENTS TO CARERS,REDACTED,REDACTED
10.10.2018,CHILDREN'S SERVICES,REDACTED PERSONAL DATA,382.3,ADOPTION PLACEMENTS & INTER AGENCY,PAYMENTS TO CARERS,REDACTED,REDACTED
10.10.2018,CHILDREN'S SERVICES,REDACTED PERSONAL DATA,390.26,ADOPTION PLACEMENTS & INTER AGENCY,PAYMENTS TO CARERS,REDACTED,REDACTED
10.10.2018,CHILDREN'S SERVICES,REDACTED PERSONAL DATA,400.84,ADOPTION PLACEMENTS & INTER AGENCY,PAYMENTS TO CARERS,REDACTED,REDACTED
10.10.2018,CHILDREN'S SERVICES,REDACTED PERSONAL DATA,400.84,ADOPTION PLACEMENTS & INTER AGENCY,PAYMENTS TO CARERS,REDACTED,REDACTED
10.10.2018,CHILDREN'S SERVICES,REDACTED PERSONAL DATA,404.46,ADOPTION PLACEMENTS & INTER AGENCY,PAYMENTS TO CARERS,REDACTED,REDACTED
10.10.2018,CHILDREN'S SERVICES,REDACTED PERSONAL DATA,408.78,ADOPTION PLACEMENTS & INTER AGENCY,PAYMENTS TO CARERS,REDACTED,REDACTED
10.10.2018,CHILDREN'S SERVICES,REDACTED PERSONAL DATA,451.8,ADOPTION PLACEMENTS & INTER AGENCY,PAYMENTS TO CARERS,REDACTED,REDACTED
10.10.2018,CHILDREN'S SERVICES,REDACTED PERSONAL DATA,453.24,ADOPTION PLACEMENTS & INTER AGENCY,PAYMENTS TO CARERS,REDACTED,REDACTED
10.10.2018,CHILDREN'S SERVICES,REDACTED PERSONAL DATA,457.14,ADOPTION PLACEMENTS & INTER AGENCY,PAYMENTS TO CARERS,REDACTED,REDACTED
10.10.2018,CHILDREN'S SERVICES,REDACTED PERSONAL DATA,465.48,ADOPTION PLACEMENTS & INTER AGENCY,PAYMENTS TO CARERS,REDACTED,REDACTED
10.10.2018,CHILDREN'S SERVICES,REDACTED PERSONAL DATA,465.52,ADOPTION PLACEMENTS & INTER AGENCY,PAYMENTS TO CARERS,REDACTED,REDACTED
10.10.2018,CHILDREN'S SERVICES,REDACTED PERSONAL DATA,465.52,ADOPTION PLACEMENTS & INTER AGENCY,PAYMENTS TO CARERS,REDACTED,REDACTED
10.10.2018,CHILDREN'S SERVICES,REDACTED PERSONAL DATA,465.54,ADOPTION PLACEMENTS & INTER AGENCY,PAYMENTS TO CARERS,REDACTED,REDACTED
10.10.2018,CHILDREN'S SERVICES,REDACTED PERSONAL DATA,465.54,ADOPTION PLACEMENTS & INTER AGENCY,PAYMENTS TO CARERS,REDACTED,REDACTED
10.10.2018,CHILDREN'S SERVICES,REDACTED PERSONAL DATA,465.54,ADOPTION PLACEMENTS & INTER AGENCY,PAYMENTS TO CARERS,REDACTED,REDACTED
10.10.2018,CHILDREN'S SERVICES,REDACTED PERSONAL DATA,465.54,ADOPTION PLACEMENTS & INTER AGENCY,PAYMENTS TO CARERS,REDACTED,REDACTED
10.10.2018,CHILDREN'S SERVICES,REDACTED PERSONAL DATA,484.92,ADOPTION PLACEMENTS & INTER AGENCY,PAYMENTS TO CARERS,REDACTED,REDACTED
10.10.2018,CHILDREN'S SERVICES,REDACTED PERSONAL DATA,485.22,ADOPTION PLACEMENTS & INTER AGENCY,PAYMENTS TO CARERS,REDACTED,REDACTED
10.10.2018,CHILDREN'S SERVICES,REDACTED PERSONAL DATA,502,ADOPTION PLACEMENTS & INTER AGENCY,PAYMENTS TO CARERS,REDACTED,REDACTED
10.10.2018,CHILDREN'S SERVICES,REDACTED PERSONAL DATA,510.96,ADOPTION PLACEMENTS & INTER AGENCY,PAYMENTS TO CARERS,REDACTED,REDACTED
10.10.2018,CHILDREN'S SERVICES,REDACTED PERSONAL DATA,512.02,ADOPTION PLACEMENTS & INTER AGENCY,PAYMENTS TO CARERS,REDACTED,REDACTED
10.10.2018,CHILDREN'S SERVICES,REDACTED PERSONAL DATA,530,ADOPTION PLACEMENTS & INTER AGENCY,PAYMENTS TO CARERS,REDACTED,REDACTED
10.10.2018,CHILDREN'S SERVICES,REDACTED PERSONAL DATA,552.16,ADOPTION PLACEMENTS & INTER AGENCY,PAYMENTS TO CARERS,REDACTED,REDACTED
10.10.2018,CHILDREN'S SERVICES,REDACTED PERSONAL DATA,559.06,ADOPTION PLACEMENTS & INTER AGENCY,PAYMENTS TO CARERS,REDACTED,REDACTED
10.10.2018,CHILDREN'S SERVICES,REDACTED PERSONAL DATA,578.39,ADOPTION PLACEMENTS & INTER AGENCY,PAYMENTS TO CARERS,REDACTED,REDACTED
10.10.2018,CHILDREN'S SERVICES,REDACTED PERSONAL DATA,588.42,ADOPTION PLACEMENTS & INTER AGENCY,PAYMENTS TO CARERS,REDACTED,REDACTED
10.10.2018,CHILDREN'S SERVICES,REDACTED PERSONAL DATA,635.34,ADOPTION PLACEMENTS & INTER AGENCY,PAYMENTS TO CARERS,REDACTED,REDACTED
10.10.2018,CHILDREN'S SERVICES,REDACTED PERSONAL DATA,635.34,ADOPTION PLACEMENTS & INTER AGENCY,PAYMENTS TO CARERS,REDACTED,REDACTED
10.10.2018,CHILDREN'S SERVICES,REDACTED PERSONAL DATA,640.9,ADOPTION PLACEMENTS & INTER AGENCY,PAYMENTS TO CARERS,REDACTED,REDACTED
10.10.2018,CHILDREN'S SERVICES,REDACTED PERSONAL DATA,652.9,ADOPTION PLACEMENTS & INTER AGENCY,PAYMENTS TO CARERS,REDACTED,REDACTED
10.10.2018,CHILDREN'S SERVICES,REDACTED PERSONAL DATA,652.9,ADOPTION PLACEMENTS & INTER AGENCY,PAYMENTS TO CARERS,REDACTED,REDACTED
10.10.2018,CHILDREN'S SERVICES,REDACTED PERSONAL DATA,653.06,ADOPTION PLACEMENTS & INTER AGENCY,PAYMENTS TO CARERS,REDACTED,REDACTED
10.10.2018,CHILDREN'S SERVICES,REDACTED PERSONAL DATA,682.3,ADOPTION PLACEMENTS & INTER AGENCY,PAYMENTS TO CARERS,REDACTED,REDACTED
10.10.2018,CHILDREN'S SERVICES,REDACTED PERSONAL DATA,682.3,ADOPTION PLACEMENTS & INTER AGENCY,PAYMENTS TO CARERS,REDACTED,REDACTED
10.10.2018,CHILDREN'S SERVICES,REDACTED PERSONAL DATA,695.04,ADOPTION PLACEMENTS & INTER AGENCY,PAYMENTS TO CARERS,REDACTED,REDACTED
10.10.2018,CHILDREN'S SERVICES,REDACTED PERSONAL DATA,695.12,ADOPTION PLACEMENTS & INTER AGENCY,PAYMENTS TO CARERS,REDACTED,REDACTED
10.10.2018,CHILDREN'S SERVICES,REDACTED PERSONAL DATA,700,ADOPTION PLACEMENTS & INTER AGENCY,PAYMENTS TO CARERS,REDACTED,REDACTED
10.10.2018,CHILDREN'S SERVICES,REDACTED PERSONAL DATA,705.24,ADOPTION PLACEMENTS & INTER AGENCY,PAYMENTS TO CARERS,REDACTED,REDACTED
10.10.2018,CHILDREN'S SERVICES,REDACTED PERSONAL DATA,712.3,ADOPTION PLACEMENTS & INTER AGENCY,PAYMENTS TO CARERS,REDACTED,REDACTED
10.10.2018,CHILDREN'S SERVICES,REDACTED PERSONAL DATA,717.14,ADOPTION PLACEMENTS & INTER AGENCY,PAYMENTS TO CARERS,REDACTED,REDACTED
10.10.2018,CHILDREN'S SERVICES,REDACTED PERSONAL DATA,738.32,ADOPTION PLACEMENTS & INTER AGENCY,PAYMENTS TO CARERS,REDACTED,REDACTED
10.10.2018,CHILDREN'S SERVICES,REDACTED PERSONAL DATA,767.68,ADOPTION PLACEMENTS & INTER AGENCY,PAYMENTS TO CARERS,REDACTED,REDACTED
10.10.2018,CHILDREN'S SERVICES,REDACTED PERSONAL DATA,777.36,ADOPTION PLACEMENTS & INTER AGENCY,PAYMENTS TO CARERS,REDACTED,REDACTED
10.10.2018,CHILDREN'S SERVICES,REDACTED PERSONAL DATA,854.28,ADOPTION PLACEMENTS & INTER AGENCY,PAYMENTS TO CARERS,REDACTED,REDACTED
10.10.2018,CHILDREN'S SERVICES,REDACTED PERSONAL DATA,908,ADOPTION PLACEMENTS & INTER AGENCY,PAYMENTS TO CARERS,REDACTED,REDACTED
10.10.2018,CHILDREN'S SERVICES,REDACTED PERSONAL DATA,"1,053.20",ADOPTION PLACEMENTS & INTER AGENCY,PAYMENTS TO CARERS,REDACTED,REDACTED
10.10.2018,CHILDREN'S SERVICES,ALBION PRIMARY SCHOOL,"13,500.00",ALBION PRIMARY SCHOOL,EARLY YEARS - 3 AND 4 YEAR OLDS,5902323299,5001000000
10.10.2018,CHILDREN'S SERVICES,ALBION PRIMARY SCHOOL,"166,473.00",ALBION PRIMARY SCHOOL,SCHOOLS CAPITATION,5902323300,5001000000
10.10.2018,CHILDREN'S SERVICES,ALFRED SALTER PRIMARY SCHOOL,"16,362.00",ALFRED SALTER PRIMARY SCHOOL,EARLY YEARS - 3 AND 4 YEAR OLDS,5902323302,5001000005
10.10.2018,CHILDREN'S SERVICES,ALFRED SALTER PRIMARY SCHOOL,"173,612.00",ALFRED SALTER PRIMARY SCHOOL,SCHOOLS CAPITATION,5902323303,5001000005
10.10.2018,CHILDREN'S SERVICES,ACCESS MOBILITY TRANSPORT LTD,"1,995.00",ALTERNATIVE PROVISION,EXTERNAL AGENCIES AND BODIES,5902322970,1000074637
10.10.2018,CHILDREN'S SERVICES,WINCHMORE TUTORS LTD,"5,300.00",ALTERNATIVE PROVISION,EXTERNAL AGENCIES AND BODIES,5902323248,1000075298
10.10.2018,CHILDREN'S SERVICES,ANN BERNADT NURSERY SCHOOL,"66,896.00",ANN BERNADT (SUMNER),EARLY YEARS - 3 AND 4 YEAR OLDS,5902323469,5001000085
10.10.2018,CHILDREN'S SERVICES,BELLENDEN PRIMARY SCHOOL,"10,640.00",BELLENDEN PRIMARY SCHOOL,EARLY YEARS - 3 AND 4 YEAR OLDS,5902323305,5001000007
10.10.2018,CHILDREN'S SERVICES,BELLENDEN PRIMARY SCHOOL,"103,949.00",BELLENDEN PRIMARY SCHOOL,SCHOOLS CAPITATION,5902323306,5001000007
10.10.2018,CHILDREN'S SERVICES,BEORMUND PRIMARY SCHOOL,"70,159.00",BEORMUND PRIMARY SCHOOL,HIGH NEEDS - TOP UP FUNDING,5902323308,5001000008
10.10.2018,CHILDREN'S SERVICES,BESSEMER GRANGE PRIMARY SCHOOL,"25,687.00",BESSEMER GRANGE PRIMARY SCHOOL,EARLY YEARS - 3 AND 4 YEAR OLDS,5902323309,5001000009
10.10.2018,CHILDREN'S SERVICES,BESSEMER GRANGE PRIMARY SCHOOL,"237,627.00",BESSEMER GRANGE PRIMARY SCHOOL,SCHOOLS CAPITATION,5902323310,5001000009
10.10.2018,CHILDREN'S SERVICES,BOUCHER C OF E PRIMARY SCHOOL,"95,212.00",BOUTCHER CE PRIMARY SCHOOL,SCHOOLS CAPITATION,5902323313,5001000011
10.10.2018,CHILDREN'S SERVICES,BRUNSWICK PARK PRIMARY SCHOOL,"12,396.00",BRUNSWICK PARK PRIMARY SCHOOL,EARLY YEARS - 3 AND 4 YEAR OLDS,5902323315,5001000013
10.10.2018,CHILDREN'S SERVICES,BRUNSWICK PARK PRIMARY SCHOOL,"30,573.00",BRUNSWICK PARK PRIMARY SCHOOL,HIGH NEEDS - TOP UP FUNDING SEN UNIT,5902323317,5001000013
10.10.2018,CHILDREN'S SERVICES,BRUNSWICK PARK PRIMARY SCHOOL,"196,895.00",BRUNSWICK PARK PRIMARY SCHOOL,SCHOOLS CAPITATION,5902323316,5001000013
10.10.2018,CHILDREN'S SERVICES,CAMELOT PRIMARY SCHOOL,"14,216.00",CAMELOT PRIMARY SCHOOL,EARLY YEARS - 3 AND 4 YEAR OLDS,5902323318,5001000014
10.10.2018,CHILDREN'S SERVICES,CAMELOT PRIMARY SCHOOL,"201,870.00",CAMELOT PRIMARY SCHOOL,SCHOOLS CAPITATION,5902323319,5001000014
10.10.2018,CHILDREN'S SERVICES,CHARLES DICKENS PRIMARY SCHOOL,"14,859.00",CHARLES DICKENS PRIMARY SCHOOL,EARLY YEARS - 3 AND 4 YEAR OLDS,5902323321,5001000015
10.10.2018,CHILDREN'S SERVICES,CHARLES DICKENS PRIMARY SCHOOL,"175,049.00",CHARLES DICKENS PRIMARY SCHOOL,SCHOOLS CAPITATION,5902323322,5001000015
10.10.2018,CHILDREN'S SERVICES,CHARLOTTE  SHARMAN PRIMARY SCHOOL,"14,759.00",CHARLOTTE SHARMAN PRIMARY SCHOOL,EARLY YEARS - 3 AND 4 YEAR OLDS,5902323324,5001000016
10.10.2018,CHILDREN'S SERVICES,CHARLOTTE  SHARMAN PRIMARY SCHOOL,"133,468.00",CHARLOTTE SHARMAN PRIMARY SCHOOL,SCHOOLS CAPITATION,5902323325,5001000016
10.10.2018,CHILDREN'S SERVICES,CHERRY GARDEN SCHOOL,"129,597.00",CHERRY GARDEN PRIMARY SCHOOL,HIGH NEEDS - TOP UP FUNDING,5902323332,5001000020
10.10.2018,CHILDREN'S SERVICES,COBOURG PRIMARY SCHOOL,"11,260.00",COBOURG PRIMARY SCHOOL,EARLY YEARS - 3 AND 4 YEAR OLDS,5902323333,5001000021
10.10.2018,CHILDREN'S SERVICES,COBOURG PRIMARY SCHOOL,"173,378.00",COBOURG PRIMARY SCHOOL,SCHOOLS CAPITATION,5902323334,5001000021
10.10.2018,CHILDREN'S SERVICES,COMBER GROVE PRIMARY SCHOOL,"13,396.00",COMBER GROVE PRIMARY SCHOOL,EARLY YEARS - 3 AND 4 YEAR OLDS,5902323336,5001000022
10.10.2018,CHILDREN'S SERVICES,COMBER GROVE PRIMARY SCHOOL,"123,475.00",COMBER GROVE PRIMARY SCHOOL,SCHOOLS CAPITATION,5902323337,5001000022
10.10.2018,CHILDREN'S SERVICES,CRAMPTON PRIMARY SCHOOL,"89,404.00",CRAMPTON PRIMARY SCHOOL,SCHOOLS CAPITATION,5902323339,5001000023
10.10.2018,CHILDREN'S SERVICES,CRAWFORD PRIMARY SCHOOL,"13,060.00",CRAWFORD PRIMARY SCHOOL,EARLY YEARS - 3 AND 4 YEAR OLDS,5902323341,5001000024
10.10.2018,CHILDREN'S SERVICES,CRAWFORD PRIMARY SCHOOL,"226,446.00",CRAWFORD PRIMARY SCHOOL,SCHOOLS CAPITATION,5902323342,5001000024
10.10.2018,CHILDREN'S SERVICES,REDACTED PERSONAL DATA,308.57,DISABILITY & HIV,OTHER PAYMENTS FOR CLIENTS,REDACTED,REDACTED
10.10.2018,CHILDREN'S SERVICES,REDACTED PERSONAL DATA,527.14,DISABILITY & HIV,OTHER PAYMENTS FOR CLIENTS,REDACTED,REDACTED
10.10.2018,CHILDREN'S SERVICES,REDACTED PERSONAL DATA,-875,DISABILITY & HIV,PAYMENTS TO CARERS,REDACTED,REDACTED
10.10.2018,CHILDREN'S SERVICES,REDACTED PERSONAL DATA,-713.25,DISABILITY & HIV,PAYMENTS TO CARERS,REDACTED,REDACTED
10.10.2018,CHILDREN'S SERVICES,REDACTED PERSONAL DATA,-399.06,DISABILITY & HIV,PAYMENTS TO CARERS,REDACTED,REDACTED
10.10.2018,CHILDREN'S SERVICES,REDACTED PERSONAL DATA,-388.04,DISABILITY & HIV,PAYMENTS TO CARERS,REDACTED,REDACTED
10.10.2018,CHILDREN'S SERVICES,REDACTED PERSONAL DATA,-380.62,DISABILITY & HIV,PAYMENTS TO CARERS,REDACTED,REDACTED
10.10.2018,CHILDREN'S SERVICES,REDACTED PERSONAL DATA,-356.15,DISABILITY & HIV,PAYMENTS TO CARERS,REDACTED,REDACTED
10.10.2018,CHILDREN'S SERVICES,REDACTED PERSONAL DATA,-356.15,DISABILITY & HIV,PAYMENTS TO CARERS,REDACTED,REDACTED
10.10.2018,CHILDREN'S SERVICES,REDACTED PERSONAL DATA,-292.41,DISABILITY & HIV,PAYMENTS TO CARERS,REDACTED,REDACTED
10.10.2018,CHILDREN'S SERVICES,REDACTED PERSONAL DATA,300,DISABILITY & HIV,PAYMENTS TO CARERS,REDACTED,REDACTED
10.10.2018,CHILDREN'S SERVICES,REDACTED PERSONAL DATA,330,DISABILITY & HIV,PAYMENTS TO CARERS,REDACTED,REDACTED
10.10.2018,CHILDREN'S SERVICES,REDACTED PERSONAL DATA,335.34,DISABILITY & HIV,PAYMENTS TO CARERS,REDACTED,REDACTED
10.10.2018,CHILDREN'S SERVICES,REDACTED PERSONAL DATA,345.46,DISABILITY & HIV,PAYMENTS TO CARERS,REDACTED,REDACTED
10.10.2018,CHILDREN'S SERVICES,REDACTED PERSONAL DATA,382.3,DISABILITY & HIV,PAYMENTS TO CARERS,REDACTED,REDACTED
10.10.2018,CHILDREN'S SERVICES,REDACTED PERSONAL DATA,476.08,DISABILITY & HIV,PAYMENTS TO CARERS,REDACTED,REDACTED
10.10.2018,CHILDREN'S SERVICES,REDACTED PERSONAL DATA,635.34,DISABILITY & HIV,PAYMENTS TO CARERS,REDACTED,REDACTED
10.10.2018,CHILDREN'S SERVICES,REDACTED PERSONAL DATA,635.34,DISABILITY & HIV,PAYMENTS TO CARERS,REDACTED,REDACTED
10.10.2018,CHILDREN'S SERVICES,REDACTED PERSONAL DATA,635.34,DISABILITY & HIV,PAYMENTS TO CARERS,REDACTED,REDACTED
10.10.2018,CHILDREN'S SERVICES,REDACTED PERSONAL DATA,665.34,DISABILITY & HIV,PAYMENTS TO CARERS,REDACTED,REDACTED
10.10.2018,CHILDREN'S SERVICES,REDACTED PERSONAL DATA,665.34,DISABILITY & HIV,PAYMENTS TO CARERS,REDACTED,REDACTED
10.10.2018,CHILDREN'S SERVICES,REDACTED PERSONAL DATA,665.34,DISABILITY & HIV,PAYMENTS TO CARERS,REDACTED,REDACTED
10.10.2018,CHILDREN'S SERVICES,REDACTED PERSONAL DATA,665.34,DISABILITY & HIV,PAYMENTS TO CARERS,REDACTED,REDACTED
10.10.2018,CHILDREN'S SERVICES,REDACTED PERSONAL DATA,665.34,DISABILITY & HIV,PAYMENTS TO CARERS,REDACTED,REDACTED
10.10.2018,CHILDREN'S SERVICES,REDACTED PERSONAL DATA,665.34,DISABILITY & HIV,PAYMENTS TO CARERS,REDACTED,REDACTED
10.10.2018,CHILDREN'S SERVICES,REDACTED PERSONAL DATA,665.34,DISABILITY & HIV,PAYMENTS TO CARERS,REDACTED,REDACTED
10.10.2018,CHILDREN'S SERVICES,REDACTED PERSONAL DATA,665.34,DISABILITY & HIV,PAYMENTS TO CARERS,REDACTED,REDACTED
10.10.2018,CHILDREN'S SERVICES,REDACTED PERSONAL DATA,665.34,DISABILITY & HIV,PAYMENTS TO CARERS,REDACTED,REDACTED
10.10.2018,CHILDREN'S SERVICES,REDACTED PERSONAL DATA,682.3,DISABILITY & HIV,PAYMENTS TO CARERS,REDACTED,REDACTED
10.10.2018,CHILDREN'S SERVICES,REDACTED PERSONAL DATA,682.3,DISABILITY & HIV,PAYMENTS TO CARERS,REDACTED,REDACTED
10.10.2018,CHILDREN'S SERVICES,REDACTED PERSONAL DATA,682.3,DISABILITY & HIV,PAYMENTS TO CARERS,REDACTED,REDACTED
10.10.2018,CHILDREN'S SERVICES,REDACTED PERSONAL DATA,682.3,DISABILITY & HIV,PAYMENTS TO CARERS,REDACTED,REDACTED
10.10.2018,CHILDREN'S SERVICES,REDACTED PERSONAL DATA,682.3,DISABILITY & HIV,PAYMENTS TO CARERS,REDACTED,REDACTED
10.10.2018,CHILDREN'S SERVICES,REDACTED PERSONAL DATA,682.3,DISABILITY & HIV,PAYMENTS TO CARERS,REDACTED,REDACTED
10.10.2018,CHILDREN'S SERVICES,REDACTED PERSONAL DATA,682.3,DISABILITY & HIV,PAYMENTS TO CARERS,REDACTED,REDACTED
10.10.2018,CHILDREN'S SERVICES,REDACTED PERSONAL DATA,682.3,DISABILITY & HIV,PAYMENTS TO CARERS,REDACTED,REDACTED
10.10.2018,CHILDREN'S SERVICES,REDACTED PERSONAL DATA,682.3,DISABILITY & HIV,PAYMENTS TO CARERS,REDACTED,REDACTED
10.10.2018,CHILDREN'S SERVICES,REDACTED PERSONAL DATA,684.1,DISABILITY & HIV,PAYMENTS TO CARERS,REDACTED,REDACTED
10.10.2018,CHILDREN'S SERVICES,REDACTED PERSONAL DATA,695.34,DISABILITY & HIV,PAYMENTS TO CARERS,REDACTED,REDACTED
10.10.2018,CHILDREN'S SERVICES,REDACTED PERSONAL DATA,712.3,DISABILITY & HIV,PAYMENTS TO CARERS,REDACTED,REDACTED
10.10.2018,CHILDREN'S SERVICES,REDACTED PERSONAL DATA,712.3,DISABILITY & HIV,PAYMENTS TO CARERS,REDACTED,REDACTED
10.10.2018,CHILDREN'S SERVICES,REDACTED PERSONAL DATA,712.3,DISABILITY & HIV,PAYMENTS TO CARERS,REDACTED,REDACTED
10.10.2018,CHILDREN'S SERVICES,REDACTED PERSONAL DATA,712.3,DISABILITY & HIV,PAYMENTS TO CARERS,REDACTED,REDACTED
10.10.2018,CHILDREN'S SERVICES,REDACTED PERSONAL DATA,712.3,DISABILITY & HIV,PAYMENTS TO CARERS,REDACTED,REDACTED
10.10.2018,CHILDREN'S SERVICES,REDACTED PERSONAL DATA,712.3,DISABILITY & HIV,PAYMENTS TO CARERS,REDACTED,REDACTED
10.10.2018,CHILDREN'S SERVICES,REDACTED PERSONAL DATA,712.3,DISABILITY & HIV,PAYMENTS TO CARERS,REDACTED,REDACTED
10.10.2018,CHILDREN'S SERVICES,REDACTED PERSONAL DATA,712.3,DISABILITY & HIV,PAYMENTS TO CARERS,REDACTED,REDACTED
10.10.2018,CHILDREN'S SERVICES,REDACTED PERSONAL DATA,712.3,DISABILITY & HIV,PAYMENTS TO CARERS,REDACTED,REDACTED
10.10.2018,CHILDREN'S SERVICES,REDACTED PERSONAL DATA,712.3,DISABILITY & HIV,PAYMENTS TO CARERS,REDACTED,REDACTED
10.10.2018,CHILDREN'S SERVICES,REDACTED PERSONAL DATA,712.3,DISABILITY & HIV,PAYMENTS TO CARERS,REDACTED,REDACTED
10.10.2018,CHILDREN'S SERVICES,REDACTED PERSONAL DATA,712.3,DISABILITY & HIV,PAYMENTS TO CARERS,REDACTED,REDACTED
10.10.2018,CHILDREN'S SERVICES,REDACTED PERSONAL DATA,712.3,DISABILITY & HIV,PAYMENTS TO CARERS,REDACTED,REDACTED
10.10.2018,CHILDREN'S SERVICES,REDACTED PERSONAL DATA,712.3,DISABILITY & HIV,PAYMENTS TO CARERS,REDACTED,REDACTED
10.10.2018,CHILDREN'S SERVICES,REDACTED PERSONAL DATA,712.3,DISABILITY & HIV,PAYMENTS TO CARERS,REDACTED,REDACTED
10.10.2018,CHILDREN'S SERVICES,REDACTED PERSONAL DATA,715.8,DISABILITY & HIV,PAYMENTS TO CARERS,REDACTED,REDACTED
10.10.2018,CHILDREN'S SERVICES,REDACTED PERSONAL DATA,742.3,DISABILITY & HIV,PAYMENTS TO CARERS,REDACTED,REDACTED
10.10.2018,CHILDREN'S SERVICES,REDACTED PERSONAL DATA,754.28,DISABILITY & HIV,PAYMENTS TO CARERS,REDACTED,REDACTED
10.10.2018,CHILDREN'S SERVICES,REDACTED PERSONAL DATA,763.18,DISABILITY & HIV,PAYMENTS TO CARERS,REDACTED,REDACTED
10.10.2018,CHILDREN'S SERVICES,REDACTED PERSONAL DATA,768.12,DISABILITY & HIV,PAYMENTS TO CARERS,REDACTED,REDACTED
10.10.2018,CHILDREN'S SERVICES,REDACTED PERSONAL DATA,768.12,DISABILITY & HIV,PAYMENTS TO CARERS,REDACTED,REDACTED
10.10.2018,CHILDREN'S SERVICES,REDACTED PERSONAL DATA,768.12,DISABILITY & HIV,PAYMENTS TO CARERS,REDACTED,REDACTED
10.10.2018,CHILDREN'S SERVICES,REDACTED PERSONAL DATA,768.12,DISABILITY & HIV,PAYMENTS TO CARERS,REDACTED,REDACTED
10.10.2018,CHILDREN'S SERVICES,REDACTED PERSONAL DATA,768.12,DISABILITY & HIV,PAYMENTS TO CARERS,REDACTED,REDACTED
10.10.2018,CHILDREN'S SERVICES,REDACTED PERSONAL DATA,768.12,DISABILITY & HIV,PAYMENTS TO CARERS,REDACTED,REDACTED
10.10.2018,CHILDREN'S SERVICES,REDACTED PERSONAL DATA,776.08,DISABILITY & HIV,PAYMENTS TO CARERS,REDACTED,REDACTED
10.10.2018,CHILDREN'S SERVICES,REDACTED PERSONAL DATA,776.08,DISABILITY & HIV,PAYMENTS TO CARERS,REDACTED,REDACTED
10.10.2018,CHILDREN'S SERVICES,REDACTED PERSONAL DATA,776.08,DISABILITY & HIV,PAYMENTS TO CARERS,REDACTED,REDACTED
10.10.2018,CHILDREN'S SERVICES,REDACTED PERSONAL DATA,776.08,DISABILITY & HIV,PAYMENTS TO CARERS,REDACTED,REDACTED
10.10.2018,CHILDREN'S SERVICES,REDACTED PERSONAL DATA,776.08,DISABILITY & HIV,PAYMENTS TO CARERS,REDACTED,REDACTED
10.10.2018,CHILDREN'S SERVICES,REDACTED PERSONAL DATA,776.08,DISABILITY & HIV,PAYMENTS TO CARERS,REDACTED,REDACTED
10.10.2018,CHILDREN'S SERVICES,REDACTED PERSONAL DATA,776.08,DISABILITY & HIV,PAYMENTS TO CARERS,REDACTED,REDACTED
10.10.2018,CHILDREN'S SERVICES,REDACTED PERSONAL DATA,776.08,DISABILITY & HIV,PAYMENTS TO CARERS,REDACTED,REDACTED
10.10.2018,CHILDREN'S SERVICES,REDACTED PERSONAL DATA,776.08,DISABILITY & HIV,PAYMENTS TO CARERS,REDACTED,REDACTED
10.10.2018,CHILDREN'S SERVICES,REDACTED PERSONAL DATA,776.08,DISABILITY & HIV,PAYMENTS TO CARERS,REDACTED,REDACTED
10.10.2018,CHILDREN'S SERVICES,REDACTED PERSONAL DATA,798.12,DISABILITY & HIV,PAYMENTS TO CARERS,REDACTED,REDACTED
10.10.2018,CHILDREN'S SERVICES,REDACTED PERSONAL DATA,798.12,DISABILITY & HIV,PAYMENTS TO CARERS,REDACTED,REDACTED
10.10.2018,CHILDREN'S SERVICES,REDACTED PERSONAL DATA,798.12,DISABILITY & HIV,PAYMENTS TO CARERS,REDACTED,REDACTED
10.10.2018,CHILDREN'S SERVICES,REDACTED PERSONAL DATA,798.12,DISABILITY & HIV,PAYMENTS TO CARERS,REDACTED,REDACTED
10.10.2018,CHILDREN'S SERVICES,REDACTED PERSONAL DATA,798.12,DISABILITY & HIV,PAYMENTS TO CARERS,REDACTED,REDACTED
10.10.2018,CHILDREN'S SERVICES,REDACTED PERSONAL DATA,798.12,DISABILITY & HIV,PAYMENTS TO CARERS,REDACTED,REDACTED
10.10.2018,CHILDREN'S SERVICES,REDACTED PERSONAL DATA,798.12,DISABILITY & HIV,PAYMENTS TO CARERS,REDACTED,REDACTED
10.10.2018,CHILDREN'S SERVICES,REDACTED PERSONAL DATA,798.12,DISABILITY & HIV,PAYMENTS TO CARERS,REDACTED,REDACTED
10.10.2018,CHILDREN'S SERVICES,REDACTED PERSONAL DATA,798.12,DISABILITY & HIV,PAYMENTS TO CARERS,REDACTED,REDACTED
10.10.2018,CHILDREN'S SERVICES,REDACTED PERSONAL DATA,798.12,DISABILITY & HIV,PAYMENTS TO CARERS,REDACTED,REDACTED
10.10.2018,CHILDREN'S SERVICES,REDACTED PERSONAL DATA,798.12,DISABILITY & HIV,PAYMENTS TO CARERS,REDACTED,REDACTED
10.10.2018,CHILDREN'S SERVICES,REDACTED PERSONAL DATA,798.12,DISABILITY & HIV,PAYMENTS TO CARERS,REDACTED,REDACTED
10.10.2018,CHILDREN'S SERVICES,REDACTED PERSONAL DATA,798.12,DISABILITY & HIV,PAYMENTS TO CARERS,REDACTED,REDACTED
10.10.2018,CHILDREN'S SERVICES,REDACTED PERSONAL DATA,798.12,DISABILITY & HIV,PAYMENTS TO CARERS,REDACTED,REDACTED
10.10.2018,CHILDREN'S SERVICES,REDACTED PERSONAL DATA,798.12,DISABILITY & HIV,PAYMENTS TO CARERS,REDACTED,REDACTED
10.10.2018,CHILDREN'S SERVICES,REDACTED PERSONAL DATA,798.12,DISABILITY & HIV,PAYMENTS TO CARERS,REDACTED,REDACTED
10.10.2018,CHILDREN'S SERVICES,REDACTED PERSONAL DATA,798.12,DISABILITY & HIV,PAYMENTS TO CARERS,REDACTED,REDACTED
10.10.2018,CHILDREN'S SERVICES,REDACTED PERSONAL DATA,798.12,DISABILITY & HIV,PAYMENTS TO CARERS,REDACTED,REDACTED
10.10.2018,CHILDREN'S SERVICES,REDACTED PERSONAL DATA,798.12,DISABILITY & HIV,PAYMENTS TO CARERS,REDACTED,REDACTED
10.10.2018,CHILDREN'S SERVICES,REDACTED PERSONAL DATA,798.12,DISABILITY & HIV,PAYMENTS TO CARERS,REDACTED,REDACTED
10.10.2018,CHILDREN'S SERVICES,REDACTED PERSONAL DATA,798.12,DISABILITY & HIV,PAYMENTS TO CARERS,REDACTED,REDACTED
10.10.2018,CHILDREN'S SERVICES,REDACTED PERSONAL DATA,798.12,DISABILITY & HIV,PAYMENTS TO CARERS,REDACTED,REDACTED
10.10.2018,CHILDREN'S SERVICES,REDACTED PERSONAL DATA,806.08,DISABILITY & HIV,PAYMENTS TO CARERS,REDACTED,REDACTED
10.10.2018,CHILDREN'S SERVICES,REDACTED PERSONAL DATA,806.08,DISABILITY & HIV,PAYMENTS TO CARERS,REDACTED,REDACTED
10.10.2018,CHILDREN'S SERVICES,REDACTED PERSONAL DATA,806.08,DISABILITY & HIV,PAYMENTS TO CARERS,REDACTED,REDACTED
10.10.2018,CHILDREN'S SERVICES,REDACTED PERSONAL DATA,806.08,DISABILITY & HIV,PAYMENTS TO CARERS,REDACTED,REDACTED
10.10.2018,CHILDREN'S SERVICES,REDACTED PERSONAL DATA,806.08,DISABILITY & HIV,PAYMENTS TO CARERS,REDACTED,REDACTED
10.10.2018,CHILDREN'S SERVICES,REDACTED PERSONAL DATA,806.08,DISABILITY & HIV,PAYMENTS TO CARERS,REDACTED,REDACTED
10.10.2018,CHILDREN'S SERVICES,REDACTED PERSONAL DATA,806.08,DISABILITY & HIV,PAYMENTS TO CARERS,REDACTED,REDACTED
10.10.2018,CHILDREN'S SERVICES,REDACTED PERSONAL DATA,806.08,DISABILITY & HIV,PAYMENTS TO CARERS,REDACTED,REDACTED
10.10.2018,CHILDREN'S SERVICES,REDACTED PERSONAL DATA,806.08,DISABILITY & HIV,PAYMENTS TO CARERS,REDACTED,REDACTED
10.10.2018,CHILDREN'S SERVICES,REDACTED PERSONAL DATA,806.08,DISABILITY & HIV,PAYMENTS TO CARERS,REDACTED,REDACTED
10.10.2018,CHILDREN'S SERVICES,REDACTED PERSONAL DATA,806.08,DISABILITY & HIV,PAYMENTS TO CARERS,REDACTED,REDACTED
10.10.2018,CHILDREN'S SERVICES,REDACTED PERSONAL DATA,806.08,DISABILITY & HIV,PAYMENTS TO CARERS,REDACTED,REDACTED
10.10.2018,CHILDREN'S SERVICES,REDACTED PERSONAL DATA,806.08,DISABILITY & HIV,PAYMENTS TO CARERS,REDACTED,REDACTED
10.10.2018,CHILDREN'S SERVICES,REDACTED PERSONAL DATA,806.08,DISABILITY & HIV,PAYMENTS TO CARERS,REDACTED,REDACTED
10.10.2018,CHILDREN'S SERVICES,REDACTED PERSONAL DATA,806.08,DISABILITY & HIV,PAYMENTS TO CARERS,REDACTED,REDACTED
10.10.2018,CHILDREN'S SERVICES,REDACTED PERSONAL DATA,806.08,DISABILITY & HIV,PAYMENTS TO CARERS,REDACTED,REDACTED
10.10.2018,CHILDREN'S SERVICES,REDACTED PERSONAL DATA,806.08,DISABILITY & HIV,PAYMENTS TO CARERS,REDACTED,REDACTED
10.10.2018,CHILDREN'S SERVICES,REDACTED PERSONAL DATA,806.08,DISABILITY & HIV,PAYMENTS TO CARERS,REDACTED,REDACTED
10.10.2018,CHILDREN'S SERVICES,REDACTED PERSONAL DATA,806.08,DISABILITY & HIV,PAYMENTS TO CARERS,REDACTED,REDACTED
10.10.2018,CHILDREN'S SERVICES,REDACTED PERSONAL DATA,806.08,DISABILITY & HIV,PAYMENTS TO CARERS,REDACTED,REDACTED
10.10.2018,CHILDREN'S SERVICES,REDACTED PERSONAL DATA,806.08,DISABILITY & HIV,PAYMENTS TO CARERS,REDACTED,REDACTED
10.10.2018,CHILDREN'S SERVICES,REDACTED PERSONAL DATA,806.08,DISABILITY & HIV,PAYMENTS TO CARERS,REDACTED,REDACTED
10.10.2018,CHILDREN'S SERVICES,REDACTED PERSONAL DATA,806.08,DISABILITY & HIV,PAYMENTS TO CARERS,REDACTED,REDACTED
10.10.2018,CHILDREN'S SERVICES,REDACTED PERSONAL DATA,806.08,DISABILITY & HIV,PAYMENTS TO CARERS,REDACTED,REDACTED
10.10.2018,CHILDREN'S SERVICES,REDACTED PERSONAL DATA,806.08,DISABILITY & HIV,PAYMENTS TO CARERS,REDACTED,REDACTED
10.10.2018,CHILDREN'S SERVICES,REDACTED PERSONAL DATA,806.08,DISABILITY & HIV,PAYMENTS TO CARERS,REDACTED,REDACTED
10.10.2018,CHILDREN'S SERVICES,REDACTED PERSONAL DATA,806.08,DISABILITY & HIV,PAYMENTS TO CARERS,REDACTED,REDACTED
10.10.2018,CHILDREN'S SERVICES,REDACTED PERSONAL DATA,806.08,DISABILITY & HIV,PAYMENTS TO CARERS,REDACTED,REDACTED
10.10.2018,CHILDREN'S SERVICES,REDACTED PERSONAL DATA,806.08,DISABILITY & HIV,PAYMENTS TO CARERS,REDACTED,REDACTED
10.10.2018,CHILDREN'S SERVICES,REDACTED PERSONAL DATA,806.08,DISABILITY & HIV,PAYMENTS TO CARERS,REDACTED,REDACTED
10.10.2018,CHILDREN'S SERVICES,REDACTED PERSONAL DATA,806.08,DISABILITY & HIV,PAYMENTS TO CARERS,REDACTED,REDACTED
10.10.2018,CHILDREN'S SERVICES,REDACTED PERSONAL DATA,806.08,DISABILITY & HIV,PAYMENTS TO CARERS,REDACTED,REDACTED
10.10.2018,CHILDREN'S SERVICES,REDACTED PERSONAL DATA,806.08,DISABILITY & HIV,PAYMENTS TO CARERS,REDACTED,REDACTED
10.10.2018,CHILDREN'S SERVICES,REDACTED PERSONAL DATA,806.08,DISABILITY & HIV,PAYMENTS TO CARERS,REDACTED,REDACTED
10.10.2018,CHILDREN'S SERVICES,REDACTED PERSONAL DATA,806.08,DISABILITY & HIV,PAYMENTS TO CARERS,REDACTED,REDACTED
10.10.2018,CHILDREN'S SERVICES,REDACTED PERSONAL DATA,806.08,DISABILITY & HIV,PAYMENTS TO CARERS,REDACTED,REDACTED
10.10.2018,CHILDREN'S SERVICES,REDACTED PERSONAL DATA,806.08,DISABILITY & HIV,PAYMENTS TO CARERS,REDACTED,REDACTED
10.10.2018,CHILDREN'S SERVICES,REDACTED PERSONAL DATA,806.08,DISABILITY & HIV,PAYMENTS TO CARERS,REDACTED,REDACTED
10.10.2018,CHILDREN'S SERVICES,REDACTED PERSONAL DATA,806.08,DISABILITY & HIV,PAYMENTS TO CARERS,REDACTED,REDACTED
10.10.2018,CHILDREN'S SERVICES,REDACTED PERSONAL DATA,806.08,DISABILITY & HIV,PAYMENTS TO CARERS,REDACTED,REDACTED
10.10.2018,CHILDREN'S SERVICES,REDACTED PERSONAL DATA,806.08,DISABILITY & HIV,PAYMENTS TO CARERS,REDACTED,REDACTED
10.10.2018,CHILDREN'S SERVICES,REDACTED PERSONAL DATA,806.08,DISABILITY & HIV,PAYMENTS TO CARERS,REDACTED,REDACTED
10.10.2018,CHILDREN'S SERVICES,REDACTED PERSONAL DATA,806.08,DISABILITY & HIV,PAYMENTS TO CARERS,REDACTED,REDACTED
10.10.2018,CHILDREN'S SERVICES,REDACTED PERSONAL DATA,806.08,DISABILITY & HIV,PAYMENTS TO CARERS,REDACTED,REDACTED
10.10.2018,CHILDREN'S SERVICES,REDACTED PERSONAL DATA,806.08,DISABILITY & HIV,PAYMENTS TO CARERS,REDACTED,REDACTED
10.10.2018,CHILDREN'S SERVICES,REDACTED PERSONAL DATA,810.98,DISABILITY & HIV,PAYMENTS TO CARERS,REDACTED,REDACTED
10.10.2018,CHILDREN'S SERVICES,REDACTED PERSONAL DATA,828.12,DISABILITY & HIV,PAYMENTS TO CARERS,REDACTED,REDACTED
10.10.2018,CHILDREN'S SERVICES,REDACTED PERSONAL DATA,836.28,DISABILITY & HIV,PAYMENTS TO CARERS,REDACTED,REDACTED
10.10.2018,CHILDREN'S SERVICES,REDACTED PERSONAL DATA,854.28,DISABILITY & HIV,PAYMENTS TO CARERS,REDACTED,REDACTED
10.10.2018,CHILDREN'S SERVICES,REDACTED PERSONAL DATA,888.12,DISABILITY & HIV,PAYMENTS TO CARERS,REDACTED,REDACTED
10.10.2018,CHILDREN'S SERVICES,REDACTED PERSONAL DATA,888.12,DISABILITY & HIV,PAYMENTS TO CARERS,REDACTED,REDACTED
10.10.2018,CHILDREN'S SERVICES,REDACTED PERSONAL DATA,888.12,DISABILITY & HIV,PAYMENTS TO CARERS,REDACTED,REDACTED
10.10.2018,CHILDREN'S SERVICES,REDACTED PERSONAL DATA,888.12,DISABILITY & HIV,PAYMENTS TO CARERS,REDACTED,REDACTED
10.10.2018,CHILDREN'S SERVICES,REDACTED PERSONAL DATA,888.12,DISABILITY & HIV,PAYMENTS TO CARERS,REDACTED,REDACTED
10.10.2018,CHILDREN'S SERVICES,REDACTED PERSONAL DATA,888.12,DISABILITY & HIV,PAYMENTS TO CARERS,REDACTED,REDACTED
10.10.2018,CHILDREN'S SERVICES,REDACTED PERSONAL DATA,888.12,DISABILITY & HIV,PAYMENTS TO CARERS,REDACTED,REDACTED
10.10.2018,CHILDREN'S SERVICES,REDACTED PERSONAL DATA,888.12,DISABILITY & HIV,PAYMENTS TO CARERS,REDACTED,REDACTED
10.10.2018,CHILDREN'S SERVICES,REDACTED PERSONAL DATA,888.12,DISABILITY & HIV,PAYMENTS TO CARERS,REDACTED,REDACTED
10.10.2018,CHILDREN'S SERVICES,REDACTED PERSONAL DATA,888.12,DISABILITY & HIV,PAYMENTS TO CARERS,REDACTED,REDACTED
10.10.2018,CHILDREN'S SERVICES,REDACTED PERSONAL DATA,888.12,DISABILITY & HIV,PAYMENTS TO CARERS,REDACTED,REDACTED
10.10.2018,CHILDREN'S SERVICES,REDACTED PERSONAL DATA,888.12,DISABILITY & HIV,PAYMENTS TO CARERS,REDACTED,REDACTED
10.10.2018,CHILDREN'S SERVICES,REDACTED PERSONAL DATA,888.12,DISABILITY & HIV,PAYMENTS TO CARERS,REDACTED,REDACTED
10.10.2018,CHILDREN'S SERVICES,REDACTED PERSONAL DATA,924.2,DISABILITY & HIV,PAYMENTS TO CARERS,REDACTED,REDACTED
10.10.2018,CHILDREN'S SERVICES,REDACTED PERSONAL DATA,991.42,DISABILITY & HIV,PAYMENTS TO CARERS,REDACTED,REDACTED
10.10.2018,CHILDREN'S SERVICES,REDACTED PERSONAL DATA,991.42,DISABILITY & HIV,PAYMENTS TO CARERS,REDACTED,REDACTED
10.10.2018,CHILDREN'S SERVICES,REDACTED PERSONAL DATA,"1,094.60",DISABILITY & HIV,PAYMENTS TO CARERS,REDACTED,REDACTED
10.10.2018,CHILDREN'S SERVICES,REDACTED PERSONAL DATA,"1,094.60",DISABILITY & HIV,PAYMENTS TO CARERS,REDACTED,REDACTED
10.10.2018,CHILDREN'S SERVICES,REDACTED PERSONAL DATA,"1,169.65",DISABILITY & HIV,PAYMENTS TO CARERS,REDACTED,REDACTED
10.10.2018,CHILDREN'S SERVICES,REDACTED PERSONAL DATA,"1,188.12",DISABILITY & HIV,PAYMENTS TO CARERS,REDACTED,REDACTED
10.10.2018,CHILDREN'S SERVICES,REDACTED PERSONAL DATA,"1,435.71",DISABILITY & HIV,PAYMENTS TO CARERS,REDACTED,REDACTED
10.10.2018,CHILDREN'S SERVICES,REDACTED PERSONAL DATA,"1,633.46",DISABILITY & HIV,PAYMENTS TO CARERS,REDACTED,REDACTED
10.10.2018,CHILDREN'S SERVICES,REDACTED PERSONAL DATA,"1,636.24",DISABILITY & HIV,PAYMENTS TO CARERS,REDACTED,REDACTED
10.10.2018,CHILDREN'S SERVICES,REDACTED PERSONAL DATA,"1,663.03",DISABILITY & HIV,PAYMENTS TO CARERS,REDACTED,REDACTED
10.10.2018,CHILDREN'S SERVICES,REDACTED PERSONAL DATA,"1,700.00",DISABILITY & HIV,PAYMENTS TO CARERS,REDACTED,REDACTED
10.10.2018,CHILDREN'S SERVICES,REDACTED PERSONAL DATA,"1,716.24",DISABILITY & HIV,PAYMENTS TO CARERS,REDACTED,REDACTED
10.10.2018,CHILDREN'S SERVICES,REDACTED PERSONAL DATA,"1,773.90",DISABILITY & HIV,PAYMENTS TO CARERS,REDACTED,REDACTED
10.10.2018,CHILDREN'S SERVICES,REDACTED PERSONAL DATA,"2,414.09",DISABILITY & HIV,PAYMENTS TO CARERS,REDACTED,REDACTED
10.10.2018,CHILDREN'S SERVICES,DOG KENNEL HILL PRIMARY SCHOOL,"15,467.00",DOG KENNEL HILL PRIMARY SCHOOL,EARLY YEARS - 3 AND 4 YEAR OLDS,5902323344,5001000025
10.10.2018,CHILDREN'S SERVICES,DOG KENNEL HILL PRIMARY SCHOOL,"170,856.00",DOG KENNEL HILL PRIMARY SCHOOL,SCHOOLS CAPITATION,5902323345,5001000025
10.10.2018,CHILDREN'S SERVICES,DULWICH VILLAGE CE INFANTS SCHOOL,"107,904.00",DULWICH VILLAGE CE INFANTS' SCHOOL,SCHOOLS CAPITATION,5902323347,5001000027
10.10.2018,CHILDREN'S SERVICES,DULWICH WOOD CHILDRENS CENTRE,"58,791.00",DULWICH WOOD NURSERY SCHOOL,EARLY YEARS - 3 AND 4 YEAR OLDS,5902323485,5001000099
10.10.2018,CHILDREN'S SERVICES,DULWICH WOOD PRIMARY SCHOOL,"149,241.00",DULWICH WOOD PRIMARY SCHOOL,SCHOOLS CAPITATION,5902323382,5001000042
10.10.2018,CHILDREN'S SERVICES,ENGLISH MARTYRS RC PRIMARY SCHOOL,"11,607.00",ENGLISH MARTYRS RC PRIMARY SCHOOL,EARLY YEARS - 3 AND 4 YEAR OLDS,5902323355,5001000030
10.10.2018,CHILDREN'S SERVICES,ENGLISH MARTYRS RC PRIMARY SCHOOL,"155,686.00",ENGLISH MARTYRS RC PRIMARY SCHOOL,SCHOOLS CAPITATION,5902323356,5001000030
10.10.2018,CHILDREN'S SERVICES,EVELINA HOSPITAL SCHOOL,"87,568.00",EVELINA HOSPITAL SCHOOL,HIGH NEEDS - TOP UP FUNDING,5902323358,5001000031
10.10.2018,CHILDREN'S SERVICES,FRIARS PRIMARY SCHOOL,"8,787.00",FRIARS FOUNDATION PRIMARY SCHOOL,EARLY YEARS - 3 AND 4 YEAR OLDS,5902323362,5001000033
10.10.2018,CHILDREN'S SERVICES,FRIARS PRIMARY SCHOOL,"90,640.00",FRIARS FOUNDATION PRIMARY SCHOOL,SCHOOLS CAPITATION,5902323363,5001000033
10.10.2018,CHILDREN'S SERVICES,REDACTED PERSONAL DATA,400,FRIENDS & FAMILY FOSTERING,ADDITIONAL PAYMENTS TO AGENCIES/CARERS,REDACTED,REDACTED
10.10.2018,CHILDREN'S SERVICES,REDACTED PERSONAL DATA,335.34,FRIENDS & FAMILY FOSTERING,PAYMENTS TO CARERS,REDACTED,REDACTED
10.10.2018,CHILDREN'S SERVICES,REDACTED PERSONAL DATA,335.34,FRIENDS & FAMILY FOSTERING,PAYMENTS TO CARERS,REDACTED,REDACTED
10.10.2018,CHILDREN'S SERVICES,REDACTED PERSONAL DATA,335.34,FRIENDS & FAMILY FOSTERING,PAYMENTS TO CARERS,REDACTED,REDACTED
10.10.2018,CHILDREN'S SERVICES,REDACTED PERSONAL DATA,335.34,FRIENDS & FAMILY FOSTERING,PAYMENTS TO CARERS,REDACTED,REDACTED
10.10.2018,CHILDREN'S SERVICES,REDACTED PERSONAL DATA,335.34,FRIENDS & FAMILY FOSTERING,PAYMENTS TO CARERS,REDACTED,REDACTED
10.10.2018,CHILDREN'S SERVICES,REDACTED PERSONAL DATA,335.34,FRIENDS & FAMILY FOSTERING,PAYMENTS TO CARERS,REDACTED,REDACTED
10.10.2018,CHILDREN'S SERVICES,REDACTED PERSONAL DATA,382.3,FRIENDS & FAMILY FOSTERING,PAYMENTS TO CARERS,REDACTED,REDACTED
10.10.2018,CHILDREN'S SERVICES,REDACTED PERSONAL DATA,382.3,FRIENDS & FAMILY FOSTERING,PAYMENTS TO CARERS,REDACTED,REDACTED
10.10.2018,CHILDREN'S SERVICES,REDACTED PERSONAL DATA,476.08,FRIENDS & FAMILY FOSTERING,PAYMENTS TO CARERS,REDACTED,REDACTED
10.10.2018,CHILDREN'S SERVICES,REDACTED PERSONAL DATA,476.08,FRIENDS & FAMILY FOSTERING,PAYMENTS TO CARERS,REDACTED,REDACTED
10.10.2018,CHILDREN'S SERVICES,REDACTED PERSONAL DATA,476.08,FRIENDS & FAMILY FOSTERING,PAYMENTS TO CARERS,REDACTED,REDACTED
10.10.2018,CHILDREN'S SERVICES,REDACTED PERSONAL DATA,476.08,FRIENDS & FAMILY FOSTERING,PAYMENTS TO CARERS,REDACTED,REDACTED
10.10.2018,CHILDREN'S SERVICES,REDACTED PERSONAL DATA,476.08,FRIENDS & FAMILY FOSTERING,PAYMENTS TO CARERS,REDACTED,REDACTED
10.10.2018,CHILDREN'S SERVICES,REDACTED PERSONAL DATA,635.34,FRIENDS & FAMILY FOSTERING,PAYMENTS TO CARERS,REDACTED,REDACTED
10.10.2018,CHILDREN'S SERVICES,REDACTED PERSONAL DATA,682.3,FRIENDS & FAMILY FOSTERING,PAYMENTS TO CARERS,REDACTED,REDACTED
10.10.2018,CHILDREN'S SERVICES,REDACTED PERSONAL DATA,682.3,FRIENDS & FAMILY FOSTERING,PAYMENTS TO CARERS,REDACTED,REDACTED
10.10.2018,CHILDREN'S SERVICES,REDACTED PERSONAL DATA,682.3,FRIENDS & FAMILY FOSTERING,PAYMENTS TO CARERS,REDACTED,REDACTED
10.10.2018,CHILDREN'S SERVICES,REDACTED PERSONAL DATA,682.3,FRIENDS & FAMILY FOSTERING,PAYMENTS TO CARERS,REDACTED,REDACTED
10.10.2018,CHILDREN'S SERVICES,REDACTED PERSONAL DATA,682.3,FRIENDS & FAMILY FOSTERING,PAYMENTS TO CARERS,REDACTED,REDACTED
10.10.2018,CHILDREN'S SERVICES,REDACTED PERSONAL DATA,682.3,FRIENDS & FAMILY FOSTERING,PAYMENTS TO CARERS,REDACTED,REDACTED
10.10.2018,CHILDREN'S SERVICES,REDACTED PERSONAL DATA,682.3,FRIENDS & FAMILY FOSTERING,PAYMENTS TO CARERS,REDACTED,REDACTED
10.10.2018,CHILDREN'S SERVICES,REDACTED PERSONAL DATA,682.3,FRIENDS & FAMILY FOSTERING,PAYMENTS TO CARERS,REDACTED,REDACTED
10.10.2018,CHILDREN'S SERVICES,REDACTED PERSONAL DATA,682.3,FRIENDS & FAMILY FOSTERING,PAYMENTS TO CARERS,REDACTED,REDACTED
10.10.2018,CHILDREN'S SERVICES,REDACTED PERSONAL DATA,682.3,FRIENDS & FAMILY FOSTERING,PAYMENTS TO CARERS,REDACTED,REDACTED
10.10.2018,CHILDREN'S SERVICES,REDACTED PERSONAL DATA,682.3,FRIENDS & FAMILY FOSTERING,PAYMENTS TO CARERS,REDACTED,REDACTED
10.10.2018,CHILDREN'S SERVICES,REDACTED PERSONAL DATA,682.3,FRIENDS & FAMILY FOSTERING,PAYMENTS TO CARERS,REDACTED,REDACTED
10.10.2018,CHILDREN'S SERVICES,REDACTED PERSONAL DATA,682.3,FRIENDS & FAMILY FOSTERING,PAYMENTS TO CARERS,REDACTED,REDACTED
10.10.2018,CHILDREN'S SERVICES,REDACTED PERSONAL DATA,767.66,FRIENDS & FAMILY FOSTERING,PAYMENTS TO CARERS,REDACTED,REDACTED
10.10.2018,CHILDREN'S SERVICES,REDACTED PERSONAL DATA,776.08,FRIENDS & FAMILY FOSTERING,PAYMENTS TO CARERS,REDACTED,REDACTED
10.10.2018,CHILDREN'S SERVICES,REDACTED PERSONAL DATA,776.08,FRIENDS & FAMILY FOSTERING,PAYMENTS TO CARERS,REDACTED,REDACTED
10.10.2018,CHILDREN'S SERVICES,REDACTED PERSONAL DATA,776.08,FRIENDS & FAMILY FOSTERING,PAYMENTS TO CARERS,REDACTED,REDACTED
10.10.2018,CHILDREN'S SERVICES,REDACTED PERSONAL DATA,776.08,FRIENDS & FAMILY FOSTERING,PAYMENTS TO CARERS,REDACTED,REDACTED
10.10.2018,CHILDREN'S SERVICES,REDACTED PERSONAL DATA,776.08,FRIENDS & FAMILY FOSTERING,PAYMENTS TO CARERS,REDACTED,REDACTED
10.10.2018,CHILDREN'S SERVICES,REDACTED PERSONAL DATA,776.08,FRIENDS & FAMILY FOSTERING,PAYMENTS TO CARERS,REDACTED,REDACTED
10.10.2018,CHILDREN'S SERVICES,REDACTED PERSONAL DATA,776.08,FRIENDS & FAMILY FOSTERING,PAYMENTS TO CARERS,REDACTED,REDACTED
10.10.2018,CHILDREN'S SERVICES,REDACTED PERSONAL DATA,776.08,FRIENDS & FAMILY FOSTERING,PAYMENTS TO CARERS,REDACTED,REDACTED
10.10.2018,CHILDREN'S SERVICES,REDACTED PERSONAL DATA,776.08,FRIENDS & FAMILY FOSTERING,PAYMENTS TO CARERS,REDACTED,REDACTED
10.10.2018,CHILDREN'S SERVICES,REDACTED PERSONAL DATA,300,FURTHER EDUCATION SUPPORT,CLIENT TRANSPORT,REDACTED,REDACTED
10.10.2018,CHILDREN'S SERVICES,REDACTED PERSONAL DATA,500,FURTHER EDUCATION SUPPORT,OTHER PAYMENTS FOR CLIENTS,REDACTED,REDACTED
10.10.2018,CHILDREN'S SERVICES,GOODRICH PRIMARY SCHOOL,"18,543.00",GOODRICH PRIMARY SCHOOL,EARLY YEARS - 3 AND 4 YEAR OLDS,5902323349,5001000028
10.10.2018,CHILDREN'S SERVICES,GOODRICH PRIMARY SCHOOL,"232,053.00",GOODRICH PRIMARY SCHOOL,SCHOOLS CAPITATION,5902323350,5001000028
10.10.2018,CHILDREN'S SERVICES,GRANGE PRIMARY SCHOOL,"8,854.00",GRANGE PRIMARY SCHOOL,EARLY YEARS - 3 AND 4 YEAR OLDS,5902323352,5001000029
10.10.2018,CHILDREN'S SERVICES,GRANGE PRIMARY SCHOOL,"166,126.00",GRANGE PRIMARY SCHOOL,SCHOOLS CAPITATION,5902323353,5001000029
10.10.2018,CHILDREN'S SERVICES,HAYMERLE SCHOOL,"182,329.00",HAYMERLE PRIMARY SCHOOL,HIGH NEEDS - TOP UP FUNDING,5902323387,5001000045
10.10.2018,CHILDREN'S SERVICES,HEBER PRIMARY SCHOOL,"13,585.00",HEBER PRIMARY SCHOOL,EARLY YEARS - 3 AND 4 YEAR OLDS,5902323365,5001000035
10.10.2018,CHILDREN'S SERVICES,HEBER PRIMARY SCHOOL,"151,131.00",HEBER PRIMARY SCHOOL,SCHOOLS CAPITATION,5902323366,5001000035
10.10.2018,CHILDREN'S SERVICES,HIGHSHORE SCHOOL,"263,100.00",HIGHSHORE,HIGH NEEDS - TOP UP FUNDING,5902323388,5001000046
10.10.2018,CHILDREN'S SERVICES,HOLLYDALE PRIMARY SCHOOL,"103,611.00",HOLLYDALE PRIMARY SCHOOL,SCHOOLS CAPITATION,5902323368,5001000036
10.10.2018,CHILDREN'S SERVICES,ILDERTON PRIMARY SCHOOL,"10,868.00",ILDERTON PRIMARY SCHOOL,EARLY YEARS - 3 AND 4 YEAR OLDS,5902323370,5001000037
10.10.2018,CHILDREN'S SERVICES,ILDERTON PRIMARY SCHOOL,"171,477.00",ILDERTON PRIMARY SCHOOL,SCHOOLS CAPITATION,5902323371,5001000037
10.10.2018,CHILDREN'S SERVICES,ALBION PRIMARY SCHOOL,"3,179.00",IN YEAR STATEMENTS & REORGS,HIGH NEEDS - TOP UP FUNDING,5902323301,5001000000
10.10.2018,CHILDREN'S SERVICES,ALFRED SALTER PRIMARY SCHOOL,"19,565.00",IN YEAR STATEMENTS & REORGS,SCHOOLS CAPITATION,5902323304,5001000005
10.10.2018,CHILDREN'S SERVICES,BELLENDEN PRIMARY SCHOOL,"7,165.00",IN YEAR STATEMENTS & REORGS,SCHOOLS CAPITATION,5902323307,5001000007
10.10.2018,CHILDREN'S SERVICES,BESSEMER GRANGE PRIMARY SCHOOL,"5,773.00",IN YEAR STATEMENTS & REORGS,SCHOOLS CAPITATION,5902323311,5001000009
10.10.2018,CHILDREN'S SERVICES,BOUCHER C OF E PRIMARY SCHOOL,"3,179.00",IN YEAR STATEMENTS & REORGS,SCHOOLS CAPITATION,5902323314,5001000011
10.10.2018,CHILDREN'S SERVICES,CAMELOT PRIMARY SCHOOL,"5,572.00",IN YEAR STATEMENTS & REORGS,SCHOOLS CAPITATION,5902323320,5001000014
10.10.2018,CHILDREN'S SERVICES,CHARLES DICKENS PRIMARY SCHOOL,"8,106.00",IN YEAR STATEMENTS & REORGS,SCHOOLS CAPITATION,5902323323,5001000015
10.10.2018,CHILDREN'S SERVICES,CHARLOTTE  SHARMAN PRIMARY SCHOOL,"7,691.00",IN YEAR STATEMENTS & REORGS,SCHOOLS CAPITATION,5902323326,5001000016
10.10.2018,CHILDREN'S SERVICES,COBOURG PRIMARY SCHOOL,"4,512.00",IN YEAR STATEMENTS & REORGS,SCHOOLS CAPITATION,5902323335,5001000021
10.10.2018,CHILDREN'S SERVICES,COMBER GROVE PRIMARY SCHOOL,"2,119.00",IN YEAR STATEMENTS & REORGS,SCHOOLS CAPITATION,5902323338,5001000022
10.10.2018,CHILDREN'S SERVICES,CRAMPTON PRIMARY SCHOOL,"4,439.00",IN YEAR STATEMENTS & REORGS,SCHOOLS CAPITATION,5902323340,5001000023
10.10.2018,CHILDREN'S SERVICES,CRAWFORD PRIMARY SCHOOL,"7,033.00",IN YEAR STATEMENTS & REORGS,SCHOOLS CAPITATION,5902323343,5001000024
10.10.2018,CHILDREN'S SERVICES,DOG KENNEL HILL PRIMARY SCHOOL,"7,024.00",IN YEAR STATEMENTS & REORGS,SCHOOLS CAPITATION,5902323346,5001000025
10.10.2018,CHILDREN'S SERVICES,DULWICH VILLAGE CE INFANTS SCHOOL,"5,713.00",IN YEAR STATEMENTS & REORGS,SCHOOLS CAPITATION,5902323348,5001000027
10.10.2018,CHILDREN'S SERVICES,DULWICH WOOD PRIMARY SCHOOL,"4,238.00",IN YEAR STATEMENTS & REORGS,SCHOOLS CAPITATION,5902323383,5001000042
10.10.2018,CHILDREN'S SERVICES,ENGLISH MARTYRS RC PRIMARY SCHOOL,"3,380.00",IN YEAR STATEMENTS & REORGS,SCHOOLS CAPITATION,5902323357,5001000030
10.10.2018,CHILDREN'S SERVICES,FRIARS PRIMARY SCHOOL,"5,640.00",IN YEAR STATEMENTS & REORGS,SCHOOLS CAPITATION,5902323364,5001000033
10.10.2018,CHILDREN'S SERVICES,GOODRICH PRIMARY SCHOOL,"7,298.00",IN YEAR STATEMENTS & REORGS,SCHOOLS CAPITATION,5902323351,5001000028
10.10.2018,CHILDREN'S SERVICES,GRANGE PRIMARY SCHOOL,"5,499.00",IN YEAR STATEMENTS & REORGS,SCHOOLS CAPITATION,5902323354,5001000029
10.10.2018,CHILDREN'S SERVICES,HEBER PRIMARY SCHOOL,"10,225.00",IN YEAR STATEMENTS & REORGS,SCHOOLS CAPITATION,5902323367,5001000035
10.10.2018,CHILDREN'S SERVICES,HOLLYDALE PRIMARY SCHOOL,"3,512.00",IN YEAR STATEMENTS & REORGS,SCHOOLS CAPITATION,5902323369,5001000036
10.10.2018,CHILDREN'S SERVICES,ILDERTON PRIMARY SCHOOL,"4,580.00",IN YEAR STATEMENTS & REORGS,SCHOOLS CAPITATION,5902323372,5001000037
10.10.2018,CHILDREN'S SERVICES,IVYDALE PRIMARY SCHOOL,"4,905.00",IN YEAR STATEMENTS & REORGS,SCHOOLS CAPITATION,5902323375,5001000038
10.10.2018,CHILDREN'S SERVICES,KEYWORTH PRIMARY SCHOOL,"5,499.00",IN YEAR STATEMENTS & REORGS,SCHOOLS CAPITATION,5902323381,5001000041
10.10.2018,CHILDREN'S SERVICES,MICHAEL FARADAY PRIMARY SCHOOL,"3,786.00",IN YEAR STATEMENTS & REORGS,SCHOOLS CAPITATION,5902323392,5001000048
10.10.2018,CHILDREN'S SERVICES,NOTRE DAME RC GIRLS SCHOOL,"6,358.00",IN YEAR STATEMENTS & REORGS,SCHOOLS CAPITATION,5902323395,5001000050
10.10.2018,CHILDREN'S SERVICES,OLIVER GOLDSMITH PRIMARY SCHOOL,"6,358.00",IN YEAR STATEMENTS & REORGS,SCHOOLS CAPITATION,5902323398,5001000051
10.10.2018,CHILDREN'S SERVICES,PETER HILLS CE SCHOOL,667,IN YEAR STATEMENTS & REORGS,SCHOOLS CAPITATION,5902323401,5001000053
10.10.2018,CHILDREN'S SERVICES,PHOENIX PRIMARY SCHOOL,"10,139.00",IN YEAR STATEMENTS & REORGS,SCHOOLS CAPITATION,5902323361,5001000032
10.10.2018,CHILDREN'S SERVICES,PILGRIM'S WAY PRIMARY SCHOOL,"6,129.00",IN YEAR STATEMENTS & REORGS,SCHOOLS CAPITATION,5902323404,5001000054
10.10.2018,CHILDREN'S SERVICES,RIVERSIDE PRIMARY SCHOOL,"10,536.00",IN YEAR STATEMENTS & REORGS,SCHOOLS CAPITATION,5902323407,5001000056
10.10.2018,CHILDREN'S SERVICES,ROBERT BROWNING PRIMARY SCHOOL,"4,238.00",IN YEAR STATEMENTS & REORGS,SCHOOLS CAPITATION,5902323410,5001000057
10.10.2018,CHILDREN'S SERVICES,ROTHERHITHE PRIMARY SCHOOL,"6,179.00",IN YEAR STATEMENTS & REORGS,SCHOOLS CAPITATION,5902323413,5001000058
10.10.2018,CHILDREN'S SERVICES,SOUTHWARK PARK PRIMARY SCHOOL,"7,567.00",IN YEAR STATEMENTS & REORGS,SCHOOLS CAPITATION,5902323422,5001000062
10.10.2018,CHILDREN'S SERVICES,ST ANTHONYS RC SCHOOL,"2,119.00",IN YEAR STATEMENTS & REORGS,SCHOOLS CAPITATION,5902323425,5001000064
10.10.2018,CHILDREN'S SERVICES,ST FRANCESCA CABRINI PRIMARY SCHOOL,"3,179.00",IN YEAR STATEMENTS & REORGS,SCHOOLS CAPITATION,5902323428,5001000065
10.10.2018,CHILDREN'S SERVICES,ST FRANCIS'S RC PRIMARY SCHOOL,"8,558.00",IN YEAR STATEMENTS & REORGS,SCHOOLS CAPITATION,5902323431,5001000067
10.10.2018,CHILDREN'S SERVICES,ST GEORGES CE SCHOOL,"4,640.00",IN YEAR STATEMENTS & REORGS,SCHOOLS CAPITATION,5902323435,5001000069
10.10.2018,CHILDREN'S SERVICES,ST JAMES CE SCHOOL,"10,618.00",IN YEAR STATEMENTS & REORGS,SCHOOLS CAPITATION,5902323438,5001000070
10.10.2018,CHILDREN'S SERVICES,ST JAMES THE GREAT RC SCHOOL,"8,084.00",IN YEAR STATEMENTS & REORGS,SCHOOLS CAPITATION,5902323441,5001000071
10.10.2018,CHILDREN'S SERVICES,ST JOHNS RC PRIMARY SCHOOL,"2,119.00",IN YEAR STATEMENTS & REORGS,SCHOOLS CAPITATION,5902323450,5001000075
10.10.2018,CHILDREN'S SERVICES,ST JOHNS WALWORTH CE SCHOOL,"3,393.00",IN YEAR STATEMENTS & REORGS,SCHOOLS CAPITATION,5902323443,5001000072
10.10.2018,CHILDREN'S SERVICES,ST JOSEPHS CATHOLIC SCHOOL,"2,119.00",IN YEAR STATEMENTS & REORGS,SCHOOLS CAPITATION,5902323453,5001000076
10.10.2018,CHILDREN'S SERVICES,ST JOSEPHS RC JUNIOR  SCHOOL,"3,845.00",IN YEAR STATEMENTS & REORGS,SCHOOLS CAPITATION,5902323328,5001000017
10.10.2018,CHILDREN'S SERVICES,ST JOSEPHS RC PRIMARY SCHOOL,"4,905.00",IN YEAR STATEMENTS & REORGS,SCHOOLS CAPITATION,5902323456,5001000077
10.10.2018,CHILDREN'S SERVICES,ST JUDES CHURCH OF ENGLAND PRIMARY,"3,380.00",IN YEAR STATEMENTS & REORGS,SCHOOLS CAPITATION,5902323331,5001000019
10.10.2018,CHILDREN'S SERVICES,ST MARY MAGDALENE CE SCHOOL,"5,499.00",IN YEAR STATEMENTS & REORGS,SCHOOLS CAPITATION,5902323460,5001000080
10.10.2018,CHILDREN'S SERVICES,ST PAULS CE SCHOOL,"5,773.00",IN YEAR STATEMENTS & REORGS,SCHOOLS CAPITATION,5902323463,5001000082
10.10.2018,CHILDREN'S SERVICES,ST PETERS CE SCHOOL,"4,439.00",IN YEAR STATEMENTS & REORGS,SCHOOLS CAPITATION,5902323466,5001000083
10.10.2018,CHILDREN'S SERVICES,ST SAVIOURS & ST OLAVES SCHOOL,"5,832.00",IN YEAR STATEMENTS & REORGS,SCHOOLS CAPITATION,5902323468,5001000084
10.10.2018,CHILDREN'S SERVICES,SURREY SQUARE JUNIOR SCHOOL,"10,750.00",IN YEAR STATEMENTS & REORGS,SCHOOLS CAPITATION,5902323471,5001000087
10.10.2018,CHILDREN'S SERVICES,THE ST THOMAS THE APOSTLE COLLEGE,"8,878.00",IN YEAR STATEMENTS & REORGS,SCHOOLS CAPITATION,5902323447,5001000074
10.10.2018,CHILDREN'S SERVICES,TOWER BRIDGE PRIMARY SCHOOL,"4,238.00",IN YEAR STATEMENTS & REORGS,SCHOOLS CAPITATION,5902323477,5001000095
10.10.2018,CHILDREN'S SERVICES,TOWNSEND PRIMARY SCHOOL,"8,152.00",IN YEAR STATEMENTS & REORGS,SCHOOLS CAPITATION,5902323480,5001000096
10.10.2018,CHILDREN'S SERVICES,VICTORY SCHOOL,"3,119.00",IN YEAR STATEMENTS & REORGS,SCHOOLS CAPITATION,5902323484,5001000098
10.10.2018,CHILDREN'S SERVICES,IVYDALE PRIMARY SCHOOL,"13,546.00",IVYDALE PRIMARY SCHOOL,EARLY YEARS - 3 AND 4 YEAR OLDS,5902323373,5001000038
10.10.2018,CHILDREN'S SERVICES,IVYDALE PRIMARY SCHOOL,"207,080.00",IVYDALE PRIMARY SCHOOL,SCHOOLS CAPITATION,5902323374,5001000038
10.10.2018,CHILDREN'S SERVICES,JOHN RUSKIN PRIMARY SCHOOL,"24,942.00",JOHN RUSKIN PRIMARY SCHOOL,EARLY YEARS - 3 AND 4 YEAR OLDS,5902323376,5001000040
10.10.2018,CHILDREN'S SERVICES,JOHN RUSKIN PRIMARY SCHOOL,"22,813.00",JOHN RUSKIN PRIMARY SCHOOL,HIGH NEEDS - TOP UP FUNDING SEN UNIT,5902323378,5001000040
10.10.2018,CHILDREN'S SERVICES,JOHN RUSKIN PRIMARY SCHOOL,"191,185.00",JOHN RUSKIN PRIMARY SCHOOL,SCHOOLS CAPITATION,5902323377,5001000040
10.10.2018,CHILDREN'S SERVICES,KEYWORTH PRIMARY SCHOOL,"12,618.00",KEYWORTH PRIMARY SCHOOL,EARLY YEARS - 3 AND 4 YEAR OLDS,5902323379,5001000041
10.10.2018,CHILDREN'S SERVICES,KEYWORTH PRIMARY SCHOOL,"162,859.00",KEYWORTH PRIMARY SCHOOL,SCHOOLS CAPITATION,5902323380,5001000041
10.10.2018,CHILDREN'S SERVICES,KINTORE WAY CHILDRENS CENTRE,"105,891.00",KINTORE WAY CHILDRENS CENTRE,EARLY YEARS - 3 AND 4 YEAR OLDS,5902323389,5001000047
10.10.2018,CHILDREN'S SERVICES,REDACTED PERSONAL DATA,"2,000.00",LEAVING CARE GRANT,OTHER PAYMENTS FOR CLIENTS,REDACTED,REDACTED
10.10.2018,CHILDREN'S SERVICES,LYNDHURST PRIMARY SCHOOL,"12,654.00",LYNDHURST PRIMARY SCHOOL,EARLY YEARS - 3 AND 4 YEAR OLDS,5902323384,5001000043
10.10.2018,CHILDREN'S SERVICES,LYNDHURST PRIMARY SCHOOL,"11,667.00",LYNDHURST PRIMARY SCHOOL,HIGH NEEDS - TOP UP FUNDING SEN UNIT,5902323386,5001000043
10.10.2018,CHILDREN'S SERVICES,LYNDHURST PRIMARY SCHOOL,"169,457.00",LYNDHURST PRIMARY SCHOOL,SCHOOLS CAPITATION,5902323385,5001000043
10.10.2018,CHILDREN'S SERVICES,TFL TELESALES / OYSTER FULFILMENT,280,MANAGEMENT,PUBLIC TRANSPORT,5902323267,1000059727
10.10.2018,CHILDREN'S SERVICES,BETHLEM & MAUDSLEY HOSPITAL SCHOOL,"134,246.00",MAUDSLEY & BETHLEM,HIGH NEEDS - TOP UP FUNDING,5902323312,5001000010
10.10.2018,CHILDREN'S SERVICES,MICHAEL FARADAY PRIMARY SCHOOL,"15,274.00",MICHAEL FARADAY PRIMARY SCHOOL,EARLY YEARS - 3 AND 4 YEAR OLDS,5902323390,5001000048
10.10.2018,CHILDREN'S SERVICES,MICHAEL FARADAY PRIMARY SCHOOL,"177,598.00",MICHAEL FARADAY PRIMARY SCHOOL,SCHOOLS CAPITATION,5902323391,5001000048
10.10.2018,CHILDREN'S SERVICES,NELL GWYNN NURSERY SCHOOL,"75,725.00",NELL GWYNN CHILDRENS CENTRE,EARLY YEARS - 3 AND 4 YEAR OLDS,5902323393,5001000049
10.10.2018,CHILDREN'S SERVICES,NOTRE DAME RC GIRLS SCHOOL,"405,568.00",NOTRE DAME RC GIRLS' SCHOOL,SCHOOLS CAPITATION,5902323394,5001000050
10.10.2018,CHILDREN'S SERVICES,OLIVER GOLDSMITH PRIMARY SCHOOL,"13,453.00",OLIVER GOLDSMITH PRIMARY SCHOOL,EARLY YEARS - 3 AND 4 YEAR OLDS,5902323396,5001000051
10.10.2018,CHILDREN'S SERVICES,OLIVER GOLDSMITH PRIMARY SCHOOL,"185,808.00",OLIVER GOLDSMITH PRIMARY SCHOOL,SCHOOLS CAPITATION,5902323397,5001000051
10.10.2018,CHILDREN'S SERVICES,PETER HILLS CE SCHOOL,"7,794.00",PETER HILLS CE PRIMARY SCHOOL,EARLY YEARS - 3 AND 4 YEAR OLDS,5902323399,5001000053
10.10.2018,CHILDREN'S SERVICES,PETER HILLS CE SCHOOL,"83,843.00",PETER HILLS CE PRIMARY SCHOOL,SCHOOLS CAPITATION,5902323400,5001000053
10.10.2018,CHILDREN'S SERVICES,PHOENIX PRIMARY SCHOOL,"12,847.00",PHOENIX PRIMARY SCHOOL,EARLY YEARS - 3 AND 4 YEAR OLDS,5902323359,5001000032
10.10.2018,CHILDREN'S SERVICES,PHOENIX PRIMARY SCHOOL,"226,396.00",PHOENIX PRIMARY SCHOOL,SCHOOLS CAPITATION,5902323360,5001000032
10.10.2018,CHILDREN'S SERVICES,PILGRIM'S WAY PRIMARY SCHOOL,"11,327.00",PILGRIMS WAY PRIMARY SCHOOL,EARLY YEARS - 3 AND 4 YEAR OLDS,5902323402,5001000054
10.10.2018,CHILDREN'S SERVICES,PILGRIM'S WAY PRIMARY SCHOOL,"98,617.00",PILGRIMS WAY PRIMARY SCHOOL,SCHOOLS CAPITATION,5902323403,5001000054
10.10.2018,CHILDREN'S SERVICES,EVOLVE HOUSING + SUPPORT,493,POST ADOPTION ADVICE & SUPPORT,EXTERNAL AGENCIES AND BODIES,5902323217,1000048932
10.10.2018,CHILDREN'S SERVICES,ROOCOU CONSULTING LTD,"7,800.00",REGIONAL ADOPTION AGENCY,PROFESSIONAL FEES,5902323219,1000081284
10.10.2018,CHILDREN'S SERVICES,REDACTED PERSONAL DATA,263.96,RESIDENCE ORDERS,PAYMENTS TO CARERS,REDACTED,REDACTED
10.10.2018,CHILDREN'S SERVICES,REDACTED PERSONAL DATA,264.16,RESIDENCE ORDERS,PAYMENTS TO CARERS,REDACTED,REDACTED
10.10.2018,CHILDREN'S SERVICES,REDACTED PERSONAL DATA,269.08,RESIDENCE ORDERS,PAYMENTS TO CARERS,REDACTED,REDACTED
10.10.2018,CHILDREN'S SERVICES,REDACTED PERSONAL DATA,269.08,RESIDENCE ORDERS,PAYMENTS TO CARERS,REDACTED,REDACTED
10.10.2018,CHILDREN'S SERVICES,REDACTED PERSONAL DATA,276.1,RESIDENCE ORDERS,PAYMENTS TO CARERS,REDACTED,REDACTED
10.10.2018,CHILDREN'S SERVICES,RIVERSIDE PRIMARY SCHOOL,"6,358.00",RIVERSIDE PRIMARY SCHOOL,EARLY YEARS - 3 AND 4 YEAR OLDS,5902323405,5001000056
10.10.2018,CHILDREN'S SERVICES,RIVERSIDE PRIMARY SCHOOL,"142,245.00",RIVERSIDE PRIMARY SCHOOL,SCHOOLS CAPITATION,5902323406,5001000056
10.10.2018,CHILDREN'S SERVICES,ROBERT BROWNING PRIMARY SCHOOL,"10,098.00",ROBERT BROWNING PRIMARY SCHOOL,EARLY YEARS - 3 AND 4 YEAR OLDS,5902323408,5001000057
10.10.2018,CHILDREN'S SERVICES,ROBERT BROWNING PRIMARY SCHOOL,"137,136.00",ROBERT BROWNING PRIMARY SCHOOL,SCHOOLS CAPITATION,5902323409,5001000057
10.10.2018,CHILDREN'S SERVICES,ROTHERHITHE PRIMARY SCHOOL,"19,704.00",ROTHERHITHE PRIMARY SCHOOL,EARLY YEARS - 3 AND 4 YEAR OLDS,5902323411,5001000058
10.10.2018,CHILDREN'S SERVICES,ROTHERHITHE PRIMARY SCHOOL,"206,720.00",ROTHERHITHE PRIMARY SCHOOL,SCHOOLS CAPITATION,5902323412,5001000058
10.10.2018,CHILDREN'S SERVICES,RYE OAK PRIMARY SCHOOL,"24,411.00",RYE OAK PRIMARY SCHOOL,EARLY YEARS - 3 AND 4 YEAR OLDS,5902323414,5001000059
10.10.2018,CHILDREN'S SERVICES,RYE OAK PRIMARY SCHOOL,"28,907.00",RYE OAK PRIMARY SCHOOL,HIGH NEEDS - TOP UP FUNDING SEN UNIT,5902323416,5001000059
10.10.2018,CHILDREN'S SERVICES,RYE OAK PRIMARY SCHOOL,"158,450.00",RYE OAK PRIMARY SCHOOL,SCHOOLS CAPITATION,5902323415,5001000059
10.10.2018,CHILDREN'S SERVICES,ACCESS MOBILITY TRANSPORT LTD,"12,737.00",SCH TRANS - CONTRACT COST,CAB FARES,5902322395,1000074637
